Workbook

Sheet 1. Information Sheet
U1: a | AA1: =IF(OR(F16="", F16="(if applicable)"), F14, F14 & " - " & F16) -> Waterloo North Hydro Inc.
M12: Version | N12: 1.1
E14: Utility Name | F14: Waterloo North Hydro Inc.
E16: Service Territory
E18: Assigned EB Number | F18: EB-2014-0119
E20: Name of Contact and Title | F20: Albert P. Singh, CFO & Vice President Administration
E22: Phone Number | F22: 519-888-5542
E24: Email Address | F24: asingh@wnhydro.com
E26: We are applying for rates effective | F26: 2015-05-01
E28: Rate-Setting Method | F28: Price Cap IR
A30: Please indicate in which Rate Year the Group 1 accounts were last cleared1 | F30: 2014
A32: Please indicate the last Cost of Service Re-Basing Year | F32: 2011
B35: Notes
C37: Pale green cells represent input cells.
C39: Pale blue cells represent drop-down lists. The applicant should select the appropriate item from the drop-down list.
C41: White cells contain fixed values, automatically generated values or formulae.
A44: Note: 1. Rate year of application

Sheet 2. Related Links
A13: ● | B13: Ontario Energy Board's 2015 Electricity Distribution Rates Webpage
A15: ● | B15: An updated version of Chapter 3 of the Filing Requirements for Electricity Distribution Rate Applications for 2015 rates.

Sheet 3. Rate Class Selection
A12: Select the appropriate rate classes as they appear on your most recent Board-Approved Tariff of Rates and Charges, including the MicroFit Class.
A14: How many classes are on your most recent Board-Approved Tariff of Rates and Charges? | J14: 9
A16: Select Your Rate Classes from the Blue Cells below. Please ensure that a rate class is assigned to each shaded cell.
B18: Rate Class Classification | Q18: # of duplicates
A19: 1 | B19: RESIDENTIAL | P19: =COUNTIF($B$19:$J$40, B19) -> 1 | Q19: =COUNTIF(P19:P40, 2)/2 -> 0
A20: 2 | B20: GENERAL SERVICE LESS THAN 50 KW | P20: =COUNTIF($B$19:$J$40, B20) -> 1
A21: 3 | B21: GENERAL SERVICE 50 TO 4,999 KW | P21: 1
A22: 4 | B22: GENERAL SERVICE GREATER THAN 50 kW - WMP | P22: 1
A23: 5 | B23: LARGE USE | P23: 1
A24: 6 | B24: UNMETERED SCATTERED LOAD | P24: 1
A25: 7 | B25: STREET LIGHTING | P25: 1
A26: 8 | B26: microFIT | P26: 1
A27: 9 | B27: EMBEDDED DISTRIBUTOR | P27: 1
P28: 0
P29: 0
P30: 0
P31: 0
P32: 0
P33: 0

Sheet 4. Current Tariff Schedule
Z1: 3 | AA1: January | AB1: ≥
AA2: February
AA3: March
AA4: April
AA5: May
AA6: June
AA7: July
AA8: August
AA9: September
AA10: October
AA11: November
B12: For each class, Applicants are required to copy and paste the class descriptions (located directly under the class name) and the description of the applicability of those rates (description is found under the class name and directly under the word "APPLICATION"). By using the drop-down lists located under the column labeled "Rate Description", please select the descriptions of the rates and charges that BEST MATCHES the descriptions on your most recent Board-Approved Tariff of Rates and Charges. If the description is not found in the drop-down list, please enter the description in the green cells under the correct class exactly as it appears on the tariff. Please do not enter more than one "Service Charge" for each class for which a base monthly fixed charge applies. | AA12: December
B21: =IF(ISBLANK('1. Information Sheet'!F14), "Please Choose Distributor Name on Sheet 1", '1. Information Sheet'!F14) -> Waterloo North Hydro Inc.
B22: TARIFF OF RATES AND CHARGES
A24: RESIDENTIAL | B24: RESIDENTIAL Service Classification
A25: RESIDENTIAL
A26: RESIDENTIAL | B26: This classification applies to an account taking electricity at 750 volts or less where the electricity is used exclusively in a separate metered living accommodation. Customers shall be residing in single-dwelling units that consist of a detached house or one unit of a semi-detached, duplex, triplex or quadruplex house, with a residential zoning. Separately metered dwellings within a town house complex or apartment building also qualify as residential customers. All customers are single-phase. Further servicing details are available in the distributor’s Conditions of Service.
A27: RESIDENTIAL
A28: RESIDENTIAL
A29: RESIDENTIAL
A30: RESIDENTIAL
A31: RESIDENTIAL
A32: RESIDENTIAL | B32: APPLICATION
A33: RESIDENTIAL
A34: RESIDENTIAL | B34: The application of these rates and charges shall be in accordance with the Licence of the Distributor and any Code or Order of the Board, and amendments thereto as approved by the Board, which may be applicable to the administration of this schedule.
A35: RESIDENTIAL
A36: RESIDENTIAL
A37: RESIDENTIAL | B37: No rates and charges for the distribution of electricity and charges to meet the costs of any work or service done or furnished for the purpose of the distribution of electricity shall be made except as permitted by this schedule, unless required by the Distributor’s Licence or a Code or Order of the Board, and amendments thereto as approved by the Board, or as specified herein.
A38: RESIDENTIAL
A39: RESIDENTIAL
A40: RESIDENTIAL
A41: RESIDENTIAL | B41: Unless specifically noted, this schedule does not contain any charges for the electricity commodity, be it under the Regulated Price Plan, a contract with a retailer or the wholesale market price, as applicable. In addition, the charges in the MONTHLY RATES AND CHARGES - Regulatory Component of this schedule do not apply to a customer that is an embedded wholesale market participant.
A42: RESIDENTIAL
A43: RESIDENTIAL
A44: RESIDENTIAL | B44: It should be noted that this schedule does not list any charges, assessments or credits that are required by law to be invoiced by a distributor and that are not subject to Board approval, such as the Debt Retirement Charge, the Global Adjustment, the Ontario Clean Energy Benefit and the HST.
A45: RESIDENTIAL
A46: RESIDENTIAL
A47: RESIDENTIAL
A48: RESIDENTIAL | B48: MONTHLY RATES AND CHARGES - Delivery Component (If applicable, Effective Date MUST be included in rate description)
A49: RESIDENTIAL | B49: Service Charge | H49: $ | I49: 15 | K49: 1_C_MSC
A50: RESIDENTIAL | B50: Rate Rider for Recovery of Smart Meter Incremental Revenue Requirement - in effect until the effective date of the next cost of service-based rate order | H50: $ | I50: 2.11 | K50: 1_C_MSC_Rate_Rider_1
A51: RESIDENTIAL | B51: Rate Rider for Smart Metering Entity Charge - effective until October 31, 2018 | H51: $ | I51: 0.79 | K51: 1_C_SMEC | L51: 2018-10-31
A52: RESIDENTIAL | B52: Distribution Volumetric Rate | H52: $/kWh | I52: 0.019 | K52: 1_C_VC_1
A53: RESIDENTIAL | B53: Low Voltage Service Rate | H53: $/kWh | I53: 0.0001 | K53: 1_C_LVrate
A54: RESIDENTIAL | B54: Rate Rider for Recovery of Lost Revenue Adjustment Mechanism (LRAM)/Shared Savings Mechanism (SSM) Recovery - effective until April 30, 2015 | H54: $/kWh | I54: 0.0002 | K54: 1_C_VC_Rate_Rider_kWh_1 | L54: 2015-04-30
A55: RESIDENTIAL | B55: Retail Transmission Rate - Network Service Rate | H55: $/kWh | I55: 0.0076 | K55: 1_C_RTSR_Network
A56: RESIDENTIAL | B56: Retail Transmission Rate - Line and Transformation Connection Service Rate | H56: $/kWh | I56: 0.0022 | K56: 1_C_RTSR_Connection
A57: RESIDENTIAL | B57: Rate Rider for Deferral/Variance Account Disposition (2014) - effective until April 30, 2015 | H57: $/kWh | I57: -0.0016 | K57: 1_C_VC_DEFVAR_kWh_1 | L57: 2015-04-30
A58: RESIDENTIAL | B58: Rate Rider for Global Adjustment Sub-Account Disposition (2014) - effective until April 30, 2015 Applicable only for Non-RPP Customers | H58: $/kWh | I58: -0.0007 | K58: 1_C_VC_GA_Rate_Rider_kWh_1 | L58: 2015-04-30
A59: RESIDENTIAL | B59: Rate Rider for Application of Tax Change (2014) - effective until April 30, 2015 | H59: $/kWh | I59: -0.0001 | K59: 1_C_VC_Rate_Rider_kWh_3 | L59: 2015-04-30
A60: RESIDENTIAL
A61: RESIDENTIAL
A62: RESIDENTIAL
A63: RESIDENTIAL
A64: RESIDENTIAL
A65: RESIDENTIAL
A66: RESIDENTIAL
A67: RESIDENTIAL
A68: RESIDENTIAL
A69: RESIDENTIAL
A70: RESIDENTIAL
A71: RESIDENTIAL
A72: RESIDENTIAL
A73: RESIDENTIAL
A74: RESIDENTIAL
A75: RESIDENTIAL
A76: RESIDENTIAL
A77: RESIDENTIAL
A78: RESIDENTIAL
A79: RESIDENTIAL | B79: MONTHLY RATES AND CHARGES - Regulatory Component
A80: RESIDENTIAL
A81: RESIDENTIAL | B81: Wholesale Market Service Rate | H81: $/kWh | I81: 0.0044 | K81: 1_C_WMSR
A82: RESIDENTIAL | B82: Rural or Remote Electricity Rate Protection Charge (RRRP) | H82: $/kWh | I82: 0.0013 | K82: 1_C_RRPC
A83: RESIDENTIAL | B83: Standard Supply Service - Administrative Charge (if applicable) | H83: $ | I83: 0.25 | K83: 1_C_SSS
A84: RESIDENTIAL
A87: GENERAL SERVICE LESS THAN 50 KW | B87: GENERAL SERVICE LESS THAN 50 KW Service Classification
A88: GENERAL SERVICE LESS THAN 50 KW
A89: GENERAL SERVICE LESS THAN 50 KW | B89: This classification applies to a non residential account taking electricity at 750 volts or less whose average monthly maximum demand is less than, or is forecast to be less than, 50 kW. Further servicing details are available in the distributor’s Conditions of Service.
A90: GENERAL SERVICE LESS THAN 50 KW
A91: GENERAL SERVICE LESS THAN 50 KW
A92: GENERAL SERVICE LESS THAN 50 KW
A93: GENERAL SERVICE LESS THAN 50 KW
A94: GENERAL SERVICE LESS THAN 50 KW
A95: GENERAL SERVICE LESS THAN 50 KW | B95: APPLICATION
A96: GENERAL SERVICE LESS THAN 50 KW
A97: GENERAL SERVICE LESS THAN 50 KW | B97: The application of these rates and charges shall be in accordance with the Licence of the Distributor and any Code or Order of the Board, and amendments thereto as approved by the Board, which may be applicable to the administration of this schedule.
A98: GENERAL SERVICE LESS THAN 50 KW
A99: GENERAL SERVICE LESS THAN 50 KW
A100: GENERAL SERVICE LESS THAN 50 KW | B100: No rates and charges for the distribution of electricity and charges to meet the costs of any work or service done or furnished for the purpose of the distribution of electricity shall be made except as permitted by this schedule, unless required by the Distributor’s Licence or a Code or Order of the Board, and amendments thereto as approved by the Board, or as specified herein.
A101: GENERAL SERVICE LESS THAN 50 KW
A102: GENERAL SERVICE LESS THAN 50 KW
A103: GENERAL SERVICE LESS THAN 50 KW
A104: GENERAL SERVICE LESS THAN 50 KW | B104: Unless specifically noted, this schedule does not contain any charges for the electricity commodity, be it under the Regulated Price Plan, a contract with a retailer or the wholesale market price, as applicable. In addition, the charges in the MONTHLY RATES AND CHARGES - Regulatory Component of this schedule do not apply to a customer that is an embedded wholesale market participant.
A105: GENERAL SERVICE LESS THAN 50 KW
A106: GENERAL SERVICE LESS THAN 50 KW
A107: GENERAL SERVICE LESS THAN 50 KW | B107: It should be noted that this schedule does not list any charges, assessments or credits that are required by law to be invoiced by a distributor and that are not subject to Board approval, such as the Debt Retirement Charge, the Global Adjustment, the Ontario Clean Energy Benefit and the HST.
A108: GENERAL SERVICE LESS THAN 50 KW
A109: GENERAL SERVICE LESS THAN 50 KW
A110: GENERAL SERVICE LESS THAN 50 KW
A111: GENERAL SERVICE LESS THAN 50 KW | B111: MONTHLY RATES AND CHARGES - Delivery Component (If applicable, Effective Date MUST be included in rate description)
A112: GENERAL SERVICE LESS THAN 50 KW | B112: Service Charge | H112: $ | I112: 31.55 | K112: 2_C_MSC
A113: GENERAL SERVICE LESS THAN 50 KW | B113: Rate Rider for Recovery of Smart Meter Incremental Revenue Requirement - in effect until the effective date of the next cost of service-based rate order | H113: $ | I113: 5.51 | K113: 2_C_MSC_Rate_Rider_1
A114: GENERAL SERVICE LESS THAN 50 KW | B114: Rate Rider for Smart Metering Entity Charge - effective until October 31, 2018 | H114: $ | I114: 0.79 | K114: 2_C_SMEC | L114: 2018-10-31
A115: GENERAL SERVICE LESS THAN 50 KW | B115: Distribution Volumetric Rate | H115: $/kWh | I115: 0.0141 | K115: 2_C_VC_1
A116: GENERAL SERVICE LESS THAN 50 KW | B116: Low Voltage Service Rate | H116: $/kWh | I116: 0.0001 | K116: 2_C_LVrate
A117: GENERAL SERVICE LESS THAN 50 KW | B117: Rate Rider for Recovery of Lost Revenue Adjustment Mechanism (LRAM)/Shared Savings Mechanism (SSM) Recovery - effective until April 30, 2015 | H117: $/kWh | I117: 0.0001 | K117: 2_C_VC_Rate_Rider_kWh_1 | L117: 2015-04-30
A118: GENERAL SERVICE LESS THAN 50 KW | B118: Rate Rider for Deferral/Variance Account Disposition (2014) - effective until April 30, 2015 | H118: $/kWh | I118: -0.0016 | K118: 2_C_VC_DEFVAR_kWh_1 | L118: 2015-04-30
A119: GENERAL SERVICE LESS THAN 50 KW | B119: Rate Rider for Global Adjustment Sub-Account Disposition (2014) - effective until April 30, 2015 Applicable only for Non-RPP Customers | H119: $/kWh | I119: -0.0007 | K119: 2_C_VC_GA_Rate_Rider_kWh_1 | L119: 2015-04-30
A120: GENERAL SERVICE LESS THAN 50 KW | B120: Retail Transmission Rate - Network Service Rate | H120: $/kWh | I120: 0.0069 | K120: 2_C_RTSR_Network
A121: GENERAL SERVICE LESS THAN 50 KW | B121: Retail Transmission Rate - Line and Transformation Connection Service Rate | H121: $/kWh | I121: 0.002 | K121: 2_C_RTSR_Connection
A122: GENERAL SERVICE LESS THAN 50 KW
A123: GENERAL SERVICE LESS THAN 50 KW
A124: GENERAL SERVICE LESS THAN 50 KW
A125: GENERAL SERVICE LESS THAN 50 KW
A126: GENERAL SERVICE LESS THAN 50 KW
A127: GENERAL SERVICE LESS THAN 50 KW
A128: GENERAL SERVICE LESS THAN 50 KW
A129: GENERAL SERVICE LESS THAN 50 KW
A130: GENERAL SERVICE LESS THAN 50 KW
A131: GENERAL SERVICE LESS THAN 50 KW
A132: GENERAL SERVICE LESS THAN 50 KW
A133: GENERAL SERVICE LESS THAN 50 KW
A134: GENERAL SERVICE LESS THAN 50 KW
A135: GENERAL SERVICE LESS THAN 50 KW
A136: GENERAL SERVICE LESS THAN 50 KW
A137: GENERAL SERVICE LESS THAN 50 KW
A138: GENERAL SERVICE LESS THAN 50 KW
A139: GENERAL SERVICE LESS THAN 50 KW
A140: GENERAL SERVICE LESS THAN 50 KW
A141: GENERAL SERVICE LESS THAN 50 KW
A142: GENERAL SERVICE LESS THAN 50 KW | B142: MONTHLY RATES AND CHARGES - Regulatory Component
A143: GENERAL SERVICE LESS THAN 50 KW
A144: GENERAL SERVICE LESS THAN 50 KW | B144: Wholesale Market Service Rate | H144: $/kWh | I144: 0.0044 | K144: 2_C_WMSR
A145: GENERAL SERVICE LESS THAN 50 KW | B145: Rural or Remote Electricity Rate Protection Charge (RRRP) | H145: $/kWh | I145: 0.0013 | K145: 2_C_RRPC
A146: GENERAL SERVICE LESS THAN 50 KW | B146: Standard Supply Service - Administrative Charge (if applicable) | H146: $ | I146: 0.25 | K146: 2_C_SSS
A147: GENERAL SERVICE LESS THAN 50 KW
A150: GENERAL SERVICE 50 TO 4,999 KW | B150: GENERAL SERVICE 50 TO 4,999 KW Service Classification
A151: GENERAL SERVICE 50 TO 4,999 KW
A152: GENERAL SERVICE 50 TO 4,999 KW | B152: This classification applies to a non residential account whose average monthly maximum demand used for billing purposes is equal to or greater than, or is forecast to be equal to or greater than, 50 kW but less than 5,000 kW. Further servicing details are available in the distributor’s Conditions of Service. Note that for the application of the Retail Transmission Rate – Network Service Rate and the Retail Transmission Rate – Line and Transformation Connection Service Rate the following sub-classifications apply: General Service 50 to 999 kW non-interval metered General Service 50 to 999 kW interval metered General Service 1,000 to 4,999 kW interval metered.
A153: GENERAL SERVICE 50 TO 4,999 KW
A154: GENERAL SERVICE 50 TO 4,999 KW
A155: GENERAL SERVICE 50 TO 4,999 KW
A156: GENERAL SERVICE 50 TO 4,999 KW
A157: GENERAL SERVICE 50 TO 4,999 KW
A158: GENERAL SERVICE 50 TO 4,999 KW | B158: APPLICATION
A159: GENERAL SERVICE 50 TO 4,999 KW
A160: GENERAL SERVICE 50 TO 4,999 KW | B160: The application of these rates and charges shall be in accordance with the Licence of the Distributor and any Code or Order of the Board, and amendments thereto as approved by the Board, which may be applicable to the administration of this schedule.
A161: GENERAL SERVICE 50 TO 4,999 KW
A162: GENERAL SERVICE 50 TO 4,999 KW
A163: GENERAL SERVICE 50 TO 4,999 KW | B163: No rates and charges for the distribution of electricity and charges to meet the costs of any work or service done or furnished for the purpose of the distribution of electricity shall be made except as permitted by this schedule, unless required by the Distributor’s Licence or a Code or Order of the Board, and amendments thereto as approved by the Board, or as specified herein.
A164: GENERAL SERVICE 50 TO 4,999 KW
A165: GENERAL SERVICE 50 TO 4,999 KW
A166: GENERAL SERVICE 50 TO 4,999 KW
A167: GENERAL SERVICE 50 TO 4,999 KW | B167: Unless specifically noted, this schedule does not contain any charges for the electricity commodity, be it under the Regulated Price Plan, a contract with a retailer or the wholesale market price, as applicable. In addition, the charges in the MONTHLY RATES AND CHARGES - Regulatory Component of this schedule do not apply to a customer that is an embedded wholesale market participant.
A168: GENERAL SERVICE 50 TO 4,999 KW
A169: GENERAL SERVICE 50 TO 4,999 KW
A170: GENERAL SERVICE 50 TO 4,999 KW | B170: It should be noted that this schedule does not list any charges, assessments or credits that are required by law to be invoiced by a distributor and that are not subject to Board approval, such as the Debt Retirement Charge, the Global Adjustment, the Ontario Clean Energy Benefit and the HST.
A171: GENERAL SERVICE 50 TO 4,999 KW
A172: GENERAL SERVICE 50 TO 4,999 KW
A173: GENERAL SERVICE 50 TO 4,999 KW
A174: GENERAL SERVICE 50 TO 4,999 KW | B174: MONTHLY RATES AND CHARGES - Delivery Component (If applicable, Effective Date MUST be included in rate description)
A175: GENERAL SERVICE 50 TO 4,999 KW | B175: Service Charge | H175: $ | I175: 117.85 | K175: 3_C_MSC
A176: GENERAL SERVICE 50 TO 4,999 KW | B176: Distribution Volumetric Rate | H176: $/kW | I176: 4.6787 | K176: 3_C_VC_1
A177: GENERAL SERVICE 50 TO 4,999 KW | B177: Low Voltage Service Rate | H177: $/kW | I177: 0.0551 | K177: 3_C_LVrate
A178: GENERAL SERVICE 50 TO 4,999 KW | B178: Rate Rider for Recovery of Lost Revenue Adjustment Mechanism (LRAM)/Shared Savings Mechanism (SSM) Recovery - effective until April 30, 2015 | H178: $/kW | I178: 0.1495 | K178: 3_C_VC_Rate_Rider_kW_1 | L178: 2015-04-30
A179: GENERAL SERVICE 50 TO 4,999 KW | B179: Rate Rider for Deferral/Variance Account Disposition (2014) - effective until April 30, 2015 | H179: $/kW | I179: -0.7266 | K179: 3_C_VC_DEFVAR_kW_1 | L179: 2015-04-30
A180: GENERAL SERVICE 50 TO 4,999 KW | B180: Rate Rider for Global Adjustment Sub-Account Disposition (2014) - effective until April 30, 2015 Applicable only for Non-RPP Customers | H180: $/kW | I180: -0.3027 | K180: 3_C_VC_GA_Rate_Rider_kW_1 | L180: 2015-04-30
A181: GENERAL SERVICE 50 TO 4,999 KW | B181: Retail Transmission Rate - Network Service Rate - (less than 1,000 kW) | H181: $/kW | I181: 2.8378 | K181: 3_C_RTSR_Network
A182: GENERAL SERVICE 50 TO 4,999 KW | B182: Retail Transmission Rate - Network Service Rate - Interval Metered (less than 1,000 kW) | H182: $/kW | I182: 3.0141 | K182: 3_C_RTSR_Network_Interval
A183: GENERAL SERVICE 50 TO 4,999 KW | B183: Retail Transmission Rate - Network Service Rate - Interval Metered (1,000 to 4,999 kW) | H183: $/kW | I183: 3.0102 | K183: 3_C_RTSR_Network_Interval_GR1000kW
A184: GENERAL SERVICE 50 TO 4,999 KW | B184: Retail Transmission Rate - Line and Transformation Connection Service Rate - (less than 1,000 kW) | H184: $/kW | I184: 0.7815 | K184: 3_C_RTSR_Connection
A185: GENERAL SERVICE 50 TO 4,999 KW | B185: Retail Transmission Rate - Line and Transformation Connection Service Rate - Interval Metered (less than 1,000 kW) | H185: $/kW | I185: 0.9761 | K185: 3_C_RTSR_Connection_Interval
A186: GENERAL SERVICE 50 TO 4,999 KW | B186: Retail Transmission Rate - Line and Transformation Connection Service Rate - Interval Metered (1,000 to 4,999 kW) | H186: $/kW | I186: 0.975 | K186: 3_C_RTSR_Connection_Interval_GR1000kW
A187: GENERAL SERVICE 50 TO 4,999 KW | B187: Rate Rider for Application of Tax Change (2014) - effective until April 30, 2015 | H187: $/kW | I187: -0.0099 | K187: 3_C_VC_Rate_Rider_kW_3 | L187: 2015-04-30
A188: GENERAL SERVICE 50 TO 4,999 KW
A189: GENERAL SERVICE 50 TO 4,999 KW
A190: GENERAL SERVICE 50 TO 4,999 KW
A191: GENERAL SERVICE 50 TO 4,999 KW
A192: GENERAL SERVICE 50 TO 4,999 KW
A193: GENERAL SERVICE 50 TO 4,999 KW
A194: GENERAL SERVICE 50 TO 4,999 KW
A195: GENERAL SERVICE 50 TO 4,999 KW
A196: GENERAL SERVICE 50 TO 4,999 KW
A197: GENERAL SERVICE 50 TO 4,999 KW
A198: GENERAL SERVICE 50 TO 4,999 KW
A199: GENERAL SERVICE 50 TO 4,999 KW
A200: GENERAL SERVICE 50 TO 4,999 KW
A201: GENERAL SERVICE 50 TO 4,999 KW
A202: GENERAL SERVICE 50 TO 4,999 KW
A203: GENERAL SERVICE 50 TO 4,999 KW
A204: GENERAL SERVICE 50 TO 4,999 KW
A205: GENERAL SERVICE 50 TO 4,999 KW | B205: MONTHLY RATES AND CHARGES - Regulatory Component
A206: GENERAL SERVICE 50 TO 4,999 KW
A207: GENERAL SERVICE 50 TO 4,999 KW | B207: Wholesale Market Service Rate | H207: $/kWh | I207: 0.0044 | K207: 3_C_WMSR
A208: GENERAL SERVICE 50 TO 4,999 KW | B208: Rural or Remote Electricity Rate Protection Charge (RRRP) | H208: $/kWh | I208: 0.0013 | K208: 3_C_RRPC
A209: GENERAL SERVICE 50 TO 4,999 KW | B209: Standard Supply Service - Administrative Charge (if applicable) | H209: $ | I209: 0.25 | K209: 3_C_SSS
A210: GENERAL SERVICE 50 TO 4,999 KW
A213: GENERAL SERVICE GREATER THAN 50 kW - WMP | B213: GENERAL SERVICE GREATER THAN 50 kW - WMP Service Classification
A214: GENERAL SERVICE GREATER THAN 50 kW - WMP
A215: GENERAL SERVICE GREATER THAN 50 kW - WMP
... 357 more rows

Sheet 4. Hidden (hidden)
M1: Current Rate Classes | N1: Changed to Rate Classes | O1: Values in A that are NOT in B | P1: Values in B that are Not in A | Q1: Count of A | R1: Count of B
M2: RESIDENTIAL | N2: RESIDENTIAL | Q2: 9 | R2: 9
M3: GENERAL SERVICE LESS THAN 50 KW | N3: GENERAL SERVICE LESS THAN 50 KW
M4: GENERAL SERVICE 50 TO 4,999 KW | N4: GENERAL SERVICE 50 TO 4,999 KW
M5: GENERAL SERVICE GREATER THAN 50 kW - WMP | N5: GENERAL SERVICE GREATER THAN 50 kW - WMP
M6: LARGE USE | N6: LARGE USE
M7: UNMETERED SCATTERED LOAD | N7: UNMETERED SCATTERED LOAD
M8: STREET LIGHTING | N8: STREET LIGHTING
M9: microFIT | N9: microFIT
M10: EMBEDDED DISTRIBUTOR | N10: EMBEDDED DISTRIBUTOR
A24: RESIDENTIAL | B24: RESIDENTIAL Service Classification
A25: RESIDENTIAL
A26: RESIDENTIAL | B26: This classification applies to an account taking electricity at 750 volts or less where the electricity is used exclusively in a separate metered living accommodation. Customers shall be residing in single-dwelling units that consist of a detached house or one unit of a semi-detached, duplex, triplex or quadruplex house, with a residential zoning. Separately metered dwellings within a town house complex or apartment building also qualify as residential customers. All customers are single-phase. Further servicing details are available in the distributor’s Conditions of Service.
A27: RESIDENTIAL
A28: RESIDENTIAL
A29: RESIDENTIAL
A30: RESIDENTIAL
A31: RESIDENTIAL
A32: RESIDENTIAL | B32: APPLICATION
A33: RESIDENTIAL
A34: RESIDENTIAL | B34: The application of these rates and charges shall be in accordance with the Licence of the Distributor and any Code or Order of the Board, and amendments thereto as approved by the Board, which may be applicable to the administration of this schedule.
A35: RESIDENTIAL
A36: RESIDENTIAL
A37: RESIDENTIAL | B37: No rates and charges for the distribution of electricity and charges to meet the costs of any work or service done or furnished for the purpose of the distribution of electricity shall be made except as permitted by this schedule, unless required by the Distributor’s Licence or a Code or Order of the Board, and amendments thereto as approved by the Board, or as specified herein.
A38: RESIDENTIAL
A39: RESIDENTIAL
A40: RESIDENTIAL
A41: RESIDENTIAL | B41: Unless specifically noted, this schedule does not contain any charges for the electricity commodity, be it under the Regulated Price Plan, a contract with a retailer or the wholesale market price, as applicable. In addition, the charges in the MONTHLY RATES AND CHARGES - Regulatory Component of this schedule do not apply to a customer that is an embedded wholesale market participant.
A42: RESIDENTIAL
A43: RESIDENTIAL
A44: RESIDENTIAL | B44: It should be noted that this schedule does not list any charges, assessments or credits that are required by law to be invoiced by a distributor and that are not subject to Board approval, such as the Debt Retirement Charge, the Global Adjustment, the Ontario Clean Energy Benefit and the HST.
A45: RESIDENTIAL
A46: RESIDENTIAL
A47: RESIDENTIAL
A48: RESIDENTIAL | B48: MONTHLY RATES AND CHARGES - Delivery Component (If applicable, Effective Date MUST be included in rate description)
A49: RESIDENTIAL | B49: Service Charge | H49: $ | I49: 15
A50: RESIDENTIAL | B50: Rate Rider for Recovery of Smart Meter Incremental Revenue Requirement - in effect until the effective date of the next cost of service-based rate order | H50: $ | I50: 2.11
A51: RESIDENTIAL | B51: Rate Rider for Smart Metering Entity Charge - effective until October 31, 2018 | H51: $ | I51: 0.79
A52: RESIDENTIAL | B52: Distribution Volumetric Rate | H52: $/kWh | I52: 0.019
A53: RESIDENTIAL | B53: Low Voltage Service Rate | H53: $/kWh | I53: 0.0001
A54: RESIDENTIAL | B54: Rate Rider for Recovery of Lost Revenue Adjustment Mechanism (LRAM)/Shared Savings Mechanism (SSM) Recovery - effective until April 30, 2015 | H54: $/kWh | I54: 0.0002
A55: RESIDENTIAL | B55: Retail Transmission Rate - Network Service Rate | H55: $/kWh | I55: 0.0076
A56: RESIDENTIAL | B56: Retail Transmission Rate - Line and Transformation Connection Service Rate | H56: $/kWh | I56: 0.0022
A57: RESIDENTIAL | B57: Rate Rider for Deferral/Variance Account Disposition (2014) - effective until April 30, 2015 | H57: $/kWh | I57: -0.0016
A58: RESIDENTIAL | B58: Rate Rider for Global Adjustment Sub-Account Disposition (2014) - effective until April 30, 2015 Applicable only for Non-RPP Customers | H58: $/kWh | I58: -0.0007
A59: RESIDENTIAL | B59: Rate Rider for Application of Tax Change (2014) - effective until April 30, 2015 | H59: $/kWh | I59: -0.0001
A60: RESIDENTIAL
A61: RESIDENTIAL
A62: RESIDENTIAL
A63: RESIDENTIAL
A64: RESIDENTIAL
A65: RESIDENTIAL
A66: RESIDENTIAL
A67: RESIDENTIAL
A68: RESIDENTIAL
A69: RESIDENTIAL
A70: RESIDENTIAL
A71: RESIDENTIAL
A72: RESIDENTIAL
A73: RESIDENTIAL
A74: RESIDENTIAL
A75: RESIDENTIAL
A76: RESIDENTIAL
A77: RESIDENTIAL
A78: RESIDENTIAL
A79: RESIDENTIAL | B79: MONTHLY RATES AND CHARGES - Regulatory Component
A80: RESIDENTIAL
A81: RESIDENTIAL | B81: Wholesale Market Service Rate | H81: $/kWh | I81: 0.0044
A82: RESIDENTIAL | B82: Rural or Remote Electricity Rate Protection Charge (RRRP) | H82: $/kWh | I82: 0.0013
A83: RESIDENTIAL | B83: Standard Supply Service - Administrative Charge (if applicable) | H83: $ | I83: 0.25
A84: RESIDENTIAL
A87: GENERAL SERVICE LESS THAN 50 KW | B87: GENERAL SERVICE LESS THAN 50 KW Service Classification
A88: GENERAL SERVICE LESS THAN 50 KW
A89: GENERAL SERVICE LESS THAN 50 KW | B89: This classification applies to a non residential account taking electricity at 750 volts or less whose average monthly maximum demand is less than, or is forecast to be less than, 50 kW. Further servicing details are available in the distributor’s Conditions of Service.
A90: GENERAL SERVICE LESS THAN 50 KW
A91: GENERAL SERVICE LESS THAN 50 KW
A92: GENERAL SERVICE LESS THAN 50 KW
A93: GENERAL SERVICE LESS THAN 50 KW
A94: GENERAL SERVICE LESS THAN 50 KW
A95: GENERAL SERVICE LESS THAN 50 KW | B95: APPLICATION
A96: GENERAL SERVICE LESS THAN 50 KW
A97: GENERAL SERVICE LESS THAN 50 KW | B97: The application of these rates and charges shall be in accordance with the Licence of the Distributor and any Code or Order of the Board, and amendments thereto as approved by the Board, which may be applicable to the administration of this schedule.
A98: GENERAL SERVICE LESS THAN 50 KW
A99: GENERAL SERVICE LESS THAN 50 KW
A100: GENERAL SERVICE LESS THAN 50 KW | B100: No rates and charges for the distribution of electricity and charges to meet the costs of any work or service done or furnished for the purpose of the distribution of electricity shall be made except as permitted by this schedule, unless required by the Distributor’s Licence or a Code or Order of the Board, and amendments thereto as approved by the Board, or as specified herein.
A101: GENERAL SERVICE LESS THAN 50 KW
A102: GENERAL SERVICE LESS THAN 50 KW
A103: GENERAL SERVICE LESS THAN 50 KW
A104: GENERAL SERVICE LESS THAN 50 KW | B104: Unless specifically noted, this schedule does not contain any charges for the electricity commodity, be it under the Regulated Price Plan, a contract with a retailer or the wholesale market price, as applicable. In addition, the charges in the MONTHLY RATES AND CHARGES - Regulatory Component of this schedule do not apply to a customer that is an embedded wholesale market participant.
A105: GENERAL SERVICE LESS THAN 50 KW
A106: GENERAL SERVICE LESS THAN 50 KW
A107: GENERAL SERVICE LESS THAN 50 KW | B107: It should be noted that this schedule does not list any charges, assessments or credits that are required by law to be invoiced by a distributor and that are not subject to Board approval, such as the Debt Retirement Charge, the Global Adjustment, the Ontario Clean Energy Benefit and the HST.
A108: GENERAL SERVICE LESS THAN 50 KW
A109: GENERAL SERVICE LESS THAN 50 KW
A110: GENERAL SERVICE LESS THAN 50 KW
A111: GENERAL SERVICE LESS THAN 50 KW | B111: MONTHLY RATES AND CHARGES - Delivery Component (If applicable, Effective Date MUST be included in rate description)
A112: GENERAL SERVICE LESS THAN 50 KW | B112: Service Charge | H112: $ | I112: 31.55
A113: GENERAL SERVICE LESS THAN 50 KW | B113: Rate Rider for Recovery of Smart Meter Incremental Revenue Requirement - in effect until the effective date of the next cost of service-based rate order | H113: $ | I113: 5.51
A114: GENERAL SERVICE LESS THAN 50 KW | B114: Rate Rider for Smart Metering Entity Charge - effective until October 31, 2018 | H114: $ | I114: 0.79
A115: GENERAL SERVICE LESS THAN 50 KW | B115: Distribution Volumetric Rate | H115: $/kWh | I115: 0.0141
A116: GENERAL SERVICE LESS THAN 50 KW | B116: Low Voltage Service Rate | H116: $/kWh | I116: 0.0001
A117: GENERAL SERVICE LESS THAN 50 KW | B117: Rate Rider for Recovery of Lost Revenue Adjustment Mechanism (LRAM)/Shared Savings Mechanism (SSM) Recovery - effective until April 30, 2015 | H117: $/kWh | I117: 0.0001
A118: GENERAL SERVICE LESS THAN 50 KW | B118: Rate Rider for Deferral/Variance Account Disposition (2014) - effective until April 30, 2015 | H118: $/kWh | I118: -0.0016
A119: GENERAL SERVICE LESS THAN 50 KW | B119: Rate Rider for Global Adjustment Sub-Account Disposition (2014) - effective until April 30, 2015 Applicable only for Non-RPP Customers | H119: $/kWh | I119: -0.0007
A120: GENERAL SERVICE LESS THAN 50 KW | B120: Retail Transmission Rate - Network Service Rate | H120: $/kWh | I120: 0.0069
A121: GENERAL SERVICE LESS THAN 50 KW | B121: Retail Transmission Rate - Line and Transformation Connection Service Rate | H121: $/kWh | I121: 0.002
A122: GENERAL SERVICE LESS THAN 50 KW
A123: GENERAL SERVICE LESS THAN 50 KW
A124: GENERAL SERVICE LESS THAN 50 KW
A125: GENERAL SERVICE LESS THAN 50 KW
A126: GENERAL SERVICE LESS THAN 50 KW
A127: GENERAL SERVICE LESS THAN 50 KW
A128: GENERAL SERVICE LESS THAN 50 KW
A129: GENERAL SERVICE LESS THAN 50 KW
A130: GENERAL SERVICE LESS THAN 50 KW
A131: GENERAL SERVICE LESS THAN 50 KW
A132: GENERAL SERVICE LESS THAN 50 KW
A133: GENERAL SERVICE LESS THAN 50 KW
A134: GENERAL SERVICE LESS THAN 50 KW
A135: GENERAL SERVICE LESS THAN 50 KW
A136: GENERAL SERVICE LESS THAN 50 KW
A137: GENERAL SERVICE LESS THAN 50 KW
A138: GENERAL SERVICE LESS THAN 50 KW
A139: GENERAL SERVICE LESS THAN 50 KW
A140: GENERAL SERVICE LESS THAN 50 KW
A141: GENERAL SERVICE LESS THAN 50 KW
A142: GENERAL SERVICE LESS THAN 50 KW | B142: MONTHLY RATES AND CHARGES - Regulatory Component
A143: GENERAL SERVICE LESS THAN 50 KW
A144: GENERAL SERVICE LESS THAN 50 KW | B144: Wholesale Market Service Rate | H144: =H81 -> $/kWh | I144: 0.0044
A145: GENERAL SERVICE LESS THAN 50 KW | B145: Rural or Remote Electricity Rate Protection Charge (RRRP) | H145: $/kWh | I145: 0.0013
A146: GENERAL SERVICE LESS THAN 50 KW | B146: Standard Supply Service - Administrative Charge (if applicable) | H146: $ | I146: 0.25
A147: GENERAL SERVICE LESS THAN 50 KW
A150: GENERAL SERVICE 50 TO 4,999 KW | B150: GENERAL SERVICE 50 TO 4,999 KW Service Classification
A151: GENERAL SERVICE 50 TO 4,999 KW
A152: GENERAL SERVICE 50 TO 4,999 KW | B152: This classification applies to a non residential account whose average monthly maximum demand used for billing purposes is equal to or greater than, or is forecast to be equal to or greater than, 50 kW but less than 5,000 kW. Further servicing details are available in the distributor’s Conditions of Service. Note that for the application of the Retail Transmission Rate – Network Service Rate and the Retail Transmission Rate – Line and Transformation Connection Service Rate the following sub-classifications apply: General Service 50 to 999 kW non-interval metered General Service 50 to 999 kW interval metered General Service 1,000 to 4,999 kW interval metered.
A153: GENERAL SERVICE 50 TO 4,999 KW
A154: GENERAL SERVICE 50 TO 4,999 KW
A155: GENERAL SERVICE 50 TO 4,999 KW
A156: GENERAL SERVICE 50 TO 4,999 KW
A157: GENERAL SERVICE 50 TO 4,999 KW
A158: GENERAL SERVICE 50 TO 4,999 KW | B158: APPLICATION
A159: GENERAL SERVICE 50 TO 4,999 KW
A160: GENERAL SERVICE 50 TO 4,999 KW | B160: The application of these rates and charges shall be in accordance with the Licence of the Distributor and any Code or Order of the Board, and amendments thereto as approved by the Board, which may be applicable to the administration of this schedule.
A161: GENERAL SERVICE 50 TO 4,999 KW
A162: GENERAL SERVICE 50 TO 4,999 KW
A163: GENERAL SERVICE 50 TO 4,999 KW | B163: No rates and charges for the distribution of electricity and charges to meet the costs of any work or service done or furnished for the purpose of the distribution of electricity shall be made except as permitted by this schedule, unless required by the Distributor’s Licence or a Code or Order of the Board, and amendments thereto as approved by the Board, or as specified herein.
A164: GENERAL SERVICE 50 TO 4,999 KW
A165: GENERAL SERVICE 50 TO 4,999 KW
A166: GENERAL SERVICE 50 TO 4,999 KW
A167: GENERAL SERVICE 50 TO 4,999 KW | B167: Unless specifically noted, this schedule does not contain any charges for the electricity commodity, be it under the Regulated Price Plan, a contract with a retailer or the wholesale market price, as applicable. In addition, the charges in the MONTHLY RATES AND CHARGES - Regulatory Component of this schedule do not apply to a customer that is an embedded wholesale market participant.
A168: GENERAL SERVICE 50 TO 4,999 KW
A169: GENERAL SERVICE 50 TO 4,999 KW
A170: GENERAL SERVICE 50 TO 4,999 KW | B170: It should be noted that this schedule does not list any charges, assessments or credits that are required by law to be invoiced by a distributor and that are not subject to Board approval, such as the Debt Retirement Charge, the Global Adjustment, the Ontario Clean Energy Benefit and the HST.
A171: GENERAL SERVICE 50 TO 4,999 KW
A172: GENERAL SERVICE 50 TO 4,999 KW
A173: GENERAL SERVICE 50 TO 4,999 KW
A174: GENERAL SERVICE 50 TO 4,999 KW | B174: MONTHLY RATES AND CHARGES - Delivery Component (If applicable, Effective Date MUST be included in rate description)
A175: GENERAL SERVICE 50 TO 4,999 KW | B175: Service Charge | H175: $ | I175: 117.85
A176: GENERAL SERVICE 50 TO 4,999 KW | B176: Distribution Volumetric Rate | H176: $/kW | I176: 4.6787
A177: GENERAL SERVICE 50 TO 4,999 KW | B177: Low Voltage Service Rate | H177: $/kW | I177: 0.0551
A178: GENERAL SERVICE 50 TO 4,999 KW | B178: Rate Rider for Recovery of Lost Revenue Adjustment Mechanism (LRAM)/Shared Savings Mechanism (SSM) Recovery - effective until April 30, 2015 | H178: $/kW | I178: 0.1495
A179: GENERAL SERVICE 50 TO 4,999 KW | B179: Rate Rider for Deferral/Variance Account Disposition (2014) - effective until April 30, 2015 | H179: $/kW | I179: -0.7266
A180: GENERAL SERVICE 50 TO 4,999 KW | B180: Rate Rider for Global Adjustment Sub-Account Disposition (2014) - effective until April 30, 2015 Applicable only for Non-RPP Customers | H180: $/kW | I180: -0.3027
A181: GENERAL SERVICE 50 TO 4,999 KW | B181: Retail Transmission Rate - Network Service Rate - (less than 1,000 kW) | H181: $/kW | I181: 2.8378
A182: GENERAL SERVICE 50 TO 4,999 KW | B182: Retail Transmission Rate - Network Service Rate - Interval Metered (less than 1,000 kW) | H182: $/kW | I182: 3.0141
A183: GENERAL SERVICE 50 TO 4,999 KW | B183: Retail Transmission Rate - Network Service Rate - Interval Metered (1,000 to 4,999 kW) | H183: $/kW | I183: 3.0102
A184: GENERAL SERVICE 50 TO 4,999 KW | B184: Retail Transmission Rate - Line and Transformation Connection Service Rate - (less than 1,000 kW) | H184: $/kW | I184: 0.7815
A185: GENERAL SERVICE 50 TO 4,999 KW | B185: Retail Transmission Rate - Line and Transformation Connection Service Rate - Interval Metered (less than 1,000 kW) | H185: $/kW | I185: 0.9761
A186: GENERAL SERVICE 50 TO 4,999 KW | B186: Retail Transmission Rate - Line and Transformation Connection Service Rate - Interval Metered (1,000 to 4,999 kW) | H186: $/kW | I186: 0.975
A187: GENERAL SERVICE 50 TO 4,999 KW | B187: Rate Rider for Application of Tax Change (2014) - effective until April 30, 2015 | H187: $/kW | I187: -0.0099
A188: GENERAL SERVICE 50 TO 4,999 KW
A189: GENERAL SERVICE 50 TO 4,999 KW
A190: GENERAL SERVICE 50 TO 4,999 KW
A191: GENERAL SERVICE 50 TO 4,999 KW
A192: GENERAL SERVICE 50 TO 4,999 KW
A193: GENERAL SERVICE 50 TO 4,999 KW
A194: GENERAL SERVICE 50 TO 4,999 KW
A195: GENERAL SERVICE 50 TO 4,999 KW
A196: GENERAL SERVICE 50 TO 4,999 KW
A197: GENERAL SERVICE 50 TO 4,999 KW
A198: GENERAL SERVICE 50 TO 4,999 KW
A199: GENERAL SERVICE 50 TO 4,999 KW
A200: GENERAL SERVICE 50 TO 4,999 KW
A201: GENERAL SERVICE 50 TO 4,999 KW
A202: GENERAL SERVICE 50 TO 4,999 KW
A203: GENERAL SERVICE 50 TO 4,999 KW
A204: GENERAL SERVICE 50 TO 4,999 KW
A205: GENERAL SERVICE 50 TO 4,999 KW | B205: MONTHLY RATES AND CHARGES - Regulatory Component
A206: GENERAL SERVICE 50 TO 4,999 KW
A207: GENERAL SERVICE 50 TO 4,999 KW | B207: Wholesale Market Service Rate | H207: =H81 -> $/kWh | I207: 0.0044
A208: GENERAL SERVICE 50 TO 4,999 KW | B208: Rural or Remote Electricity Rate Protection Charge (RRRP) | H208: $/kWh | I208: 0.0013
A209: GENERAL SERVICE 50 TO 4,999 KW | B209: Standard Supply Service - Administrative Charge (if applicable) | H209: $ | I209: 0.25
A210: GENERAL SERVICE 50 TO 4,999 KW
A213: LARGE USE | B213: LARGE USE Service Classification
A214: LARGE USE
A215: LARGE USE | B215: This classification applies to an account whose average monthly maximum demand used for billing purposes is equal to or greater than, or is forecast to be equal to or greater than, 5,000 kW. Further servicing details are available in the distributor’s Conditions of Service.
A216: LARGE USE
A217: LARGE USE
A218: LARGE USE
A219: LARGE USE
... 292 more rows

Sheet 5. 2014 Continuity Schedule
C15: Please complete the following continuity schedule for the following Deferral / Variance Accounts. Enter information into green cells only. If you have received approval to dispose of balances from prior years, the starting point for entries in the 2015 DVA schedule below will be the balance sheet date as per your G/L for which you received approval. For example, if in the 2014 EDR process (CoS or IRM) you received approval for the December 31, 2012 balances, the starting point for your entries below should be the 2011 year. This will allow for the correct starting point for the 2012 opening balance columns for both principal and interest. Please refer to the footnotes for further instructions.
E19: 2010 | O19: 2011 | Y19: 2012 | AL19: 2013 | AY19: 2014 | BC19: Projected Interest on Dec-31-13 Balances | BF19: 2.1.7 RRR
C20: Account Descriptions | D20: Account Number | E20: Opening Principal Amounts as of Jan-1-10 | F20: Transactions Debit / (Credit) during 2010 excluding interest and adjustments 2 | G20: Board-Approved Disposition during 2010 | H20: Adjustments during 2010 - other 1 | I20: Closing Principal Balance as of Dec-31-10 | J20: Opening Interest Amounts as of Jan-1-10 | K20: Interest Jan-1 to Dec-31-10 | L20: Board-Approved Disposition during 2010 | M20: Adjustments during 2010 - other 2 | N20: Closing Interest Amounts as of Dec-31-10 | O20: Opening Principal Amounts as of Jan-1-11 | P20: Transactions Debit / (Credit) during 2011 excluding interest and adjustments 2 | Q20: Board-Approved Disposition during 2011 | R20: Adjustments during 2011 - other 1 | S20: Closing Principal Balance as of Dec-31-11 | T20: Opening Interest Amounts as of Jan-1-11 | U20: Interest Jan-1 to Dec-31-11 | V20: Board-Approved Disposition during 2011 | W20: Adjustments during 2011 - other 2 | X20: Closing Interest Amounts as of Dec-31-11 | Y20: Opening Principal Amounts as of Jan-1-12 | Z20: Transactions Debit / (Credit) during 2012 excluding interest and adjustments 2 | AA20: Board-Approved Disposition during 2012 | AB20: Other 1 Adjustments during Q1 2012 | AC20: Other 1 Adjustments during Q2 2012 | AD20: Other 1 Adjustments during Q3 2012 | AE20: Other 1 Adjustments during Q4 2012 | AF20: Closing Principal Balance as of Dec-31-12 | AG20: Opening Interest Amounts as of Jan-1-12 | AH20: Interest Jan-1 to Dec-31-12 | AI20: Board-Approved Disposition during 2012 | AJ20: Adjustments during 2012 - other 1 | AK20: Closing Interest Amounts as of Dec-31-12 | AL20: Opening Principal Amounts as of Jan-1-13 | AM20: Transactions Debit / (Credit) during 2013 excluding interest and adjustments 2 | AN20: Board-Approved Disposition during 2013 | AO20: Other 1 Adjustments during Q1 2013 | AP20: Other 1 Adjustments during Q2 2013 | AQ20: Other 1 Adjustments during Q3 2013 | AR20: Other 1 Adjustments during Q4 2013 | AS20: Closing Principal Balance as of Dec-31-13 | AT20: Opening Interest Amounts as of Jan-1-13 | AU20: Interest Jan-1 to Dec-31-13 | AV20: Board-Approved Disposition during 2013 | AW20: Adjustments during 2013 - other 1 | AX20: Closing Interest Amounts as of Dec-31-13 | AY20: Principal Disposition during 2014 - instructed by Board | AZ20: Interest Disposition during 2014 - instructed by Board | BA20: Closing Principal Balances as of Dec 31-13 Adjusted for Dispositions during 2014 | BB20: Closing Interest Balances as of Dec 31-13 Adjusted for Dispositions during 2014 | BC20: Projected Interest from Jan 1, 2014 to December 31, 2014 on Dec 31 -13 balance adjusted for disposition during 2014 3 | BD20: Projected Interest from January 1, 2015 to April 30, 2015 on Dec 31 -13 balance adjusted for disposition during 2014 3 | BE20: Total Claim | BF20: As of Dec 31-13 | BG20: Variance RRR vs. 2013 Balance (Principal + Interest)
BE22: Claim before Forecasted Transactions
C23: Group 1 Accounts
A24: 1 | C24: LV Variance Account | D24: 1550 | I24: =E24+F24-G24+H24 -> 0 | N24: =J24+K24-L24+M24 -> 0 | O24: =I24 -> 0 | R24: 63517.74336 | S24: =O24+P24-Q24+R24 -> 63517.74336 | T24: =N24 -> 0 | W24: 562.0511125 | X24: =T24+U24-V24+W24 -> 562.0511125 | Y24: =S24 -> 63517.74336 | Z24: 39571.26116 | AF24: =Y24+Z24-AA24+SUM(AB24:AE24) -> 103089.0045 | AG24: =X24 -> 562.0511125 | AH24: 301.0971142 | AJ24: 1244.94777 | AK24: =AG24+AH24-AI24+AJ24 -> 2108.095997 | AL24: =AF24 -> 103089.0045 | AM24: 101650.0913 | AN24: 63517.74336 | AS24: =AL24+AM24-AN24+SUM(AO24:AR24) -> 141221.3524 | AT24: =AK24 -> 2108.095997 | AU24: 561.9101326 | AV24: 1806.998882 | AW24: 775.5967187 | AX24: =AT24+AU24-AV24+AW24 -> 1638.603966 | AY24: 39571 | AZ24: 1077 | BA24: =AS24-AY24 -> 101650.3524 | BB24: =AX24-AZ24 -> 561.6039656 | BC24: 1494.260181 | BD24: 498.086727 | BE24: =SUM(BA24:BD24) -> 104204.3033 | BF24: 142666 | BG24: =BF24-SUM(AS24,AX24) -> -193.9564133
C25: Smart Metering Entity Charge Variance | D25: 1551 | AK25: 0 | AL25: =AK25 -> 0 | AM25: 32300.53 | AS25: =AL25+AM25-AN25+SUM(AO25:AR25) -> 32300.53 | AT25: =AK25 -> 0 | AU25: 314.0442673 | AX25: 314.0442673 | BA25: =AS25-AY25 -> 32300.53 | BB25: =AX25-AZ25 -> 314.0442673 | BC25: 474.817791 | BD25: 158.272597 | BE25: =SUM(BA25:BD25) -> 33247.66466 | BF25: 32614 | BG25: =BF25-SUM(AS25,AX25) -> -0.574267279
A26: 2 | C26: RSVA - Wholesale Market Service Charge | D26: 1580 | I26: =E26+F26-G26+SUM(H26:H26) -> 0 | N26: =J26+K26-L26+M26 -> 0 | O26: =I26 -> 0 | R26: -1503308.76 | S26: =O26+P26-Q26+SUM(R26:R26) -> -1503308.76 | T26: 0 | W26: -11555.11803 | X26: =T26+U26-V26+W26 -> -11555.11803 | Y26: =S26 -> -1503308.76 | Z26: -1891724.191 | AF26: -3395032.951 | AG26: =X26 -> -11555.11803 | AH26: -13501.7992 | AJ26: -29464.8517 | AK26: -54521.76893 | AL26: =AF26 -> -3395032.951 | AM26: -926112.5192 | AN26: -1503308.76 | AS26: -2817836.71 | AT26: =AK26 -> -54521.76893 | AU26: -9907.79902 | AV26: -41019.96973 | AW26: -37077.79414 | AX26: -60487.39237 | AY26: -1891724 | AZ26: -50580 | BA26: -926112.7101 | BB26: -9907.392365 | BC26: -13613.85684 | BD26: -4537.95228 | BE26: =SUM(BA26:BD26) -> -954171.9116 | BF26: -2869055 | BG26: 9269.102479
A27: 3 | C27: RSVA - Retail Transmission Network Charge | D27: 1584 | I27: 0 | N27: 0 | O27: 0 | R27: 132696.08 | S27: 132696.08 | T27: 0 | W27: 3258.142305 | X27: 3258.142305 | Y27: 132696.08 | Z27: -183814.3989 | AF27: -51118.31888 | AG27: 3258.142305 | AH27: 1566.990902 | AJ27: 2600.843168 | AK27: 7425.976374 | AL27: -51118.31888 | AM27: -422797.1791 | AN27: 132696.08 | AS27: -606611.578 | AT27: 7425.976374 | AU27: -2707.731503 | AV27: 5858.985473 | AW27: -3602.762218 | AX27: -4743.502819 | AY27: -183814 | AZ27: -2036 | BA27: -422797.578 | BB27: -2707.502819 | BC27: -6215.124397 | BD27: -2071.708132 | BE27: -433791.9134 | BF27: -610454 | BG27: 901.0808287
A28: 4 | C28: RSVA - Retail Transmission Connection Charge | D28: 1586 | I28: 0 | N28: 0 | O28: 0 | R28: -93195.72 | S28: -93195.72 | T28: 0 | W28: 145.5440052 | X28: 145.5440052 | Y28: -93195.72 | Z28: -211350.2226 | AF28: -304545.9426 | AG28: 145.5440052 | AH28: -761.2787642 | AJ28: -1826.636112 | AK28: -2442.370871 | AL28: -304545.9426 | AM28: -267572.2326 | AN28: -93195.72 | AS28: -478922.4552 | AT28: -2442.370871 | AU28: -2097.854373 | AV28: -1681.092107 | AW28: -4142.464363 | AX28: -7001.5975 | AY28: -211350 | AZ28: -4904 | BA28: -267572.4552 | BB28: -2097.5975 | BC28: -3933.315092 | BD28: -1311.105031 | BE28: -274914.4728 | BF28: -484888 | BG28: 1036.052726
A29: 5 | C29: RSVA - Power (excluding Global Adjustment) | D29: 1588 | I29: 0 | N29: 0 | O29: 0 | R29: -774436.3083 | S29: -774436.3083 | T29: 0 | W29: -6039.684697 | X29: -6039.684697 | Y29: -774436.3083 | Z29: 32846.25755 | AF29: -741590.0508 | AG29: -6039.684697 | AH29: -4089.02286 | AJ29: -15178.95164 | AK29: -25307.6592 | AL29: -741590.0508 | AM29: -462831.1469 | AN29: -774436.3083 | AS29: -429984.8893 | AT29: -25307.6592 | AU29: 594.8065222 | AV29: -21218.63634 | AW29: 643.7866479 | AX29: -2850.42969 | AY29: 32846 | AZ29: -3445 | BA29: -462830.8893 | BB29: 594.5703101 | BC29: -6803.614073 | BD29: -2267.871358 | BE29: -471307.8045 | BF29: -432996 | BG29: -160.6809802
A30: 6 | C30: RSVA - Global Adjustment | D30: 1589 | I30: 0 | N30: 0 | O30: 0 | R30: 349922.8369 | S30: 349922.8369 | T30: 0 | W30: 3584.239082 | X30: 3584.239082 | Y30: 349922.8369 | Z30: -517109.65 | AF30: -167186.8131 | AG30: 3584.239082 | AH30: -2289.34 | AJ30: 6858.487603 | AK30: 8153.386685 | AL30: -167186.8131 | AM30: 430529.1612 | AN30: 349922.8369 | AS30: -86580.48883 | AT30: 8153.386685 | AU30: 17177.81021 | AV30: 10442.72668 | AW30: -10135.34914 | AX30: 4753.12107 | AY30: -517110 | AZ30: -12425 | BA30: 430529.5112 | BB30: 17178.12107 | BC30: 6328.778669 | BD30: 2109.59289 | BE30: 456146.0038 | BF30: -107908 | BG30: -26080.63224
A31: 7 | C31: Recovery of Regulatory Asset Balances | D31: 1590 | I31: 0 | N31: 0 | O31: 0 | S31: 0 | T31: 0 | X31: 0 | Y31: 0 | AF31: 0 | AG31: 0 | AK31: 0 | AL31: 0 | AS31: 0 | AT31: 0 | AX31: 0 | BA31: 0 | BB31: 0 | BE31: 0 | BG31: 0
A32: 8 | C32: Disposition and Recovery/Refund of Regulatory Balances (2008)4 | D32: 1595 | I32: 0 | N32: 0 | O32: =I32 -> 0 | S32: 0 | T32: 0 | X32: 0 | Y32: 0 | AF32: 0 | AG32: 0 | AK32: 0 | AL32: 0 | AS32: 0 | AT32: 0 | AX32: 0 | BA32: 0 | BB32: 0 | BE32: 0 | BG32: 0
A33: 9 | C33: Disposition and Recovery/Refund of Regulatory Balances (2009)4 | D33: 1595 | I33: 0 | N33: 0 | O33: =I33 -> 0 | S33: 0 | T33: 0 | X33: 0 | Y33: 0 | AF33: 0 | AG33: 0 | AK33: 0 | AL33: 0 | AS33: 0 | AT33: 0 | AX33: 0 | BA33: 0 | BB33: 0 | BE33: 0 | BG33: 0
A34: 9 | C34: Disposition and Recovery/Refund of Regulatory Balances (2010)4 | D34: 1595 | I34: 0 | N34: 0 | O34: =I34 -> 0 | S34: 0 | T34: 0 | X34: 0 | Y34: 0 | AF34: 0 | AG34: 0 | AK34: 0 | AL34: 0 | AS34: 0 | AT34: 0 | AX34: 0 | BA34: 0 | BB34: 0 | BE34: 0 | BG34: 0
A35: 9 | C35: Disposition and Recovery/Refund of Regulatory Balances (2011)4 | D35: 1595 | I35: 0 | N35: 0 | O35: =I35 -> 0 | S35: 0 | T35: 0 | X35: 0 | Y35: 0 | AF35: 0 | AG35: 0 | AK35: 0 | AL35: 0 | AS35: 0 | AT35: 0 | AX35: 0 | BA35: 0 | BB35: 0 | BE35: =SUM(BA35:BD35) -> 0 | BG35: 0
A36: 9 | C36: Disposition and Recovery/Refund of Regulatory Balances (2012)4 | D36: 1595 | I36: 0 | N36: 0 | O36: =I36 -> 0 | S36: 0 | T36: =N36 -> 0 | X36: 0 | Y36: =S36 -> 0 | AF36: =Y36+Z36-AA36+SUM(AB36:AE36) -> 0 | AG36: =X36 -> 0 | AK36: =AG36+AH36-AI36+AJ36 -> 0 | AL36: =AF36 -> 0 | AS36: =AL36+AM36-AN36+SUM(AO36:AR36) -> 0 | AT36: =AK36 -> 0 | AX36: =AT36+AU36-AV36+AW36 -> 0 | BA36: 0 | BB36: 0 | BE36: =SUM(BA36:BD36) -> 0 | BG36: 0
C38: RSVA - Global Adjustment | D38: 1589 | E38: =E30 -> 0 | F38: =F30 -> 0 | G38: 0 | H38: 0 | I38: 0 | J38: 0 | K38: 0 | L38: 0 | M38: 0 | N38: 0 | O38: =O30 -> 0 | P38: =P30 -> 0 | Q38: 0 | R38: 349922.8369 | S38: 349922.8369 | T38: 0 | U38: 0 | V38: 0 | W38: 3584.239082 | X38: 3584.239082 | Y38: =Y30 -> 349922.8369 | Z38: =Z30 -> -517109.65 | AA38: 0 | AB38: 0 | AC38: 0 | AD38: 0 | AE38: 0 | AF38: =AF30 -> -167186.8131 | AG38: 3584.239082 | AH38: -2289.34 | AI38: 0 | AJ38: =AJ30 -> 6858.487603 | AK38: 8153.386685 | AL38: =AL30 -> -167186.8131 | AM38: =AM30 -> 430529.1612 | AN38: 349922.8369 | AO38: 0 | AP38: 0 | AQ38: 0 | AR38: 0 | AS38: -86580.48883 | AT38: 8153.386685 | AU38: 17177.81021 | AV38: 10442.72668 | AW38: -10135.34914 | AX38: 4753.12107 | AY38: -517110 | AZ38: =AZ30 -> -12425 | BA38: 430529.5112 | BB38: 17178.12107 | BC38: 6328.778669 | BD38: 2109.59289 | BE38: 456146.0038 | BF38: -107908 | BG38: -26080.63224
C39: Total Group 1 Balance excluding Account 1589 - Global Adjustment | E39: =SUM(E24:E29,E31:E36) -> 0 | F39: =SUM(F24:F29,F31:F36) -> 0 | G39: 0 | H39: 0 | I39: 0 | J39: 0 | K39: 0 | L39: 0 | M39: 0 | N39: 0 | O39: =SUM(O24:O29,O31:O36) -> 0 | P39: =SUM(P24:P29,P31:P36) -> 0 | Q39: 0 | R39: -2174726.965 | S39: -2174726.965 | T39: 0 | U39: 0 | V39: 0 | W39: -13629.0653 | X39: -13629.0653 | Y39: =SUM(Y24:Y29,Y31:Y36) -> -2174726.965 | Z39: =SUM(Z24:Z29,Z31:Z36) -> -2214471.294 | AA39: 0 | AB39: 0 | AC39: 0 | AD39: 0 | AE39: 0 | AF39: =SUM(AF24:AF29,AF31:AF36) -> -4389198.259 | AG39: -13629.0653 | AH39: -16484.01281 | AI39: 0 | AJ39: =SUM(AJ24:AJ29,AJ31:AJ36) -> -42624.64851 | AK39: -72737.72663 | AL39: =SUM(AL24:AL29,AL31:AL36) -> -4389198.259 | AM39: =SUM(AM24:AM29,AM31:AM36) -> -1945362.457 | AN39: -2174726.965 | AO39: 0 | AP39: 0 | AQ39: 0 | AR39: 0 | AS39: -4159833.75 | AT39: -72737.72663 | AU39: -13242.62397 | AV39: -56253.71382 | AW39: -43403.63736 | AX39: -73130.27414 | AY39: -2214471 | AZ39: =SUM(AZ24:AZ29,AZ31:AZ36) -> -59888 | BA39: -1945362.75 | BB39: -13242.27414 | BC39: -28596.83243 | BD39: -9532.277476 | BE39: -1996734.134 | BF39: -4222113 | BG39: 10851.02437
C40: Total Group 1 Balance | E40: =SUM(E24:E36) -> 0 | F40: =SUM(F24:F36) -> 0 | G40: 0 | H40: 0 | I40: 0 | J40: 0 | K40: 0 | L40: 0 | M40: 0 | N40: 0 | O40: =SUM(O24:O36) -> 0 | P40: =SUM(P24:P36) -> 0 | Q40: 0 | R40: -1824804.128 | S40: -1824804.128 | T40: 0 | U40: 0 | V40: 0 | W40: -10044.82622 | X40: -10044.82622 | Y40: =SUM(Y24:Y36) -> -1824804.128 | Z40: =SUM(Z24:Z36) -> -2731580.944 | AA40: 0 | AB40: 0 | AC40: 0 | AD40: 0 | AE40: 0 | AF40: =SUM(AF24:AF36) -> -4556385.072 | AG40: -10044.82622 | AH40: -18773.35281 | AI40: 0 | AJ40: =SUM(AJ24:AJ36) -> -35766.16091 | AK40: -64584.33994 | AL40: =SUM(AL24:AL36) -> -4556385.072 | AM40: =SUM(AM24:AM36) -> -1514833.295 | AN40: -1824804.128 | AO40: 0 | AP40: 0 | AQ40: 0 | AR40: 0 | AS40: -4246414.239 | AT40: -64584.33994 | AU40: 3935.186236 | AV40: -45810.98713 | AW40: -53538.9865 | AX40: -68377.15307 | AY40: -2731581 | AZ40: =SUM(AZ24:AZ36) -> -72313 | BA40: -1514833.239 | BB40: 3935.846928 | BC40: -22268.05376 | BD40: -7422.684586 | BE40: -1540588.13 | BF40: -4330021 | BG40: -15229.60786
C42: LRAM Variance Account | D42: 1568 | I42: =E42+F42-G42+SUM(H42:H42) -> 0 | N42: =J42+K42-L42+M42 -> 0 | S42: =O42+P42-Q42+SUM(R42:R42) -> 0 | X42: =T42+U42-V42+W42 -> 0 | Y42: =S42 -> 0 | AF42: =Y42+Z42-AA42+SUM(AB42:AE42) -> 0 | AG42: =X42 -> 0 | AK42: =AG42+AH42-AI42+AJ42 -> 0 | AL42: =AF42 -> 0 | AS42: =AL42+AM42-AN42+SUM(AO42:AR42) -> 0 | AT42: =AK42 -> 0 | AX42: =AT42+AU42-AV42+AW42 -> 0 | AY42: 0 | AZ42: 0 | BA42: =AS42-AY42 -> 0 | BB42: =AX42-AZ42 -> 0 | BE42: =SUM(BA42:BD42) -> 0 | BG42: =BF42-SUM(AS42,AX42) -> 0
C44: Total including Account 1568 | E44: =E42+E40 -> 0 | F44: =F42+F40 -> 0 | G44: 0 | H44: 0 | I44: 0 | J44: 0 | K44: 0 | L44: 0 | M44: 0 | N44: 0 | O44: 0 | P44: 0 | Q44: 0 | R44: -1824804.128 | S44: -1824804.128 | T44: 0 | U44: 0 | V44: 0 | W44: -10044.82622 | X44: -10044.82622 | Y44: -1824804.128 | Z44: -2731580.944 | AA44: 0 | AB44: 0 | AC44: 0 | AD44: 0 | AE44: 0 | AF44: -4556385.072 | AG44: -10044.82622 | AH44: -18773.35281 | AI44: 0 | AJ44: -35766.16091 | AK44: -64584.33994 | AL44: -4556385.072 | AM44: -1514833.295 | AN44: -1824804.128 | AO44: 0 | AP44: 0 | AQ44: 0 | AR44: 0 | AS44: -4246414.239 | AT44: -64584.33994 | AU44: 3935.186236 | AV44: -45810.98713 | AW44: -53538.9865 | AX44: -68377.15307 | AY44: -2731581 | AZ44: -72313 | BA44: -1514833.239 | BB44: 3935.846928 | BC44: -22268.05376 | BD44: -7422.684586 | BE44: -1540588.13 | BF44: -4330021 | BG44: -15229.60786
C47: For all Board-Approved dispositions, please ensure that the disposition amount has the same sign (e.g: debit balances are to have a positive figure and credit balance are to have a negative figure) as per the related Board decision.
B50: 1 | C50: Please provide explanations for the nature of the adjustments. If the adjustment relates to previously Board Approved disposed balances, please provide amounts for adjustments and include supporting documentations.
B51: 2 | C51: For RSVA accounts only, report the net variance to the account during the year. For all other accounts, record the transactions during the year.
B52: 3 | C52: If the LDC’s rate year begins on January 1, 2015, the projected interest is recorded from January 1, 2014 to December 31, 2014 on the December 31, 2013 balances adjusted for the disposed balances approved by the Board in the 2014 rate decision. If the LDC’s rate year begins on May 1, 2015, the projected interest is recorded from January 1, 2014 to April 30, 2015 on the December 31, 2013 balances adjusted for the disposed interest balances approved by the Board in the 2014 rate decision.
B53: 4 | C53: Include Account 1595 as part of Group 1 accounts (lines 31, 32, 33 and 34) for review and disposition if the recovery (or refund) period has been completed. If the recovery (or refund) period has not been completed, do not include the respective balance in Account 1595 for disposition at this time.

Sheet 6. Billing Det. for Def-Var
AS1: As per Section 3.2.3 of the 2015 Filing Requirements for Electricity Distribution Rate Applications, an applicant may elect to dispose of the Group 1 account balances below the threshold. If doing so, please select YES from the adjacent drop-down cell and also indicate so in the Manager's Summary. If not, please select NO.
A13: In the green shaded cells, enter the most recent Board Approved volumetric forecast. If there is a material difference between the latest Board-approved volumetric forecast and the most recent 12-month actual volumetric data, use the most recent 12-month actual data. Do not enter data for the MicroFit class.
E15: Billed kWh for Non-RPP Customers | F15: Estimated kW for Non-RPP Customers | H15: 1590 Recovery Share Proportion* | I15: 1595 Recovery Share Proportion (2008) 1 | J15: 1595 Recovery Share Proportion (2009) 1 | K15: 1595 Recovery Share Proportion (2010) 1 | L15: 1595 Recovery Share Proportion (2011) 1 | M15: 1595 Recovery Share Proportion (2012) 1 | N15: 1568 LRAM Variance Account Class Allocation ($ amounts) | O15: Number of Customers for Residential and GS<50 classes3
A16: Rate Class | B16: Unit | C16: Metered kWh | D16: Metered kW
A17: RESIDENTIAL | B17: $/kWh | C17: 393848053.7 | E17: 22283799.06 | F17: =IF(ISERROR(D17/C17*E17), 0, D17/C17*E17) -> 0 | O17: 47976
A18: GENERAL SERVICE LESS THAN 50 KW | B18: $/kWh | C18: 179687810.2 | E18: 30835429.63 | F18: 0 | O18: 5517
A19: GENERAL SERVICE 50 TO 4,999 KW | B19: $/kW | C19: 700757939 | D19: 1570139 | E19: 668279224.1 | F19: 1497366.229
A20: GENERAL SERVICE GREATER THAN 50 kW - WMP | B20: $/kW | C20: 4974750 | D20: 11068 | F20: 0
A21: LARGE USE | B21: $/kW | C21: 79638262.48 | D21: 153851.8077 | F21: 0
A22: UNMETERED SCATTERED LOAD | B22: $/kWh | C22: 1648665.919 | E22: 2746.68 | F22: 0
A23: STREET LIGHTING | B23: $/kW | C23: 7792005.668 | D23: 21835.28338 | E23: 7740903.14 | F23: 21692.08044
A24: microFIT
A25: EMBEDDED DISTRIBUTOR | B25: $/kW | C25: 28618000 | D25: 71600 | E25: 31854520.85 | F25: =IF(ISERROR(D25/C25*E25), 0, D25/C25*E25) -> 79697.52229
B27: Total | C27: =SUM(C17:C25) -> 1396965487 | D27: =SUM(D17:D25) -> 1828494.091 | E27: 760996623.4 | F27: 1598755.832 | H27: 0 | I27: 0 | J27: 0 | K27: 0 | L27: 0 | M27: 0 | N27: 0 | O27: 53493
M28: Balance as per Sheet 5 | N28: =ROUND('5. 2014 Continuity Schedule'!BE42, 0) -> 0
M29: Variance | N29: =N27-N28 -> 0
A31: Threshold Test
A32: Total Claim (including Account 1568) | B32: ='5. 2014 Continuity Schedule'!BE44 -> -1540588.13
A33: Total Claim for Threshold Test (All Group 1 Accounts) | B33: ='5. 2014 Continuity Schedule'!BE40 -> -1540588.13
A34: Threshold Test (Total claim per kWh) 2 | B34: =IF(ISERROR(B33/C27), 0, B33/C27) -> -0.001102810445 | D34: =IF(AND(B34>-0.001,B34<0.001),"Claim does not meet the threshold test.","") -> 
A36: =IF(AND(B34>-0.001, B34<0.001), AS1, "") -> 
A40: 1 Residual Account balance to be allocated to rate classes in proportion to the recovery share as established when rate riders were implemented.
A41: 2 The Threshold Test does not include the amount in 1568.
A42: 3 The proportion of customers for the Residential and GS<50 Classes will be used to allocate Account 1551.

Sheet 6. hidden (hidden)
E1: Billed kWh for Non-RPP Customers | F1: Estimated kW for Non-RPP Customers | G1: Distribution Revenue 1 | H1: 1590 Recovery Share Proportion* | I1: 1595 Recovery Share Proportion (2008) 2 | J1: 1595 Recovery Share Proportion (2009) 2 | K1: 1595 Recovery Share Proportion (2010) 2 | L1: 1595 Recovery Share Proportion (2011) 2 | M1: 1568 LRAM Variance Account Class Allocation
A2: Rate Class | B2: Unit | C2: Metered kWh | D2: Metered kW
A3: RESIDENTIAL | B3: $/kWh | C3: 393848053.7 | D3: 0 | E3: 22283799.06 | G3: 0 | H3: 0 | I3: 0 | J3: 0 | K3: 0 | L3: 0 | M3: 0 | N3: 0 | O3: 47976
A4: GENERAL SERVICE LESS THAN 50 KW | B4: $/kWh | C4: 179687810.2 | D4: 0 | E4: 30835429.63 | G4: 0 | H4: 0 | I4: 0 | J4: 0 | K4: 0 | L4: 0 | M4: 0 | N4: 0 | O4: 5517
A5: GENERAL SERVICE 50 TO 4,999 KW | B5: $/kW | C5: 700757939 | D5: 1570139 | E5: 668279224.1 | G5: 0 | H5: 0 | I5: 0 | J5: 0 | K5: 0 | L5: 0 | M5: 0 | N5: 0 | O5: 0
A6: GENERAL SERVICE GREATER THAN 50 kW - WMP | B6: $/kW | C6: 4974750 | D6: 11068 | E6: 0 | G6: 0 | H6: 0 | I6: 0 | J6: 0 | K6: 0 | L6: 0 | M6: 0 | N6: 0 | O6: 0
A7: LARGE USE | B7: $/kW | C7: 79638262.48 | D7: 153851.8077 | E7: 0 | G7: 0 | H7: 0 | I7: 0 | J7: 0 | K7: 0 | L7: 0 | M7: 0 | N7: 0 | O7: 0
A8: UNMETERED SCATTERED LOAD | B8: $/kWh | C8: 1648665.919 | D8: 0 | E8: 2746.68 | G8: 0 | H8: 0 | I8: 0 | J8: 0 | K8: 0 | L8: 0 | M8: 0 | N8: 0 | O8: 0
A9: STREET LIGHTING | B9: $/kW | C9: 7792005.668 | D9: 21835.28338 | E9: 7740903.14 | G9: 0 | H9: 0 | I9: 0 | J9: 0 | K9: 0 | L9: 0 | M9: 0 | N9: 0 | O9: 0
A10: microFIT | B10: 0 | C10: 0 | D10: 0 | E10: 0 | G10: 0 | H10: 0 | I10: 0 | J10: 0 | K10: 0 | L10: 0 | M10: 0 | N10: 0 | O10: 0
A11: EMBEDDED DISTRIBUTOR | B11: $/kW | C11: 28618000 | D11: 71600 | E11: 31854520.85 | G11: 0 | H11: 0 | I11: 0 | J11: 0 | K11: 0 | L11: 0 | M11: 0 | N11: 0 | O11: 0

Sheet 7. Allocating Def-Var Balances
A13: No input required. This workshseet allocates the deferral/variance account balances (Group 1, 1589, and 1568) to the appropriate classes as per the EDDVAR Report dated July 31, 2009
A15: Allocation of Group 1 Accounts (including Account 1568)
C16: % of Total kWh | D16: % of Total non-RPP kWh | E16: % of Customer Numbers ** | N16: 1595 (2008) | O16: 1595 (2009) | P16: 1595 (2010) | Q16: 1595 (2011) | R16: 1595 (2012) | S16: 1568 | X16: % of Total kWh
A17: Rate Class | F17: 1550 | G17: 1551 | H17: 1580 | I17: 1584 | J17: 1586 | K17: 1588 | L17: 1589 | M17: 1590 | W17: kWh without WMP
A19: RESIDENTIAL | C19: =VLOOKUP(A19, '6. Billing Det. for Def-Var'!A17:D25, 3,0)/'6. Billing Det. for Def-Var'!C27 -> 0.2819311267 | D19: =VLOOKUP(A19, '6. Billing Det. for Def-Var'!A17:E25, 5,0)/'6. Billing Det. for Def-Var'!E27 -> 0.02928238887 | E19: =VLOOKUP(A19, '6. Billing Det. for Def-Var'!A17:O25, 15,0)/'6. Billing Det. for Def-Var'!O27 -> 0.8968650104 | F19: =C19* '5. 2014 Continuity Schedule'!BE24 -> 29378.43664 | G19: =E19* '5. 2014 Continuity Schedule'!BE25 -> 29818.66711 | H19: =X19* '5. 2014 Continuity Schedule'!BE26 -> -269972.1631 | I19: =C19* '5. 2014 Continuity Schedule'!BE27 -> -122299.4429 | J19: =C19* '5. 2014 Continuity Schedule'!BE28 -> -77506.94707 | K19: =X19* '5. 2014 Continuity Schedule'!BE29 -> -133351.2189 | L19: =D19* '5. 2014 Continuity Schedule'!BE30 -> 13357.04467 | M19: ='6. Billing Det. for Def-Var'!H17* '5. 2014 Continuity Schedule'!BE31 -> 0 | N19: ='6. Billing Det. for Def-Var'!I17* '5. 2014 Continuity Schedule'!BE32 -> 0 | O19: ='6. Billing Det. for Def-Var'!J17* '5. 2014 Continuity Schedule'!BE33 -> 0 | P19: ='6. Billing Det. for Def-Var'!K17* '5. 2014 Continuity Schedule'!BE34 -> 0 | Q19: ='6. Billing Det. for Def-Var'!L17* '5. 2014 Continuity Schedule'!BE35 -> 0 | R19: ='6. Billing Det. for Def-Var'!M17* '5. 2014 Continuity Schedule'!BE36 -> 0 | S19: ='6. Billing Det. for Def-Var'!N17 -> 0 | W19: =VLOOKUP(A19, '6. Billing Det. for Def-Var'!A17:D25, 3,0) -> 393848053.7 | X19: 0.282938703
A20: GENERAL SERVICE LESS THAN 50 KW | C20: =VLOOKUP(A20, '6. Billing Det. for Def-Var'!A17:D25, 3,0)/'6. Billing Det. for Def-Var'!C27 -> 0.1286272366 | D20: =VLOOKUP(A20, '6. Billing Det. for Def-Var'!A17:E25, 5,0)/'6. Billing Det. for Def-Var'!E27 -> 0.04051979823 | E20: =VLOOKUP(A20, '6. Billing Det. for Def-Var'!A17:O25, 15,0)/'6. Billing Det. for Def-Var'!O27 -> 0.1031349896 | F20: =C20* '5. 2014 Continuity Schedule'!BE24 -> 13403.51158 | G20: =E20* '5. 2014 Continuity Schedule'!BE25 -> 3428.997549 | H20: =X20* '5. 2014 Continuity Schedule'!BE26 -> -123171.1224 | I20: =C20* '5. 2014 Continuity Schedule'!BE27 -> -55797.45508 | J20: =C20* '5. 2014 Continuity Schedule'!BE28 -> -35361.48895 | K20: =X20* '5. 2014 Continuity Schedule'!BE29 -> -60839.67736 | L20: =D20* '5. 2014 Continuity Schedule'!BE30 -> 18482.94404 | M20: ='6. Billing Det. for Def-Var'!H18* '5. 2014 Continuity Schedule'!BE31 -> 0 | N20: ='6. Billing Det. for Def-Var'!I18* '5. 2014 Continuity Schedule'!BE32 -> 0 | O20: ='6. Billing Det. for Def-Var'!J18* '5. 2014 Continuity Schedule'!BE33 -> 0 | P20: ='6. Billing Det. for Def-Var'!K18* '5. 2014 Continuity Schedule'!BE34 -> 0 | Q20: ='6. Billing Det. for Def-Var'!L18* '5. 2014 Continuity Schedule'!BE35 -> 0 | R20: ='6. Billing Det. for Def-Var'!M18* '5. 2014 Continuity Schedule'!BE36 -> 0 | S20: ='6. Billing Det. for Def-Var'!N18 -> 0 | W20: =VLOOKUP(A20, '6. Billing Det. for Def-Var'!A17:D25, 3,0) -> 179687810.2 | X20: 0.1290869296
A21: GENERAL SERVICE 50 TO 4,999 KW | C21: =VLOOKUP(A21, '6. Billing Det. for Def-Var'!A17:D25, 3,0)/'6. Billing Det. for Def-Var'!C27 -> 0.5016286698 | D21: =VLOOKUP(A21, '6. Billing Det. for Def-Var'!A17:E25, 5,0)/'6. Billing Det. for Def-Var'!E27 -> 0.8781631922 | F21: =C21* '5. 2014 Continuity Schedule'!BE24 -> 52271.86606 | G21: =E21* '5. 2014 Continuity Schedule'!BE25 -> 0 | H21: =X21* '5. 2014 Continuity Schedule'!BE26 -> -480350.5688 | I21: =C21* '5. 2014 Continuity Schedule'!BE27 -> -217602.4605 | J21: =C21* '5. 2014 Continuity Schedule'!BE28 -> -137904.9813 | K21: =X21* '5. 2014 Continuity Schedule'!BE29 -> -237266.4393 | L21: =D21* '5. 2014 Continuity Schedule'!BE30 -> 400570.6308 | M21: ='6. Billing Det. for Def-Var'!H19* '5. 2014 Continuity Schedule'!BE31 -> 0 | N21: ='6. Billing Det. for Def-Var'!I19* '5. 2014 Continuity Schedule'!BE32 -> 0 | O21: ='6. Billing Det. for Def-Var'!J19* '5. 2014 Continuity Schedule'!BE33 -> 0 | P21: ='6. Billing Det. for Def-Var'!K19* '5. 2014 Continuity Schedule'!BE34 -> 0 | Q21: ='6. Billing Det. for Def-Var'!L19* '5. 2014 Continuity Schedule'!BE35 -> 0 | R21: ='6. Billing Det. for Def-Var'!M19* '5. 2014 Continuity Schedule'!BE36 -> 0 | S21: ='6. Billing Det. for Def-Var'!N19 -> 0 | W21: =VLOOKUP(A21, '6. Billing Det. for Def-Var'!A17:D25, 3,0) -> 700757939 | X21: 0.5034214096
A22: GENERAL SERVICE GREATER THAN 50 kW - WMP | C22: =VLOOKUP(A22, '6. Billing Det. for Def-Var'!A17:D25, 3,0)/'6. Billing Det. for Def-Var'!C27 -> 0.0035611116 | D22: =VLOOKUP(A22, '6. Billing Det. for Def-Var'!A17:E25, 5,0)/'6. Billing Det. for Def-Var'!E27 -> 0 | F22: =C22* '5. 2014 Continuity Schedule'!BE24 -> 371.0831533 | G22: =E22* '5. 2014 Continuity Schedule'!BE25 -> 0 | H22: 0 | I22: =C22* '5. 2014 Continuity Schedule'!BE27 -> -1544.781415 | J22: =C22* '5. 2014 Continuity Schedule'!BE28 -> -979.0011182 | K22: 0 | L22: =D22* '5. 2014 Continuity Schedule'!BE30 -> 0 | M22: ='6. Billing Det. for Def-Var'!H20* '5. 2014 Continuity Schedule'!BE31 -> 0 | N22: ='6. Billing Det. for Def-Var'!I20* '5. 2014 Continuity Schedule'!BE32 -> 0 | O22: ='6. Billing Det. for Def-Var'!J20* '5. 2014 Continuity Schedule'!BE33 -> 0 | P22: ='6. Billing Det. for Def-Var'!K20* '5. 2014 Continuity Schedule'!BE34 -> 0 | Q22: ='6. Billing Det. for Def-Var'!L20* '5. 2014 Continuity Schedule'!BE35 -> 0 | R22: ='6. Billing Det. for Def-Var'!M20* '5. 2014 Continuity Schedule'!BE36 -> 0 | S22: ='6. Billing Det. for Def-Var'!N20 -> 0 | X22: 0
A23: LARGE USE | C23: =VLOOKUP(A23, '6. Billing Det. for Def-Var'!A17:D25, 3,0)/'6. Billing Det. for Def-Var'!C27 -> 0.05700803866 | D23: =VLOOKUP(A23, '6. Billing Det. for Def-Var'!A17:E25, 5,0)/'6. Billing Det. for Def-Var'!E27 -> 0 | F23: =C23* '5. 2014 Continuity Schedule'!BE24 -> 5940.482952 | G23: =E23* '5. 2014 Continuity Schedule'!BE25 -> 0 | H23: =X23* '5. 2014 Continuity Schedule'!BE26 -> -54589.86984 | I23: =C23* '5. 2014 Continuity Schedule'!BE27 -> -24729.62617 | J23: =C23* '5. 2014 Continuity Schedule'!BE28 -> -15672.3349 | K23: =X23* '5. 2014 Continuity Schedule'!BE29 -> -26964.35662 | L23: =D23* '5. 2014 Continuity Schedule'!BE30 -> 0 | M23: ='6. Billing Det. for Def-Var'!H21* '5. 2014 Continuity Schedule'!BE31 -> 0 | N23: ='6. Billing Det. for Def-Var'!I21* '5. 2014 Continuity Schedule'!BE32 -> 0 | O23: ='6. Billing Det. for Def-Var'!J21* '5. 2014 Continuity Schedule'!BE33 -> 0 | P23: ='6. Billing Det. for Def-Var'!K21* '5. 2014 Continuity Schedule'!BE34 -> 0 | Q23: ='6. Billing Det. for Def-Var'!L21* '5. 2014 Continuity Schedule'!BE35 -> 0 | R23: ='6. Billing Det. for Def-Var'!M21* '5. 2014 Continuity Schedule'!BE36 -> 0 | S23: ='6. Billing Det. for Def-Var'!N21 -> 0 | W23: =VLOOKUP(A23, '6. Billing Det. for Def-Var'!A17:D25, 3,0) -> 79638262.48 | X23: 0.05721177618
A24: UNMETERED SCATTERED LOAD | C24: =VLOOKUP(A24, '6. Billing Det. for Def-Var'!A17:D25, 3,0)/'6. Billing Det. for Def-Var'!C27 -> 0.001180176557 | D24: =VLOOKUP(A24, '6. Billing Det. for Def-Var'!A17:E25, 5,0)/'6. Billing Det. for Def-Var'!E27 -> 3.609319563e-06 | F24: =C24* '5. 2014 Continuity Schedule'!BE24 -> 122.9794759 | G24: =E24* '5. 2014 Continuity Schedule'!BE25 -> 0 | H24: =X24* '5. 2014 Continuity Schedule'!BE26 -> -1130.11579 | I24: =C24* '5. 2014 Continuity Schedule'!BE27 -> -511.9510468 | J24: =C24* '5. 2014 Continuity Schedule'!BE28 -> -324.4476161 | K24: =X24* '5. 2014 Continuity Schedule'!BE29 -> -558.2142854 | L24: =D24* '5. 2014 Continuity Schedule'!BE30 -> 1.646376695 | M24: ='6. Billing Det. for Def-Var'!H22* '5. 2014 Continuity Schedule'!BE31 -> 0 | N24: ='6. Billing Det. for Def-Var'!I22* '5. 2014 Continuity Schedule'!BE32 -> 0 | O24: ='6. Billing Det. for Def-Var'!J22* '5. 2014 Continuity Schedule'!BE33 -> 0 | P24: ='6. Billing Det. for Def-Var'!K22* '5. 2014 Continuity Schedule'!BE34 -> 0 | Q24: ='6. Billing Det. for Def-Var'!L22* '5. 2014 Continuity Schedule'!BE35 -> 0 | R24: ='6. Billing Det. for Def-Var'!M22* '5. 2014 Continuity Schedule'!BE36 -> 0 | S24: ='6. Billing Det. for Def-Var'!N22 -> 0 | W24: =VLOOKUP(A24, '6. Billing Det. for Def-Var'!A17:D25, 3,0) -> 1648665.919 | X24: 0.001184394318
A25: STREET LIGHTING | C25: =VLOOKUP(A25, '6. Billing Det. for Def-Var'!A17:D25, 3,0)/'6. Billing Det. for Def-Var'!C27 -> 0.005577808285 | D25: =VLOOKUP(A25, '6. Billing Det. for Def-Var'!A17:E25, 5,0)/'6. Billing Det. for Def-Var'!E27 -> 0.01017205977 | F25: =C25* '5. 2014 Continuity Schedule'!BE24 -> 581.2316264 | G25: =E25* '5. 2014 Continuity Schedule'!BE25 -> 0 | H25: =X25* '5. 2014 Continuity Schedule'!BE26 -> -5341.208634 | I25: =C25* '5. 2014 Continuity Schedule'!BE27 -> -2419.608128 | J25: =C25* '5. 2014 Continuity Schedule'!BE28 -> -1533.420224 | K25: =X25* '5. 2014 Continuity Schedule'!BE29 -> -2638.259714 | L25: =D25* '5. 2014 Continuity Schedule'!BE30 -> 4639.944416 | M25: ='6. Billing Det. for Def-Var'!H23* '5. 2014 Continuity Schedule'!BE31 -> 0 | N25: ='6. Billing Det. for Def-Var'!I23* '5. 2014 Continuity Schedule'!BE32 -> 0 | O25: ='6. Billing Det. for Def-Var'!J23* '5. 2014 Continuity Schedule'!BE33 -> 0 | P25: ='6. Billing Det. for Def-Var'!K23* '5. 2014 Continuity Schedule'!BE34 -> 0 | Q25: ='6. Billing Det. for Def-Var'!L23* '5. 2014 Continuity Schedule'!BE35 -> 0 | R25: ='6. Billing Det. for Def-Var'!M23* '5. 2014 Continuity Schedule'!BE36 -> 0 | S25: ='6. Billing Det. for Def-Var'!N23 -> 0 | W25: =VLOOKUP(A25, '6. Billing Det. for Def-Var'!A17:D25, 3,0) -> 7792005.668 | X25: 0.005597742471
A26: microFIT | C26: 0 | D26: 0 | E26: 0 | F26: =C26* '5. 2014 Continuity Schedule'!BE24 -> 0 | G26: =E26* '5. 2014 Continuity Schedule'!BE25 -> 0 | H26: =X26* '5. 2014 Continuity Schedule'!BE26 -> 0 | I26: =C26* '5. 2014 Continuity Schedule'!BE27 -> 0 | J26: =C26* '5. 2014 Continuity Schedule'!BE28 -> 0 | K26: =X26* '5. 2014 Continuity Schedule'!BE29 -> 0 | L26: =D26* '5. 2014 Continuity Schedule'!BE30 -> 0 | M26: ='6. Billing Det. for Def-Var'!H24* '5. 2014 Continuity Schedule'!BE31 -> 0 | N26: ='6. Billing Det. for Def-Var'!I24* '5. 2014 Continuity Schedule'!BE32 -> 0 | O26: ='6. Billing Det. for Def-Var'!J24* '5. 2014 Continuity Schedule'!BE33 -> 0 | P26: ='6. Billing Det. for Def-Var'!K24* '5. 2014 Continuity Schedule'!BE34 -> 0 | Q26: ='6. Billing Det. for Def-Var'!L24* '5. 2014 Continuity Schedule'!BE35 -> 0 | R26: ='6. Billing Det. for Def-Var'!M24* '5. 2014 Continuity Schedule'!BE36 -> 0 | S26: ='6. Billing Det. for Def-Var'!N24 -> 0 | W26: =VLOOKUP(A26, '6. Billing Det. for Def-Var'!A17:D25, 3,0) -> 0 | X26: 0
A27: EMBEDDED DISTRIBUTOR | C27: =VLOOKUP(A27, '6. Billing Det. for Def-Var'!A17:D25, 3,0)/'6. Billing Det. for Def-Var'!C27 -> 0.0204858318 | D27: =VLOOKUP(A27, '6. Billing Det. for Def-Var'!A17:E25, 5,0)/'6. Billing Det. for Def-Var'!E27 -> 0.04185895163 | F27: =C27* '5. 2014 Continuity Schedule'!BE24 -> 2134.711831 | G27: =E27* '5. 2014 Continuity Schedule'!BE25 -> 0 | H27: =X27* '5. 2014 Continuity Schedule'!BE26 -> -19616.86313 | I27: =C27* '5. 2014 Continuity Schedule'!BE27 -> -8886.588174 | J27: =C27* '5. 2014 Continuity Schedule'!BE28 -> -5631.851651 | K27: =X27* '5. 2014 Continuity Schedule'!BE29 -> -9689.638293 | L27: =D27* '5. 2014 Continuity Schedule'!BE30 -> 19093.79351 | M27: ='6. Billing Det. for Def-Var'!H25* '5. 2014 Continuity Schedule'!BE31 -> 0 | N27: ='6. Billing Det. for Def-Var'!I25* '5. 2014 Continuity Schedule'!BE32 -> 0 | O27: ='6. Billing Det. for Def-Var'!J25* '5. 2014 Continuity Schedule'!BE33 -> 0 | P27: ='6. Billing Det. for Def-Var'!K25* '5. 2014 Continuity Schedule'!BE34 -> 0 | Q27: ='6. Billing Det. for Def-Var'!L25* '5. 2014 Continuity Schedule'!BE35 -> 0 | R27: ='6. Billing Det. for Def-Var'!M25* '5. 2014 Continuity Schedule'!BE36 -> 0 | S27: ='6. Billing Det. for Def-Var'!N25 -> 0 | W27: =VLOOKUP(A27, '6. Billing Det. for Def-Var'!A17:D25, 3,0) -> 28618000 | X27: 0.02055904486
A29: Total | C29: =SUM(C19:C27) -> 1 | D29: 1 | E29: 1 | F29: 104204.3033 | G29: 33247.66466 | H29: -954171.9116 | I29: -433791.9134 | J29: -274914.4728 | K29: -471307.8045 | L29: 456146.0038 | M29: 0 | N29: 0 | O29: 0 | P29: 0 | Q29: 0 | R29: 0 | S29: 0 | W29: =SUM(W19:W27) -> 1391990737 | X29: =SUM(X19:X27) -> 1
A32: * RSVA - Power (Excluding Global Adjustment)
A33: ** Used to allocate Account 1551 as this account records the variances arising from the Smart Metering Entity Charges to Residential and GS<50 customers.

Sheet 8. Calculation of Def-Var RR
A12: Input required at cell C15 only. This workshseet calculates rate riders related to the Deferral/Variance Account Disposition (if applicable), associated rate riders for the global adjustment account (1589) and Account 1568. Rate Riders will not be generated for the microFIT class.
A15: Please indicate the Rate Rider Recovery Period (in years) | C15: 1
E17: Balance of Accounts Allocated by kWh/kW (RPP) or Distribution Revenue | F17: Deferral/Variance Account Rate Rider | G17: Allocation of Balance in Account 1589 | H17: Billed kWh or Estimated kW for Non-RPP Customers | I17: Global Adjustment Rate Rider | J17: Allocation of Account 1568 | K17: Account 1568 Rate Rider
A18: Rate Class | B18: Unit | C18: Billed kWh | D18: Billed kW or kVA
A20: RESIDENTIAL | B20: $/kWh | C20: 393848053.7 | E20: =SUM('7. Allocating Def-Var Balances'!F19:K19)+SUM('7. Allocating Def-Var Balances'!M19:R19) -> -543932.6682 | F20: -0.0014 | G20: 13357.04467 | H20: 22283799.06 | I20: 0.0006
A21: GENERAL SERVICE LESS THAN 50 KW | B21: $/kWh | C21: 179687810.2 | E21: =SUM('7. Allocating Def-Var Balances'!F20:K20)+SUM('7. Allocating Def-Var Balances'!M20:R20) -> -258337.2346 | F21: -0.0014 | G21: 18482.94404 | H21: 30835429.63 | I21: 0.0006
A22: GENERAL SERVICE 50 TO 4,999 KW | B22: $/kW | C22: 700757939 | D22: 1570139 | E22: =SUM('7. Allocating Def-Var Balances'!F21:K21)+SUM('7. Allocating Def-Var Balances'!M21:R21) -> -1020852.584 | F22: -0.6502 | G22: 400570.6308 | H22: 1497366.229 | I22: 0.2675
A23: GENERAL SERVICE GREATER THAN 50 kW - WMP | B23: $/kW | C23: 4974750 | D23: 11068 | E23: =SUM('7. Allocating Def-Var Balances'!F22:K22)+SUM('7. Allocating Def-Var Balances'!M22:R22) -> -2152.699379 | F23: -0.1945 | G23: 0 | H23: 0 | I23: 0
A24: LARGE USE | B24: $/kW | C24: 79638262.48 | D24: 153851.8077 | E24: =SUM('7. Allocating Def-Var Balances'!F23:K23)+SUM('7. Allocating Def-Var Balances'!M23:R23) -> -116015.7046 | F24: -0.7541 | G24: 0 | H24: 0 | I24: 0
A25: UNMETERED SCATTERED LOAD | B25: $/kWh | C25: 1648665.919 | E25: =SUM('7. Allocating Def-Var Balances'!F24:K24)+SUM('7. Allocating Def-Var Balances'!M24:R24) -> -2401.749262 | F25: -0.0015 | G25: 1.646376695 | H25: 2746.68 | I25: 0.0006
A26: STREET LIGHTING | B26: $/kW | C26: 7792005.668 | D26: 21835.28338 | E26: =SUM('7. Allocating Def-Var Balances'!F25:K25)+SUM('7. Allocating Def-Var Balances'!M25:R25) -> -11351.26507 | F26: -0.5199 | G26: 4639.944416 | H26: 21692.08044 | I26: 0.2139
A27: microFIT
A28: EMBEDDED DISTRIBUTOR | B28: $/kW | C28: 28618000 | D28: 71600 | E28: =SUM('7. Allocating Def-Var Balances'!F27:K27)+SUM('7. Allocating Def-Var Balances'!M27:R27) -> -41690.22942 | F28: -0.5823 | G28: 19093.79351 | H28: 79697.52229 | I28: 0.2396
A29: Total | C29: =SUM(C20:C28) -> 1396965487 | D29: =SUM(D20:D28) -> 1828494.091 | E29: =SUM(E20:E28) -> -1996734.134 | G29: =SUM(G20:G28) -> 456146.0038 | H29: =SUM(H20:H28) -> 54720731.2 | J29: =SUM(J20:J28) -> 0
A33: One or more rate classes appear to have negligible rate riders in columns F and/or I. As per Appendix B of the Filing Requirements, please provide details of the Applicant's proposal in the Manager's Summary.

Sheet 9. STS - Billing Det & Rates
A11: Shared Tax Savings
A13: ="Enter your " & '1. Information Sheet'!F32 & " Board-Approved Billing Determinents into columns B, C and D." -> Enter your 2011 Board-Approved Billing Determinents into columns B, C and D.
A14: ="Enter your " & '1. Information Sheet'!F32 & " Board-Approved Base monthly service and volumetric charges into columns G, H and I." -> Enter your 2011 Board-Approved Base monthly service and volumetric charges into columns G, H and I.
A16: Rate Class | B16: Units | C16: Re-based Billed Customers or Connections | D16: Re-based Billed kWh | E16: Re-based Billed kW (if applicable) | G16: ='1. Information Sheet'!F32 &" Base Monthly Service Charge" -> 2011 Base Monthly Service Charge | H16: ='1. Information Sheet'!F32 &" Base Distribution Volumetric Rate kWh" -> 2011 Base Distribution Volumetric Rate kWh | I16: ='1. Information Sheet'!F32 &" Base Distribution Volumetric Rate kW" -> 2011 Base Distribution Volumetric Rate kW
A17: RESIDENTIAL | B17: $/kWh | C17: 46238 | D17: 393848053.7 | E17: 0 | G17: 14.56 | H17: 0.0184 | I17: 0
A18: GENERAL SERVICE LESS THAN 50 KW | B18: $/kWh | C18: 5427.547578 | D18: 179687810.2 | E18: 0 | G18: 30.63 | H18: 0.0137 | I18: 0
A19: GENERAL SERVICE 50 TO 4,999 KW | B19: $/kW | C19: 666.6431465 | D19: 705732689 | E19: 1581206.519 | G19: 162.82 | H19: 0 | I19: 4.3073
A20: GENERAL SERVICE GREATER THAN 50 kW - WMP | B20: $/kW | C20: 0 | D20: 0 | E20: 0 | G20: 0 | H20: 0 | I20: 0
A21: LARGE USE | B21: $/kW | C21: 1 | D21: 79638262.48 | E21: 153851.8077 | G21: 6686.47 | H21: 0 | I21: 3.1991
A22: UNMETERED SCATTERED LOAD | B22: $/kWh | C22: 547.0223936 | D22: 1648665.919 | E22: 0 | G22: 15.31 | H22: 0.019 | I22: 0
A23: STREET LIGHTING | B23: $/kW | C23: 13259.20557 | D23: 7792005.668 | E23: 21835.28338 | G23: 0.33 | H23: 0 | I23: 8.3232
A24: microFIT
A25: EMBEDDED DISTRIBUTOR | B25: $/kW | C25: 1 | D25: 28618000 | E25: 71600 | G25: 0 | H25: 0 | I25: 0.012

Sheet 10. STS - Rebased Rev
A12: Calculation of Rebased Revenue Requirement. No input required.
A15: Rate Class | C15: Re-based Billed Customers or Connections | D15: Re-based Billed kWh | E15: Re-based Billed kW | G15: Rate ReBal Base Service Charge | H15: Rate ReBal Base Distribution Volumetric Rate kWh | I15: Rate ReBal Base Distribution Volumetric Rate kW | K15: Service Charge Revenue | L15: Distribution Volumetric Rate Revenue kWh | M15: Distribution Volumetric Rate Revenue kW | N15: Revenue Requirement from Rates | P15: Service Charge % Revenue | Q15: Distribution Volumetric Rate % Revenue kWh | R15: Distribution Volumetric Rate % Revenue kW | S15: Total % Revenue
C16: A | D16: B | E16: C | G16: D | H16: E | I16: F | K16: G = A * D *12 | L16: H = B * E | M16: I = C * F | N16: J = G + H + I | P16: K = G / J | Q16: L = H / J | R16: M = I / J | S16: N = J / R
A17: RESIDENTIAL | C17: 46238 | D17: 393848053.7 | E17: 0 | G17: 14.56 | H17: 0.0184 | I17: 0 | K17: =G17*C17*12 -> 8078703.36 | L17: =H17*D17 -> 7246804.187 | M17: 0 | N17: =SUM(K17,L17,M17) -> 15325507.55 | P17: =IF(ISERROR(K17/N17),0,K17/N17) -> 0.5271409991 | Q17: =IF(ISERROR(L17/N17),0,L17/N17) -> 0.4728590009 | R17: =IF(ISERROR(M17/N17),0,M17/N17) -> 0 | S17: =N17/N26 -> 0.5314938543
A18: GENERAL SERVICE LESS THAN 50 KW | C18: 5427.547578 | D18: 179687810.2 | E18: 0 | G18: 30.63 | H18: 0.0137 | I18: 0 | K18: 1994949.388 | L18: =H18*D18 -> 2461723 | M18: 0 | N18: 4456672.388 | P18: 0.4476320479 | Q18: 0.5523679521 | R18: 0 | S18: =N18/N26 -> 0.1545589259
A19: GENERAL SERVICE 50 TO 4,999 KW | C19: 666.6431465 | D19: 705732689 | E19: 1581206.519 | G19: 162.82 | H19: 0 | I19: 4.3073 | K19: 1302514.045 | L19: 0 | M19: =I19*E19 -> 6810730.841 | N19: 8113244.886 | P19: 0.16054169 | Q19: 0 | R19: 0.83945831 | S19: =N19/N26 -> 0.2813701133
A20: GENERAL SERVICE GREATER THAN 50 kW - WMP | C20: 0 | D20: 0 | E20: 0 | G20: 0 | H20: 0 | I20: 0 | K20: 0 | L20: 0 | M20: 0 | N20: 0 | P20: 0 | Q20: 0 | R20: 0 | S20: =N20/N26 -> 0
A21: LARGE USE | C21: 1 | D21: 79638262.48 | E21: 153851.8077 | G21: 6686.47 | H21: 0 | I21: 3.1991 | K21: 80237.64 | L21: 0 | M21: =I21*E21 -> 492187.3179 | N21: 572424.9579 | P21: 0.1401714563 | Q21: 0 | R21: 0.8598285437 | S21: =N21/N26 -> 0.01985189373
A22: UNMETERED SCATTERED LOAD | C22: 547.0223936 | D22: 1648665.919 | E22: 0 | G22: 15.31 | H22: 0.019 | I22: 0 | K22: 100498.9541 | L22: =H22*D22 -> 31324.65246 | M22: 0 | N22: 131823.6066 | P22: 0.7623744846 | Q22: 0.2376255154 | R22: 0 | S22: =N22/N26 -> 0.004571687857
A23: STREET LIGHTING | C23: 13259.20557 | D23: 7792005.668 | E23: 21835.28338 | G23: 0.33 | H23: 0 | I23: 8.3232 | K23: 52506.45404 | L23: 0 | M23: =I23*E23 -> 181739.4307 | N23: 234245.8847 | P23: 0.2241510202 | Q23: 0 | R23: 0.7758489798 | S23: =N23/N26 -> 0.008123727566
A24: microFIT | K24: 0 | L24: 0 | M24: 0 | N24: 0 | P24: 0 | Q24: 0 | R24: 0 | S24: =N24/N26 -> 0
A25: EMBEDDED DISTRIBUTOR | C25: 1 | D25: 28618000 | E25: 71600 | G25: 0 | H25: 0 | I25: 0.012 | K25: 0 | L25: 0 | M25: =I25*E25 -> 859.2 | N25: 859.2 | P25: 0 | Q25: 0 | R25: 1 | S25: =N25/N26 -> 2.979735048e-05
A26: Total | C26: =SUM(C17:C25) -> 66140.41868 | D26: =SUM(D17:D25) -> 1396965487 | E26: =SUM(E17:E25) -> 1828493.61 | K26: =SUM(K17:K25) -> 11609409.84 | L26: =SUM(L17:L25) -> 9739851.84 | M26: =SUM(M17:M25) -> 7485516.789 | N26: =SUM(N17:N25) -> 28834778.47 | S26: =SUM(S17:S25) -> 1

Sheet 9. STS - Billing Det & Rate HID (hidden)
A11: Shared Tax Savings
A12: ="Enter your " & '1. Information Sheet'!F32 & " Board-Approved Billing Determinents into columns B, C and D." -> Enter your 2011 Board-Approved Billing Determinents into columns B, C and D.
A16: Rate Class | B16: Units | C16: Re-based Billed Customers or Connections | D16: Re-based Billed kWh | E16: Re-based Billed kW (if applicable) | G16: ='1. Information Sheet'!F32 &" Base Monthly Service Charge" -> 2011 Base Monthly Service Charge | H16: ='1. Information Sheet'!F32 &" Base Distribution Volumetric Rate kWh" -> 2011 Base Distribution Volumetric Rate kWh | I16: ='1. Information Sheet'!F32 &" Base Distribution Volumetric Rate kW" -> 2011 Base Distribution Volumetric Rate kW
A17: RESIDENTIAL | B17: $/kWh | C17: 46238 | D17: 393848053.7 | E17: 0 | G17: 14.56 | H17: 0.0184 | I17: 0
A18: GENERAL SERVICE LESS THAN 50 KW | B18: $/kWh | C18: 5427.547578 | D18: 179687810.2 | E18: 0 | G18: 30.63 | H18: 0.0137 | I18: 0
A19: GENERAL SERVICE 50 TO 4,999 KW | B19: $/kW | C19: 666.6431465 | D19: 705732689 | E19: 1581206.519 | G19: 162.82 | H19: 0 | I19: 4.3073
A20: GENERAL SERVICE GREATER THAN 50 kW - WMP | B20: $/kW | C20: 0 | D20: 0 | E20: 0 | G20: 0 | H20: 0 | I20: 0
A21: LARGE USE | B21: $/kW | C21: 1 | D21: 79638262.48 | E21: 153851.8077 | G21: 6686.47 | H21: 0 | I21: 3.1991
A22: UNMETERED SCATTERED LOAD | B22: $/kWh | C22: 547.0223936 | D22: 1648665.919 | E22: 0 | G22: 15.31 | H22: 0.019 | I22: 0
A23: STREET LIGHTING | B23: $/kW | C23: 13259.20557 | D23: 7792005.668 | E23: 21835.28338 | G23: 0.33 | H23: 0 | I23: 8.3232
A24: microFIT | B24: 0 | C24: 0 | D24: 0 | E24: 0 | G24: 0 | H24: 0 | I24: 0
A25: EMBEDDED DISTRIBUTOR | B25: $/kW | C25: 1 | D25: 28618000 | E25: 71600 | G25: 0 | H25: 0 | I25: 0.012

Sheet 11. STS - Tax Change
T1: Rate Base | U1: Federal Tax Rate
T2: 500000 | U2: 0.11
T3: 10000000 | U3: 0.11
T4: =T3+100000 -> 10100000 | U4: 0.11
T5: =T4+100000 -> 10200000 | U5: 0.11
T6: 10300000 | U6: 0.11
T7: 10400000 | U7: 0.11
T8: 10500000 | U8: 0.11
T9: 10600000 | U9: 0.11
T10: 10700000 | U10: 0.11
T11: 10800000 | U11: 0.11
T12: 10900000 | U12: 0.11
A13: Summary - Sharing of Tax Change Forecast Amounts | T13: 11000000 | U13: 0.11
T14: 11100000 | U14: 0.111
A15: ="For the " & '1. Information Sheet'!F32 & " year, enter any Tax Credits from the Cost of Service Tax Calculation (Positive #)" -> For the 2011 year, enter any Tax Credits from the Cost of Service Tax Calculation (Positive #) | L15: 136997 | T15: 11200000 | U15: =U14+0.13% -> 0.1123 | V15: =U15-U14 -> 0.0013
T16: 11300000 | U16: =U15+0.13% -> 0.1136 | V16: =U16-U15 -> 0.0013
T17: 11400000 | U17: 0.1149 | V17: 0.0013
A18: 1. Tax Related Amounts Forecast from Capital Tax Rate Changes | L18: ='1. Information Sheet'!F32 -> 2011 | N18: 2015 | T18: 11500000 | U18: 0.1162 | V18: 0.0013
A19: Taxable Capital (if you are not claiming capital tax, please enter your Board-Approved Rate Base) | L19: 150996205.6 | N19: =L19 -> 150996205.6 | T19: 11600000 | U19: =U18+0.12% -> 0.1174 | V19: 0.0012
T20: 11700000 | U20: =U19+0.12% -> 0.1186 | V20: 0.0012
A21: Deduction from taxable capital up to $15,000,000 | N21: =L21 -> 0 | T21: 11800000 | U21: 0.1198 | V21: 0.0012
T22: 11900000 | U22: 0.121 | V22: 0.0012
A23: Net Taxable Capital | L23: =L19-L21 -> 150996205.6 | N23: =N19-N21 -> 150996205.6 | T23: 12000000 | U23: =U22+0.112% -> 0.12212 | V23: 0.00112
T24: 12100000 | U24: =U23+0.112% -> 0.12324 | V24: 0.00112
A25: Rate | N25: 0 | T25: 12200000 | U25: 0.12436 | V25: 0.00112
T26: 12300000 | U26: 0.12548 | V26: 0.00112
A27: Ontario Capital Tax (Deductible, not grossed-up) | L27: =IF(L23>0, L23*L25, 0)*181/365 -> 0 | N27: 0 | T27: 12400000 | U27: 0.1266 | V27: 0.00112
T28: 12500000 | U28: 0.12772 | V28: 0.00112
A29: 2. Tax Related Amounts Forecast from lncome Tax Rate Changes | T29: 12600000 | U29: =U28+0.102% -> 0.12874 | V29: 0.00102
A30: Regulatory Taxable Income | L30: 3183169.7 | N30: =L30 -> 3183169.7 | T30: 12700000 | U30: =U29+0.102% -> 0.12976 | V30: 0.00102
T31: 12800000 | U31: 0.13078 | V31: 0.00102
A32: Corporate Tax Rate | L32: 0.2412016895 | N32: =IF(N30=0,0,IF(N30<=500000,4.5%+11%,IF(N30>500000,(11.5%*N30-35000)/N30+VLOOKUP(N19,T:U,2,TRUE),""))) -> 0.2540046704 | T32: 12900000 | U32: 0.1318 | V32: 0.00102
T33: 13000000 | U33: 0.13282 | V33: 0.00102
A34: Tax Impact | L34: 767785.91 | N34: =N30*N32-L15 -> 671542.9705 | T34: 13100000 | U34: =U33+0.096% -> 0.13378 | V34: 0.00096
T35: 13200000 | U35: =U34+0.096% -> 0.13474 | V35: 0.00096
A36: Grossed-up Tax Amount | L36: 1011844.52 | N36: =N34/(1-N32) -> 900197.2852 | T36: 13300000 | U36: 0.1357 | V36: 0.00096
T37: 13400000 | U37: 0.13666 | V37: 0.00096
A38: Tax Related Amounts Forecast from Capital Tax Rate Changes | L38: =L27 -> 0 | N38: =N27 -> 0 | T38: 13500000 | U38: 0.13762 | V38: 0.00096
T39: 13600000 | U39: =U38+0.088% -> 0.1385 | V39: 0.00088
A40: Tax Related Amounts Forecast from lncome Tax Rate Changes | L40: =L36 -> 1011844.52 | N40: =N36 -> 900197.2852 | T40: 13700000 | U40: =U39+0.088% -> 0.13938 | V40: 0.00088
T41: 13800000 | U41: 0.14026 | V41: 0.00088
A42: Total Tax Related Amounts | L42: =SUM(L40,L38) -> 1011844.52 | N42: =SUM(N40,N38) -> 900197.2852 | T42: 13900000 | U42: 0.14114 | V42: 0.00088
T43: 14000000 | U43: 0.14202 | V43: 0.00088
A44: Incremental Tax Savings | N44: =N42-L42 -> -111647.2348 | T44: 14100000 | U44: =U43+0.082% -> 0.14284 | V44: 0.00082
T45: 14200000 | U45: =U44+0.082% -> 0.14366 | V45: 0.00082
A46: Sharing of Tax Savings (50%) | N46: =0.5*N44 -> -55823.61738 | T46: 14300000 | U46: 0.14448 | V46: 0.00082
T47: 14400000 | U47: 0.1453 | V47: 0.00082
T48: 14500000 | U48: 0.14612 | V48: 0.00082
T49: 14600000 | U49: =U48+0.076% -> 0.14688 | V49: 0.00076
T50: 14700000 | U50: =U49+0.076% -> 0.14764 | V50: 0.00076
T51: 14800000 | U51: 0.1484 | V51: 0.00076
T52: 14900000 | U52: 0.14916 | V52: 0.00076
T53: 15000000 | U53: 0.15 | V53: 0.00084

Sheet 12. STS - Tax Change Rate Rider
A11: This worksheet calculates a tax change volumetric rate rider. If the rate riders are material (round to 4 decimal places), then the outputs in columns M and O will appear on Sheet 27 - Final Tariff Schedule.
A15: Rate Class | C15: Total Revenue $ by Rate Class | E15: Total Revenue % by Rate Class | G15: Allocation of Tax Savings by Rate Class | I15: Billed kWh | K15: Billed kW | M15: Distribution Volumetric Rate kWh Rate Rider | O15: Distribution Volumetric Rate kW Rate Rider
A17: RESIDENTIAL | C17: 15325507.55 | E17: =C17/C26 -> 0.5314938543 | G17: =E17*G26 -> -29669.91096 | I17: 393848053.7 | K17: 0 | M17: =ROUND(G17/I17,5) -> -8e-05
A18: GENERAL SERVICE LESS THAN 50 KW | C18: 4456672.388 | E18: =C18/C26 -> 0.1545589259 | G18: =E18*G26 -> -8628.038745 | I18: 179687810.2 | K18: 0 | M18: =ROUND(G18/I18,5) -> -5e-05
A19: GENERAL SERVICE 50 TO 4,999 KW | C19: 8113244.886 | E19: =C19/C26 -> 0.2813701133 | G19: =E19*G26 -> -15707.09829 | I19: 705732689 | K19: 1581206.519 | O19: =ROUND(G19/K19,4) -> -0.0099
A20: GENERAL SERVICE GREATER THAN 50 kW - WMP | C20: 0 | E20: =C20/C26 -> 0 | G20: =E20*G26 -> 0 | I20: 0 | K20: 0
A21: LARGE USE | C21: 572424.9579 | E21: =C21/C26 -> 0.01985189373 | G21: =E21*G26 -> -1108.204572 | I21: 79638262.48 | K21: 153851.8077 | O21: =ROUND(G21/K21,4) -> -0.0072
A22: UNMETERED SCATTERED LOAD | C22: 131823.6066 | E22: =C22/C26 -> 0.004571687857 | G22: =E22*G26 -> -255.2081657 | I22: 1648665.919 | K22: 0 | M22: =ROUND(G22/I22,5) -> -0.00015
A23: STREET LIGHTING | C23: 234245.8847 | E23: =C23/C26 -> 0.008123727566 | G23: =E23*G26 -> -453.4958806 | I23: 7792005.668 | K23: 21835.28338 | O23: =ROUND(G23/K23,4) -> -0.0208
A24: microFIT | C24: 0 | E24: =C24/C26 -> 0 | G24: =E24*G26 -> 0
A25: EMBEDDED DISTRIBUTOR | C25: 859.2 | E25: =C25/C26 -> 2.979735048e-05 | G25: =E25*G26 -> -1.66339597 | I25: 28618000 | K25: 71600 | O25: =ROUND(G25/K25,4) -> 0
A26: Total | C26: =SUM(C17:C25) -> 28834778.47 | E26: =SUM(E17:E25) -> 1 | G26: -55823.62 | I26: =SUM(I17:I25) -> 1396965487 | K26: =SUM(K17:K25) -> 1828493.61
A28: One or more rate classes appear to have negligible rate riders in columns M and/or O. As per Appendix B of the Filing Requirements, please provide details of the Applicant's proposal in the Manager's Summary.

Sheet 13. RTSR Rate Sheet
A13: No input required. This sheet consolidates all Current Retail Transmission Rates entered on Sheet 4.
A15: Rate Class | B15: Rate Description | C15: Unit | D15: RTSR-Network | E15: RTSR-Connection
A17: RESIDENTIAL | B17: Retail Transmission Rate - Network Service Rate | C17: $/kWh | D17: 0.0076
A18: RESIDENTIAL | B18: Retail Transmission Rate - Line and Transformation Connection Service Rate | C18: $/kWh | E18: 0.0022
A19: GENERAL SERVICE LESS THAN 50 KW | B19: Retail Transmission Rate - Network Service Rate | C19: $/kWh | D19: 0.0069
A20: GENERAL SERVICE LESS THAN 50 KW | B20: Retail Transmission Rate - Line and Transformation Connection Service Rate | C20: $/kWh | E20: 0.002
A21: GENERAL SERVICE 50 TO 4,999 KW | B21: Retail Transmission Rate - Network Service Rate - (less than 1,000 kW) | C21: $/kW | D21: 2.8378
A22: GENERAL SERVICE 50 TO 4,999 KW | B22: Retail Transmission Rate - Network Service Rate - Interval Metered (less than 1,000 kW) | C22: $/kW | D22: 3.0141
A23: GENERAL SERVICE 50 TO 4,999 KW | B23: Retail Transmission Rate - Network Service Rate - Interval Metered (1,000 to 4,999 kW) | C23: $/kW | D23: 3.0102
A24: GENERAL SERVICE 50 TO 4,999 KW | B24: Retail Transmission Rate - Line and Transformation Connection Service Rate - (less than 1,000 kW) | C24: $/kW | E24: 0.7815
A25: GENERAL SERVICE 50 TO 4,999 KW | B25: Retail Transmission Rate - Line and Transformation Connection Service Rate - Interval Metered (less than 1,000 kW) | C25: $/kW | E25: 0.9761
A26: GENERAL SERVICE 50 TO 4,999 KW | B26: Retail Transmission Rate - Line and Transformation Connection Service Rate - Interval Metered (1,000 to 4,999 kW) | C26: $/kW | E26: 0.975
A27: LARGE USE | B27: Retail Transmission Rate - Network Service Rate - Interval Metered | C27: $/kW | D27: 3.3372
A28: LARGE USE | B28: Retail Transmission Rate - Line and Transformation Connection Service Rate - Interval Metered | C28: $/kW | E28: 0.9795
A29: UNMETERED SCATTERED LOAD | B29: Retail Transmission Rate - Network Service Rate | C29: $/kWh | D29: 0.0069
A30: UNMETERED SCATTERED LOAD | B30: Retail Transmission Rate - Line and Transformation Connection Service Rate | C30: $/kWh | E30: 0.002
A31: STREET LIGHTING | B31: Retail Transmission Rate - Network Service Rate | C31: $/kW | D31: 2.1404
A32: STREET LIGHTING | B32: Retail Transmission Rate - Line and Transformation Connection Service Rate | C32: $/kW | E32: 0.6039

Sheet 14. RTSR RRR Data
A12: In the green shaded cells, enter the most recent reported RRR billing determinants. Please ensure that billing determinants are non-loss adjusted.
A14: Rate Class | B14: Rate Description | C14: Unit | D14: Non-Loss Adjusted Metered kWh | E14: Non-Loss Adjusted Metered kW | F14: Applicable Loss Factor | H14: Load Factor | I14: Loss Adjusted Billed kWh | J14: Billed kW
A15: RESIDENTIAL | B15: Retail Transmission Rate - Network Service Rate | C15: $/kWh | D15: 409442945 | E15: 0 | F15: 1.0404 | H15: =IF(C15="$/kW", D15/(E15* 30.4 * 24), "" ) ->  | I15: =IF(OR(F15=0, OR(ISBLANK(F15), TRIM(F15)="")), F15, F15 * D15) -> 425984440 | J15: =IF(OR(F15=0, OR(ISBLANK(F15), TRIM(F15)="")), E15, E15) -> 0
A16: RESIDENTIAL | B16: Retail Transmission Rate - Line and Transformation Connection Service Rate | C16: $/kWh | D16: 409442945 | E16: 0 | F16: 1.0404 | H16: =IF(C16="$/kW", D16/(E16* 30.4 * 24), "" ) ->  | I16: 425984440 | J16: 0
A17: GENERAL SERVICE LESS THAN 50 KW | B17: Retail Transmission Rate - Network Service Rate | C17: $/kWh | D17: 194737949 | E17: 0 | F17: 1.0404 | H17: =IF(C17="$/kW", D17/(E17* 30.4 * 24), "" ) ->  | I17: 202605362.1 | J17: 0
A18: GENERAL SERVICE LESS THAN 50 KW | B18: Retail Transmission Rate - Line and Transformation Connection Service Rate | C18: $/kWh | D18: 194737949 | E18: 0 | F18: 1.0404 | H18: =IF(C18="$/kW", D18/(E18* 30.4 * 24), "" ) ->  | I18: 202605362.1 | J18: 0
A19: GENERAL SERVICE 50 TO 4,999 KW | B19: Retail Transmission Rate - Network Service Rate - (less than 1,000 kW) | C19: $/kW | D19: 149939491 | E19: 476304 | F19: 0 | H19: 0 | I19: 0 | J19: 476304
A20: GENERAL SERVICE 50 TO 4,999 KW | B20: Retail Transmission Rate - Network Service Rate - Interval Metered (less than 1,000 kW) | C20: $/kW | D20: 284341457 | E20: 725765 | F20: 0 | H20: 0 | I20: 0 | J20: 725765
A21: GENERAL SERVICE 50 TO 4,999 KW | B21: Retail Transmission Rate - Network Service Rate - Interval Metered (1,000 to 4,999 kW) | C21: $/kW | D21: 271456180 | E21: 569915 | F21: 0 | H21: 0 | I21: 0 | J21: 569915
A22: GENERAL SERVICE 50 TO 4,999 KW | B22: Retail Transmission Rate - Line and Transformation Connection Service Rate - (less than 1,000 kW) | C22: $/kW | D22: 149939491 | E22: 476304 | F22: 0 | H22: 0 | I22: 0 | J22: 476304
A23: GENERAL SERVICE 50 TO 4,999 KW | B23: Retail Transmission Rate - Line and Transformation Connection Service Rate - Interval Metered (less than 1,000 kW) | C23: $/kW | D23: 284341457 | E23: 732051 | F23: 0 | H23: 0 | I23: 0 | J23: 732051
A24: GENERAL SERVICE 50 TO 4,999 KW | B24: Retail Transmission Rate - Line and Transformation Connection Service Rate - Interval Metered (1,000 to 4,999 kW) | C24: $/kW | D24: 271456180 | E24: 571177 | F24: 0 | H24: 0 | I24: 0 | J24: 571177
A25: LARGE USE | B25: Retail Transmission Rate - Network Service Rate - Interval Metered | C25: $/kW | D25: 90202679 | E25: 168361 | F25: 0 | H25: 0 | I25: 0 | J25: 168361
A26: LARGE USE | B26: Retail Transmission Rate - Line and Transformation Connection Service Rate - Interval Metered | C26: $/kW | D26: 90202679 | E26: 168361 | F26: 0 | H26: 0 | I26: 0 | J26: 168361
A27: UNMETERED SCATTERED LOAD | B27: Retail Transmission Rate - Network Service Rate | C27: $/kWh | D27: 2352596 | E27: 0 | F27: 1.0404 | H27: =IF(C27="$/kW", D27/(E27* 30.4 * 24), "" ) ->  | I27: 2447640.878 | J27: 0
A28: UNMETERED SCATTERED LOAD | B28: Retail Transmission Rate - Line and Transformation Connection Service Rate | C28: $/kWh | D28: 2352596 | E28: 0 | F28: 1.0404 | H28: =IF(C28="$/kW", D28/(E28* 30.4 * 24), "" ) ->  | I28: 2447640.878 | J28: 0
A29: STREET LIGHTING | B29: Retail Transmission Rate - Network Service Rate | C29: $/kW | D29: 7696319 | E29: 21461 | F29: 0 | H29: 0 | I29: 0 | J29: 21461
A30: STREET LIGHTING | B30: Retail Transmission Rate - Line and Transformation Connection Service Rate | C30: $/kW | D30: 7696319 | E30: 21461 | F30: 0 | H30: 0 | I30: 0 | J30: 21461

Sheet 14. RTSR RRR Data Copy (hidden)
A12: In the green shaded cells, enter the most recent reported RRR billing determinants. Please ensure that billing determinants are non-loss adjusted.
A14: Rate Class | B14: Rate Description | C14: Unit | D14: Non-Loss Adjusted Metered kWh | E14: Non-Loss Adjusted Metered kW | F14: Applicable Loss Factor | H14: Load Factor | I14: Loss Adjusted Billed kWh | J14: Billed kW
A15: RESIDENTIAL | B15: Retail Transmission Rate - Network Service Rate | C15: $/kWh | D15: 409442945 | E15: 0 | F15: 1.0404
A16: RESIDENTIAL | B16: Retail Transmission Rate - Line and Transformation Connection Service Rate | C16: $/kWh | D16: 409442945 | E16: 0 | F16: 1.0404
A17: GENERAL SERVICE LESS THAN 50 KW | B17: Retail Transmission Rate - Network Service Rate | C17: $/kWh | D17: 194737949 | E17: 0 | F17: 1.0404
A18: GENERAL SERVICE LESS THAN 50 KW | B18: Retail Transmission Rate - Line and Transformation Connection Service Rate | C18: $/kWh | D18: 194737949 | E18: 0 | F18: 1.0404
A19: GENERAL SERVICE 50 TO 4,999 KW | B19: Retail Transmission Rate - Network Service Rate - (less than 1,000 kW) | C19: $/kW | D19: 149939491 | E19: 476304 | F19: 0
A20: GENERAL SERVICE 50 TO 4,999 KW | B20: Retail Transmission Rate - Network Service Rate - Interval Metered (less than 1,000 kW) | C20: $/kW | D20: 284341457 | E20: 725765 | F20: 0
A21: GENERAL SERVICE 50 TO 4,999 KW | B21: Retail Transmission Rate - Network Service Rate - Interval Metered (1,000 to 4,999 kW) | C21: $/kW | D21: 271456180 | E21: 569915 | F21: 0
A22: GENERAL SERVICE 50 TO 4,999 KW | B22: Retail Transmission Rate - Line and Transformation Connection Service Rate - (less than 1,000 kW) | C22: $/kW | D22: 149939491 | E22: 476304 | F22: 0
A23: GENERAL SERVICE 50 TO 4,999 KW | B23: Retail Transmission Rate - Line and Transformation Connection Service Rate - Interval Metered (less than 1,000 kW) | C23: $/kW | D23: 284341457 | E23: 732051 | F23: 0
A24: GENERAL SERVICE 50 TO 4,999 KW | B24: Retail Transmission Rate - Line and Transformation Connection Service Rate - Interval Metered (1,000 to 4,999 kW) | C24: $/kW | D24: 271456180 | E24: 571177 | F24: 0
A25: LARGE USE | B25: Retail Transmission Rate - Network Service Rate - Interval Metered | C25: $/kW | D25: 90202679 | E25: 168361 | F25: 0
A26: LARGE USE | B26: Retail Transmission Rate - Line and Transformation Connection Service Rate - Interval Metered | C26: $/kW | D26: 90202679 | E26: 168361 | F26: 0
A27: UNMETERED SCATTERED LOAD | B27: Retail Transmission Rate - Network Service Rate | C27: $/kWh | D27: 2352596 | E27: 0 | F27: 1.0404
A28: UNMETERED SCATTERED LOAD | B28: Retail Transmission Rate - Line and Transformation Connection Service Rate | C28: $/kWh | D28: 2352596 | E28: 0 | F28: 1.0404
A29: STREET LIGHTING | B29: Retail Transmission Rate - Network Service Rate | C29: $/kW | D29: 7696319 | E29: 21461 | F29: 0
A30: STREET LIGHTING | B30: Retail Transmission Rate - Line and Transformation Connection Service Rate | C30: $/kW | D30: 7696319 | E30: 21461 | F30: 0

Sheet 15. RTSR - UTRs & Sub-Tx
B18: Uniform Transmission Rates | C18: Unit | E18: Effective January 1, 2013 | G18: Effective January 1, 2014 | I18: Effective January 1, 2015
B20: Rate Description | E20: Rate | G20: Rate | I20: Rate
B22: Network Service Rate | C22: kW | E22: 3.63 | G22: 3.82 | I22: 3.78
B24: Line Connection Service Rate | C24: kW | E24: 0.75 | G24: 0.82 | I24: 0.86
B26: Transformation Connection Service Rate | C26: kW | E26: 1.85 | G26: 1.98 | I26: 2
B29: Hydro One Sub-Transmission Rates | C29: Unit | E29: Effective January 1, 2013 | G29: Effective January 1, 2014 | I29: Effective January 1, 2015
B33: Rate Description | E33: Rate | G33: Rate | I33: Rate
B35: Network Service Rate | C35: kW | E35: 3.18 | G35: 3.23 | I35: =+G35 -> 3.23
B37: Line Connection Service Rate | C37: kW | E37: 0.7 | G37: 0.65 | I37: =+G37 -> 0.65
B39: Transformation Connection Service Rate | C39: kW | E39: 1.63 | G39: 1.62 | I39: =+G39 -> 1.62
B41: Both Line and Transformation Connection Service Rate | C41: kW | E41: =E39+E37 -> 2.33 | G41: =G39+G37 -> 2.27 | I41: =I39+I37 -> 2.27
B44: Kitchner-Wilmot Hydro Inc. | C44: Unit | E44: Effective January 1, 2013 | G44: Effective January 1, 2014 | I44: Effective January 1, 2015
B48: Rate Description | E48: Rate | G48: Rate | I48: Rate
B50: Network Service Rate | C50: kW | E50: 2.8965 | G50: 3.096 | I50: 3.11
B52: Line Connection Service Rate | C52: kW | E52: 0.6356 | G52: 0.6461 | I52: 0.71
B54: Transformation Connection Service Rate | C54: kW
B56: Both Line and Transformation Connection Service Rate | C56: kW | E56: =E54+E52 -> 0.6356 | G56: =G54+G52 -> 0.6461 | I56: =I54+I52 -> 0.71
B59: Cambridge and North Dumfries Hydro Inc. | C59: Unit | E59: Effective January 1, 2013 | G59: Effective January 1, 2014 | I59: Effective January 1, 2015
B63: Rate Description | E63: Rate | G63: Rate | I63: Rate
B65: Network Service Rate | C65: kW | E65: 2.5279 | G65: 2.7207 | I65: =+G65 -> 2.7207
B67: Line Connection Service Rate | C67: kW | E67: 1.6586 | G67: 1.9124 | I67: =+G67 -> 1.9124
B69: Transformation Connection Service Rate | C69: kW
B71: Both Line and Transformation Connection Service Rate | C71: kW | E71: =E69+E67 -> 1.6586 | G71: =G69+G67 -> 1.9124 | I71: =I69+I67 -> 1.9124
B75: Hydro One Sub-Transmission Rate Rider 9A | C75: Unit | E75: Effective January 1, 2013 | G75: Effective January 1, 2014 | I75: Effective January 1, 2015
B77: Rate Description | E77: Rate | G77: Rate | I77: Rate
B79: RSVA Transmission network – 4714 – which affects 1584 | C79: kW | E79: 0 | G79: 0.1465 | I79: 0
B81: RSVA Transmission connection – 4716 – which affects 1586 | C81: kW | E81: 0 | G81: 0.0667 | I81: 0
B83: RSVA LV – 4750 – which affects 1550 | C83: kW | E83: 0 | G83: 0.0475 | I83: 0
B85: RARA 1 – 2252 – which affects 1590 | C85: kW | E85: 0 | G85: 0.0419 | I85: 0
B87: RARA 1 – 2252 – which affects 1590 (2008) | C87: kW | E87: 0 | G87: -0.027 | I87: 0
B89: RARA 1 – 2252 – which affects 1590 (2009) | C89: kW | E89: 0 | G89: -0.0006 | I89: 0
B91: Hydro One Sub-Transmission Rate Rider 9A | C91: kW | E91: =SUM(E79:E89) -> 0 | G91: =SUM(G79:G89) -> 0.275 | I91: =SUM(I79:I89) -> 0
E94: Historical 2013 | G94: Current 2014 | I94: Forecast 2015
B95: Low Voltage Switchgear Credit (if applicable, enter as a negative value) | C95: $

Sheet 16. RTSR - Historical Wholesale
B13: In the green shaded cells, enter billing detail for wholesale transmission for the same reporting period as the billing determinants on Sheet "14. RTSR RRR Data". For Hydro One Sub-transmission Rates, if you are charged a combined Line and Transformer connection rate, please ensure that both the line connection and transformer connection columns are completed.
B16: IESO | D16: Network | H16: Line Connection | L16: Transformation Connection | P16: Total Line
B17: Month | D17: Units Billed | E17: Rate | F17: Amount | H17: Units Billed | I17: Rate | J17: Amount | L17: Units Billed | M17: Rate | N17: Amount | P17: Amount
B19: January | D19: 212740 | E19: =IF(D19<>0,F19/D19,0) -> 3.63 | F19: 772246.2 | H19: 217226 | I19: =IF(H19<>0,J19/H19,0) -> 0.75 | J19: 162919.5 | L19: 23735 | M19: =IF(L19<>0,N19/L19,0) -> 1.85 | N19: 43909.75 | P19: =J19+N19 -> 206829.25
B20: February | D20: 206978 | E20: 3.63 | F20: 751330.14 | H20: 210117 | I20: 0.75 | J20: 157587.75 | L20: 23261 | M20: 1.85 | N20: 43032.85 | P20: 200620.6
B21: March | D21: 196431 | E21: 3.63 | F21: 713044.53 | H21: 206799 | I21: 0.75 | J21: 155099.25 | L21: 22777 | M21: 1.85 | N21: 42137.45 | P21: 197236.7
B22: April | D22: 182846 | E22: 3.63 | F22: 663730.98 | H22: 192065 | I22: 0.75 | J22: 144048.75 | L22: 21948 | M22: 1.85 | N22: 40603.8 | P22: 184652.55
B23: May | D23: 211057 | E23: 3.63 | F23: 766136.91 | H23: 221204 | I23: 0.75 | J23: 165903 | L23: 22656 | M23: 1.85 | N23: 41913.6 | P23: 207816.6
B24: June | D24: 243780 | E24: 3.63 | F24: 884921.4 | H24: 246709 | I24: 0.75 | J24: 185031.75 | L24: 24961 | M24: 1.85 | N24: 46177.85 | P24: 231209.6
B25: July | D25: 262249 | E25: 3.63 | F25: 951963.87 | H25: 276410 | I25: 0.75 | J25: 207307.5 | L25: 26550 | M25: 1.85 | N25: 49117.5 | P25: 256425
B26: August | D26: 238928 | E26: 3.63 | F26: 867308.64 | H26: 251388 | I26: 0.75 | J26: 188541 | L26: 23533 | M26: 1.85 | N26: 43536.05 | P26: 232077.05
B27: September | D27: 246882 | E27: 3.63 | F27: 896181.66 | H27: 257688 | I27: 0.75 | J27: 193266 | L27: 20851 | M27: 1.85 | N27: 38574.35 | P27: 231840.35
B28: October | D28: 178436 | E28: 3.63 | F28: 647722.68 | H28: 192896 | I28: 0.75 | J28: 144672 | L28: 17995 | M28: 1.85 | N28: 33290.75 | P28: 177962.75
B29: November | D29: 228849 | E29: 3.63 | F29: 830721.87 | H29: 210829 | I29: 0.75 | J29: 158121.75 | L29: 21806 | M29: 1.85 | N29: 40341.1 | P29: 198462.85
B30: December | D30: 197240 | E30: 3.63 | F30: 715981.2 | H30: 224329 | I30: 0.75 | J30: 168246.75 | L30: 23632 | M30: 1.85 | N30: 43719.2 | P30: 211965.95
B32: Total | D32: =SUM(D19:D30) -> 2606416 | E32: =IF(D32<>0,F32/D32,0) -> 3.63 | F32: =SUM(F19:F30) -> 9461290.08 | H32: =SUM(H19:H30) -> 2707660 | I32: =IF(H32<>0,J32/H32,0) -> 0.75 | J32: =SUM(J19:J30) -> 2030745 | L32: =SUM(L19:L30) -> 273705 | M32: =IF(L32<>0,N32/L32,0) -> 1.85 | N32: =SUM(N19:N30) -> 506354.25 | P32: =SUM(P19:P30) -> 2537099.25
B34: Hydro One | D34: Network | H34: Line Connection | L34: Transformation Connection | P34: Total Line
B36: Month | D36: Units Billed | E36: Rate | F36: Amount | H36: Units Billed | I36: Rate | J36: Amount | L36: Units Billed | M36: Rate | N36: Amount | P36: Amount
B38: January | D38: 8404 | E38: =IF(D38<>0,F38/D38,0) -> 2.820968586 | F38: 23707.42 | H38: 8594 | I38: =IF(H38<>0,J38/H38,0) -> 0.6593548738 | J38: 5666.495785 | L38: 8594 | M38: =IF(L38<>0,N38/L38,0) -> 1.541935561 | N38: 13251.39421 | P38: =J38+N38 -> 18917.89
B39: February | D39: 8980 | E39: 3.18 | F39: 28556.4 | H39: 9346 | I39: 0.7 | J39: 6542.2 | L39: 9346 | M39: 1.63 | N39: 15233.98 | P39: 21776.18
B40: March | D40: 8348 | E40: 3.18 | F40: 26546.64 | H40: 8710 | I40: 0.7 | J40: 6097 | L40: 8710 | M40: 1.63 | N40: 14197.3 | P40: 20294.3
B41: April | D41: 7826 | E41: 3.18 | F41: 24886.68 | H41: 7917 | I41: 0.7 | J41: 5541.9 | L41: 7917 | M41: 1.63 | N41: 12904.71 | P41: 18446.61
B42: May | D42: 7801.77 | E42: 3.179998898 | F42: 24809.62 | H42: 7801.77 | I42: 0.6999988464 | J42: 5461.23 | L42: 7801.77 | M42: 1.630000628 | N42: 12716.89 | P42: 18178.12
B43: June | D43: 7453.5 | E43: 3.180001342 | F43: 23702.14 | H43: 7586.06 | I43: 0.7000010546 | J43: 5310.25 | L43: 7586.06 | M43: 1.630001608 | N43: 12365.29 | P43: 17675.54
B44: July | D44: 9076.25 | E44: 3.179998347 | F44: 28862.46 | H44: 9286.12 | I44: 0.6999995692 | J44: 6500.28 | L44: 9286.12 | M44: 1.629999397 | N44: 15136.37 | P44: 21636.65
B45: August | D45: 8334.25 | E45: 3.1799994 | F45: 26502.91 | H45: 8489.28 | I45: 0.6999992932 | J45: 5942.49 | L45: 8489.28 | M45: 1.629999246 | N45: 13837.52 | P45: 19780.01
B46: September | D46: 8550.16 | E46: 3.180002479 | F46: 27189.53 | H46: 9027.4 | I46: 0.6999988923 | J46: 6319.17 | L46: 9027.4 | M46: 1.629999778 | N46: 14714.66 | P46: 21033.83
B47: October | D47: 7008.62 | E47: 3.179998345 | F47: 22287.4 | H47: 7269.77 | I47: 0.699998762 | J47: 5088.83 | L47: 7269.77 | M47: 1.629999298 | N47: 11849.72 | P47: 16938.55
B48: November | D48: 7576.62 | E48: 3.180001109 | F48: 24093.66 | H48: 7708.14 | I48: 0.7000002595 | J48: 5395.7 | L48: 7708.14 | M48: 1.630000234 | N48: 12564.27 | P48: 17959.97
B49: December | D49: 8512.72 | E49: 3.180002396 | F49: 27070.47 | H49: 8666.91 | I49: 0.7000003461 | J49: 6066.84 | L49: 8666.91 | M49: 1.630001927 | N49: 14127.08 | P49: 20193.92
B51: Total | D51: =SUM(D38:D49) -> 97871.89 | E51: =IF(D51<>0,F51/D51,0) -> 3.149171126 | F51: =SUM(F38:F49) -> 308215.33 | H51: =SUM(H38:H49) -> 100402.45 | I51: =IF(H51<>0,J51/H51,0) -> 0.6965207103 | J51: =SUM(J38:J49) -> 69932.38579 | L51: =SUM(L38:L49) -> 100402.45 | M51: =IF(L51<>0,N51/L51,0) -> 1.622462243 | N51: =SUM(N38:N49) -> 162899.1842 | P51: =SUM(P38:P49) -> 232831.57
B53: Add Extra Host Here (I) | D53: Network | H53: Line Connection | L53: Transformation Connection | P53: Total Line
B54: (if needed)
B55: Month | D55: Units Billed | E55: Rate | F55: Amount | H55: Units Billed | I55: Rate | J55: Amount | L55: Units Billed | M55: Rate | N55: Amount | P55: Amount
B57: January | D57: 3298.509174 | E57: =IF(D57<>0,F57/D57,0) -> 2.8776 | F57: 9491.79 | H57: 3298.5155 | I57: =IF(H57<>0,J57/H57,0) -> 0.6871 | J57: 2266.41 | M57: =IF(L57<>0,N57/L57,0) -> 0 | P57: =J57+N57 -> 2266.41
B58: February | D58: 2792.830831 | E58: 2.8776 | F58: 8036.65 | H58: 2792.824916 | I58: 0.6871 | J58: 1918.95 | M58: 0 | P58: 1918.95
B59: March | D59: 2562.340145 | E59: 2.8776 | F59: 7373.39 | H59: 2586.523068 | I59: 0.6871 | J59: 1777.2 | M59: 0 | P59: 1777.2
B60: April | D60: 2417.858632 | E60: 2.8776 | F60: 6957.63 | H60: 2369.465871 | I60: 0.6871 | J60: 1628.06 | M60: 0 | P60: 1628.06
B61: May | D61: 2325.461764 | E61: 2.8965 | F61: 6735.7 | H61: 2325.456262 | I61: 0.6356 | J61: 1478.06 | M61: 0 | P61: 1478.06
B62: June | D62: 2669.176592 | E62: 2.8965 | F62: 7731.27 | H62: 2669.178729 | I62: 0.6356 | J62: 1696.53 | M62: 0 | P62: 1696.53
B63: July | D63: 2994.099776 | E63: 2.8965 | F63: 8672.41 | H63: 3035.761485 | I63: 0.6356 | J63: 1929.53 | M63: 0 | P63: 1929.53
B64: August | D64: 2638.608666 | E64: 2.8965 | F64: 7642.73 | H64: 2638.609188 | I64: 0.6356 | J64: 1677.1 | M64: 0 | P64: 1677.1
B65: September | D65: 2811.648541 | E65: 2.8965 | F65: 8143.94 | H65: 2811.642542 | I65: 0.6356 | J65: 1787.08 | M65: 0 | P65: 1787.08
B66: October | D66: 2340.58001 | E66: 2.8965 | F66: 6779.49 | H66: 2340.575834 | I66: 0.6356 | J66: 1487.67 | M66: 0 | P66: 1487.67
B67: November | D67: 2875.49111 | E67: 2.8965 | F67: 8328.86 | H67: 2875.487728 | I67: 0.6356 | J67: 1827.66 | M67: 0 | P67: 1827.66
B68: December | D68: 2985.019852 | E68: 2.8965 | F68: 8646.11 | H68: 3036.438011 | I68: 0.6356 | J68: 1929.96 | M68: 0 | P68: 1929.96
B70: Total | D70: =SUM(D57:D68) -> 32711.62509 | E70: =IF(D70<>0,F70/D70,0) -> 2.890103128 | F70: =SUM(F57:F68) -> 94539.97 | H70: =SUM(H57:H68) -> 32780.47913 | I70: =IF(H70<>0,J70/H70,0) -> 0.6529559837 | J70: =SUM(J57:J68) -> 21404.21 | L70: =SUM(L57:L68) -> 0 | M70: =IF(L70<>0,N70/L70,0) -> 0 | N70: =SUM(N57:N68) -> 0 | P70: =SUM(P57:P68) -> 21404.21
B72: Add Extra Host Here (II) | D72: Network | H72: Line Connection | L72: Transformation Connection | P72: Total Line
B73: (if needed)
B74: Month | D74: Units Billed | E74: Rate | F74: Amount | H74: Units Billed | I74: Rate | J74: Amount | L74: Units Billed | M74: Rate | N74: Amount | P74: Amount
B76: January | D76: 5108.349432 | E76: =IF(D76<>0,F76/D76,0) -> 2.5882 | F76: 13221.43 | H76: 5108.349833 | I76: =IF(H76<>0,J76/H76,0) -> 1.7677 | J76: 9030.03 | M76: =IF(L76<>0,N76/L76,0) -> 0 | P76: =J76+N76 -> 9030.03
B77: February | D77: 5191.090333 | E77: 2.5882 | F77: 13435.58 | H77: 5191.090117 | I77: 1.7677 | J77: 9176.29 | M77: 0 | P77: 9176.29
B78: March | D78: 7517.830925 | E78: 2.5882 | F78: 19457.65 | H78: 7663.947502 | I78: 1.7677 | J78: 13547.56 | M78: 0 | P78: 13547.56
B79: April | D79: 12217.61842 | E79: 2.5882 | F79: 31621.64 | H79: 12217.62177 | I79: 1.7677 | J79: 21597.09 | M79: 0 | P79: 21597.09
B80: May | D80: 7715.170695 | E80: 2.5279 | F80: 19503.18 | H80: 7715.16942 | I80: 1.6586 | J80: 12796.38 | M80: 0 | P80: 12796.38
B81: June | D81: 8355.010087 | E81: 2.5279 | F81: 21120.63 | H81: 8355.01025 | I81: 1.6586 | J81: 13857.62 | M81: 0 | P81: 13857.62
B82: July | D82: 9109.478223 | E82: 2.5279 | F82: 23027.85 | H82: 9109.477873 | I82: 1.6586 | J82: 15108.98 | M82: 0 | P82: 15108.98
B83: August | D83: 8310.839036 | E83: 2.5279 | F83: 21008.97 | H83: 8310.840468 | I83: 1.6586 | J83: 13784.36 | M83: 0 | P83: 13784.36
B84: September | D84: 8605.981249 | E84: 2.5279 | F84: 21755.06 | H84: 8605.980948 | I84: 1.6586 | J84: 14273.88 | M84: 0 | P84: 14273.88
B85: October | D85: 6941.611614 | E85: 2.5279 | F85: 17547.7 | H85: 6985.777161 | I85: 1.6586 | J85: 11586.61 | M85: 0 | P85: 11586.61
B86: November | D86: 8037.999921 | E86: 2.5279 | F86: 20319.26 | H86: 8038.001929 | I86: 1.6586 | J86: 13331.83 | M86: 0 | P86: 13331.83
B87: December | D87: 8728.228965 | E87: 2.5279 | F87: 22064.09 | H87: 8728.228627 | I87: 1.6586 | J87: 14476.64 | M87: 0 | P87: 14476.64
B89: Total | D89: =SUM(D76:D87) -> 95839.2089 | E89: =IF(D89<>0,F89/D89,0) -> 2.546797316 | F89: =SUM(F76:F87) -> 244083.04 | H89: =SUM(H76:H87) -> 96029.4959 | I89: =IF(H89<>0,J89/H89,0) -> 1.692888924 | J89: =SUM(J76:J87) -> 162567.27 | L89: =SUM(L76:L87) -> 0 | M89: =IF(L89<>0,N89/L89,0) -> 0 | N89: =SUM(N76:N87) -> 0 | P89: =SUM(P76:P87) -> 162567.27
B91: Total | D91: Network | H91: Line Connection | L91: Transformation Connection | P91: Total Line
B93: Month | D93: Units Billed | E93: Rate | F93: Amount | H93: Units Billed | I93: Rate | J93: Amount | L93: Units Billed | M93: Rate | N93: Amount | P93: Amount
B95: January | D95: =D19+D38+D57+D76 -> 229550.8586 | E95: =IF(D95<>0,F95/D95,0) -> 3.566385441 | F95: =F19+F38+F57+F76 -> 818666.84 | H95: =H19+H38+H57+H76 -> 234226.8653 | I95: =IF(H95<>0,J95/H95,0) -> 0.7679837901 | J95: =J19+J38+J57+J76 -> 179882.4358 | L95: =L19+L38+L57+L76 -> 32329 | M95: =IF(L95<>0,N95/L95,0) -> 1.768107402 | N95: =N19+N38+N57+N76 -> 57161.14421 | P95: =J95+N95 -> 237043.58
B96: February | D96: =D20+D39+D58+D77 -> 223941.9212 | E96: 3.578422324 | F96: =F20+F39+F58+F77 -> 801358.77 | H96: =H20+H39+H58+H77 -> 227446.915 | I96: 0.770400381 | J96: =J20+J39+J58+J77 -> 175225.19 | L96: =L20+L39+L58+L77 -> 32607 | M96: 1.786942374 | N96: =N20+N39+N58+N77 -> 58266.83 | P96: 233492.02
B97: March | D97: 214859.1711 | E97: 3.567090975 | F97: 766422.21 | H97: 225759.4706 | I97: 0.7818985824 | J97: 176521.01 | L97: 31487 | M97: 1.789143138 | N97: 56334.75 | P97: 232855.76
B98: April | D98: 205307.4771 | E98: 3.54198951 | F98: 727196.93 | H98: 214569.0876 | I98: 0.8054086537 | J98: 172815.8 | L98: 29865 | M98: 1.791679558 | N98: 53508.51 | P98: 226324.31
B99: May | D99: 228899.4025 | E99: 3.570063535 | F99: 817185.41 | H99: 239046.3957 | I99: 0.7765800838 | J99: 185638.67 | L99: 30457.77 | M99: 1.793647073 | N99: 54630.49 | P99: 240269.16
B100: June | D100: 262257.6867 | E100: 3.574634749 | F100: 937475.44 | H100: 265319.249 | I100: 0.7760317082 | J100: 205896.15 | L100: 32547.06 | M100: 1.798722834 | N100: 58543.14 | P100: 264439.29
B101: July | D101: 283428.828 | E101: 3.572419211 | F101: 1012526.59 | H101: 297841.3594 | I101: 0.7750645864 | J101: 230846.29 | L101: 35836.12 | M101: 1.792991819 | N101: 64253.87 | P101: 295100.16
B102: August | D102: 258211.6977 | E102: 3.572507591 | F102: 922463.25 | H102: 270826.7297 | I102: 0.7752002554 | J102: 209944.95 | L102: 32022.28 | M102: 1.791676608 | N102: 57373.57 | P102: 267318.52
B103: September | D103: 266849.7898 | E103: 3.572310065 | F103: 953270.19 | H103: 278133.0235 | I103: 0.7753345047 | J103: 215646.13 | L103: 29878.4 | M103: 1.783529573 | N103: 53289.01 | P103: 268935.14
B104: October | D104: 194726.8116 | E104: 3.565699372 | F104: 694337.27 | H104: 209492.123 | I104: 0.7772851202 | J104: 162835.11 | L104: 25264.77 | M104: 1.786696257 | N104: 45140.47 | P104: 207975.58
B105: November | D105: 247339.111 | E105: 3.571872019 | F105: 883463.65 | H105: 229450.6297 | I105: 0.7787162766 | J105: 178676.94 | L105: 29514.14 | M105: 1.792543167 | N105: 52905.37 | P105: 231582.31
B106: December | D106: 217465.9688 | E106: 3.558082555 | F106: 773761.87 | H106: 244760.5766 | I106: 0.7792112301 | J106: 190720.19 | L106: 32298.91 | M106: 1.79096694 | N106: 57846.28 | P106: 248566.47
B108: Total | D108: =SUM(D95:D106) -> 2832838.724 | E108: =IF(D108<>0,F108/D108,0) -> 3.56819763 | F108: =SUM(F95:F106) -> 10108128.42 | H108: =SUM(H95:H106) -> 2936872.425 | I108: =IF(H108<>0,J108/H108,0) -> 0.777919002 | J108: =SUM(J95:J106) -> 2284648.866 | L108: =SUM(L95:L106) -> 374107.45 | M108: =IF(L108<>0,N108/L108,0) -> 1.788933725 | N108: =SUM(N95:N106) -> 669253.4342 | P108: =SUM(P95:P106) -> 2953902.3
N110: Transformer Allowance Credit (if applicable) | P110: ='15. RTSR - UTRs & Sub-Tx'!E95 -> 0
N112: Total including deduction for Transformer Allowance Credit | P112: =P108+P110 -> 2953902.3

Sheet 17. RTSR - Current Wholesale
B13: The purpose of this sheet is to calculate the expected billing when current 2014 Uniform Transmission Rates are applied against historical 2013 transmission units.
B16: IESO | D16: Network | H16: Line Connection | L16: Transformation Connection | P16: Total Line
B18: Month | D18: Units Billed | E18: Rate | F18: Amount | H18: Units Billed | I18: Rate | J18: Amount | L18: Units Billed | M18: Rate | N18: Amount | P18: Amount
B20: January | D20: ='16. RTSR - Historical Wholesale'!D19 -> 212740 | E20: ='15. RTSR - UTRs & Sub-Tx'!G22 -> 3.82 | F20: =D20*E20 -> 812666.8 | H20: ='16. RTSR - Historical Wholesale'!H19 -> 217226 | I20: ='15. RTSR - UTRs & Sub-Tx'!G24 -> 0.82 | J20: =H20*I20 -> 178125.32 | L20: ='16. RTSR - Historical Wholesale'!L19 -> 23735 | M20: ='15. RTSR - UTRs & Sub-Tx'!G26 -> 1.98 | N20: =L20*M20 -> 46995.3 | P20: =J20+N20 -> 225120.62
B21: February | D21: ='16. RTSR - Historical Wholesale'!D20 -> 206978 | E21: =E20 -> 3.82 | F21: =D21*E21 -> 790655.96 | H21: ='16. RTSR - Historical Wholesale'!H20 -> 210117 | I21: =I20 -> 0.82 | J21: =H21*I21 -> 172295.94 | L21: ='16. RTSR - Historical Wholesale'!L20 -> 23261 | M21: =M20 -> 1.98 | N21: =L21*M21 -> 46056.78 | P21: 218352.72
B22: March | D22: ='16. RTSR - Historical Wholesale'!D21 -> 196431 | E22: =E21 -> 3.82 | F22: 750366.42 | H22: ='16. RTSR - Historical Wholesale'!H21 -> 206799 | I22: =I21 -> 0.82 | J22: 169575.18 | L22: ='16. RTSR - Historical Wholesale'!L21 -> 22777 | M22: =M21 -> 1.98 | N22: 45098.46 | P22: 214673.64
B23: April | D23: ='16. RTSR - Historical Wholesale'!D22 -> 182846 | E23: 3.82 | F23: 698471.72 | H23: ='16. RTSR - Historical Wholesale'!H22 -> 192065 | I23: 0.82 | J23: 157493.3 | L23: ='16. RTSR - Historical Wholesale'!L22 -> 21948 | M23: 1.98 | N23: 43457.04 | P23: 200950.34
B24: May | D24: ='16. RTSR - Historical Wholesale'!D23 -> 211057 | E24: 3.82 | F24: 806237.74 | H24: ='16. RTSR - Historical Wholesale'!H23 -> 221204 | I24: 0.82 | J24: 181387.28 | L24: ='16. RTSR - Historical Wholesale'!L23 -> 22656 | M24: 1.98 | N24: 44858.88 | P24: 226246.16
B25: June | D25: ='16. RTSR - Historical Wholesale'!D24 -> 243780 | E25: 3.82 | F25: 931239.6 | H25: ='16. RTSR - Historical Wholesale'!H24 -> 246709 | I25: 0.82 | J25: 202301.38 | L25: ='16. RTSR - Historical Wholesale'!L24 -> 24961 | M25: 1.98 | N25: 49422.78 | P25: 251724.16
B26: July | D26: ='16. RTSR - Historical Wholesale'!D25 -> 262249 | E26: 3.82 | F26: 1001791.18 | H26: ='16. RTSR - Historical Wholesale'!H25 -> 276410 | I26: 0.82 | J26: 226656.2 | L26: ='16. RTSR - Historical Wholesale'!L25 -> 26550 | M26: 1.98 | N26: 52569 | P26: 279225.2
B27: August | D27: ='16. RTSR - Historical Wholesale'!D26 -> 238928 | E27: 3.82 | F27: 912704.96 | H27: ='16. RTSR - Historical Wholesale'!H26 -> 251388 | I27: 0.82 | J27: 206138.16 | L27: ='16. RTSR - Historical Wholesale'!L26 -> 23533 | M27: 1.98 | N27: 46595.34 | P27: 252733.5
B28: September | D28: ='16. RTSR - Historical Wholesale'!D27 -> 246882 | E28: 3.82 | F28: 943089.24 | H28: ='16. RTSR - Historical Wholesale'!H27 -> 257688 | I28: 0.82 | J28: 211304.16 | L28: ='16. RTSR - Historical Wholesale'!L27 -> 20851 | M28: 1.98 | N28: 41284.98 | P28: 252589.14
B29: October | D29: ='16. RTSR - Historical Wholesale'!D28 -> 178436 | E29: 3.82 | F29: 681625.52 | H29: ='16. RTSR - Historical Wholesale'!H28 -> 192896 | I29: 0.82 | J29: 158174.72 | L29: ='16. RTSR - Historical Wholesale'!L28 -> 17995 | M29: 1.98 | N29: 35630.1 | P29: 193804.82
B30: November | D30: ='16. RTSR - Historical Wholesale'!D29 -> 228849 | E30: 3.82 | F30: 874203.18 | H30: ='16. RTSR - Historical Wholesale'!H29 -> 210829 | I30: 0.82 | J30: 172879.78 | L30: ='16. RTSR - Historical Wholesale'!L29 -> 21806 | M30: 1.98 | N30: 43175.88 | P30: 216055.66
B31: December | D31: ='16. RTSR - Historical Wholesale'!D30 -> 197240 | E31: 3.82 | F31: 753456.8 | H31: ='16. RTSR - Historical Wholesale'!H30 -> 224329 | I31: 0.82 | J31: 183949.78 | L31: ='16. RTSR - Historical Wholesale'!L30 -> 23632 | M31: 1.98 | N31: 46791.36 | P31: 230741.14
B33: Total | D33: =SUM(D20:D31) -> 2606416 | E33: =IF(D33<>0,F33/D33,0) -> 3.82 | F33: =SUM(F20:F31) -> 9956509.12 | H33: =SUM(H20:H31) -> 2707660 | I33: =IF(H33<>0,J33/H33,0) -> 0.82 | J33: =SUM(J20:J31) -> 2220281.2 | L33: =SUM(L20:L31) -> 273705 | M33: =IF(L33<>0,N33/L33,0) -> 1.98 | N33: =SUM(N20:N31) -> 541935.9 | P33: =SUM(P20:P31) -> 2762217.1
B35: Hydro One | D35: Network | H35: Line Connection | L35: Transformation Connection | P35: Total Line
B37: Month | D37: Units Billed | E37: Rate | F37: Amount | H37: Units Billed | I37: Rate | J37: Amount | L37: Units Billed | M37: Rate | N37: Amount | P37: Amount
B39: January | D39: ='16. RTSR - Historical Wholesale'!D38 -> 8404 | E39: ='15. RTSR - UTRs & Sub-Tx'!G35+'15. RTSR - UTRs & Sub-Tx'!G79 -> 3.3765 | F39: =D39*E39 -> 28376.106 | H39: ='16. RTSR - Historical Wholesale'!H38 -> 8594 | I39: ='15. RTSR - UTRs & Sub-Tx'!G37+'15. RTSR - UTRs & Sub-Tx'!G81 -> 0.7167 | J39: =H39*I39 -> 6159.3198 | L39: ='16. RTSR - Historical Wholesale'!L38 -> 8594 | M39: ='15. RTSR - UTRs & Sub-Tx'!G39 -> 1.62 | N39: =L39*M39 -> 13922.28 | P39: =J39+N39 -> 20081.5998
B40: February | D40: ='16. RTSR - Historical Wholesale'!D39 -> 8980 | E40: =E39 -> 3.3765 | F40: =D40*E40 -> 30320.97 | H40: ='16. RTSR - Historical Wholesale'!H39 -> 9346 | I40: =I39 -> 0.7167 | J40: =H40*I40 -> 6698.2782 | L40: ='16. RTSR - Historical Wholesale'!L39 -> 9346 | M40: =M39 -> 1.62 | N40: =L40*M40 -> 15140.52 | P40: 21838.7982
B41: March | D41: ='16. RTSR - Historical Wholesale'!D40 -> 8348 | E41: =E40 -> 3.3765 | F41: 28187.022 | H41: ='16. RTSR - Historical Wholesale'!H40 -> 8710 | I41: =I40 -> 0.7167 | J41: 6242.457 | L41: ='16. RTSR - Historical Wholesale'!L40 -> 8710 | M41: =M40 -> 1.62 | N41: 14110.2 | P41: 20352.657
B42: April | D42: ='16. RTSR - Historical Wholesale'!D41 -> 7826 | E42: 3.3765 | F42: 26424.489 | H42: ='16. RTSR - Historical Wholesale'!H41 -> 7917 | I42: 0.7167 | J42: 5674.1139 | L42: ='16. RTSR - Historical Wholesale'!L41 -> 7917 | M42: =M41 -> 1.62 | N42: 12825.54 | P42: 18499.6539
B43: May | D43: ='16. RTSR - Historical Wholesale'!D42 -> 7801.77 | E43: 3.3765 | F43: 26342.67641 | H43: ='16. RTSR - Historical Wholesale'!H42 -> 7801.77 | I43: 0.7167 | J43: 5591.528559 | L43: ='16. RTSR - Historical Wholesale'!L42 -> 7801.77 | M43: 1.62 | N43: 12638.8674 | P43: 18230.39596
B44: June | D44: ='16. RTSR - Historical Wholesale'!D43 -> 7453.5 | E44: 3.3765 | F44: 25166.74275 | H44: ='16. RTSR - Historical Wholesale'!H43 -> 7586.06 | I44: 0.7167 | J44: 5436.929202 | L44: ='16. RTSR - Historical Wholesale'!L43 -> 7586.06 | M44: 1.62 | N44: 12289.4172 | P44: 17726.3464
B45: July | D45: ='16. RTSR - Historical Wholesale'!D44 -> 9076.25 | E45: 3.3765 | F45: 30645.95813 | H45: ='16. RTSR - Historical Wholesale'!H44 -> 9286.12 | I45: 0.7167 | J45: 6655.362204 | L45: ='16. RTSR - Historical Wholesale'!L44 -> 9286.12 | M45: 1.62 | N45: 15043.5144 | P45: 21698.8766
B46: August | D46: ='16. RTSR - Historical Wholesale'!D45 -> 8334.25 | E46: 3.3765 | F46: 28140.59512 | H46: ='16. RTSR - Historical Wholesale'!H45 -> 8489.28 | I46: 0.7167 | J46: 6084.266976 | L46: ='16. RTSR - Historical Wholesale'!L45 -> 8489.28 | M46: 1.62 | N46: 13752.6336 | P46: 19836.90058
B47: September | D47: ='16. RTSR - Historical Wholesale'!D46 -> 8550.16 | E47: 3.3765 | F47: 28869.61524 | H47: ='16. RTSR - Historical Wholesale'!H46 -> 9027.4 | I47: 0.7167 | J47: 6469.93758 | L47: ='16. RTSR - Historical Wholesale'!L46 -> 9027.4 | M47: 1.62 | N47: 14624.388 | P47: 21094.32558
B48: October | D48: ='16. RTSR - Historical Wholesale'!D47 -> 7008.62 | E48: 3.3765 | F48: 23664.60543 | H48: ='16. RTSR - Historical Wholesale'!H47 -> 7269.77 | I48: 0.7167 | J48: 5210.244159 | L48: ='16. RTSR - Historical Wholesale'!L47 -> 7269.77 | M48: 1.62 | N48: 11777.0274 | P48: 16987.27156
B49: November | D49: ='16. RTSR - Historical Wholesale'!D48 -> 7576.62 | E49: 3.3765 | F49: 25582.45743 | H49: ='16. RTSR - Historical Wholesale'!H48 -> 7708.14 | I49: 0.7167 | J49: 5524.423938 | L49: ='16. RTSR - Historical Wholesale'!L48 -> 7708.14 | M49: 1.62 | N49: 12487.1868 | P49: 18011.61074
B50: December | D50: ='16. RTSR - Historical Wholesale'!D49 -> 8512.72 | E50: 3.3765 | F50: 28743.19908 | H50: ='16. RTSR - Historical Wholesale'!H49 -> 8666.91 | I50: 0.7167 | J50: 6211.574397 | L50: ='16. RTSR - Historical Wholesale'!L49 -> 8666.91 | M50: 1.62 | N50: 14040.3942 | P50: 20251.9686
B52: Total | D52: =SUM(D39:D50) -> 97871.89 | E52: =IF(D52<>0,F52/D52,0) -> 3.3765 | F52: =SUM(F39:F50) -> 330464.4366 | H52: =SUM(H39:H50) -> 100402.45 | I52: =IF(H52<>0,J52/H52,0) -> 0.7167 | J52: =SUM(J39:J50) -> 71958.43591 | L52: =SUM(L39:L50) -> 100402.45 | M52: =IF(L52<>0,N52/L52,0) -> 1.62 | N52: =SUM(N39:N50) -> 162651.969 | P52: =SUM(P39:P50) -> 234610.4049
B54: ='16. RTSR - Historical Wholesale'!B53 -> Add Extra Host Here (I) | D54: Network | H54: Line Connection | L54: Transformation Connection | P54: Total Line
B56: Month | D56: Units Billed | E56: Rate | F56: Amount | H56: Units Billed | I56: Rate | J56: Amount | L56: Units Billed | M56: Rate | N56: Amount | P56: Amount
B58: January | D58: ='16. RTSR - Historical Wholesale'!D57 -> 3298.509174 | E58: ='15. RTSR - UTRs & Sub-Tx'!G50 -> 3.096 | F58: =D58*E58 -> 10212.1844 | H58: ='16. RTSR - Historical Wholesale'!H57 -> 3298.5155 | I58: ='15. RTSR - UTRs & Sub-Tx'!G52 -> 0.6461 | J58: =H58*I58 -> 2131.170865 | L58: ='16. RTSR - Historical Wholesale'!L57 -> 0 | M58: ='15. RTSR - UTRs & Sub-Tx'!G54 -> 0 | N58: =L58*M58 -> 0 | P58: =J58+N58 -> 2131.170865
B59: February | D59: ='16. RTSR - Historical Wholesale'!D58 -> 2792.830831 | E59: =E58 -> 3.096 | F59: =D59*E59 -> 8646.604254 | H59: ='16. RTSR - Historical Wholesale'!H58 -> 2792.824916 | I59: =I58 -> 0.6461 | J59: =H59*I59 -> 1804.444178 | L59: ='16. RTSR - Historical Wholesale'!L58 -> 0 | M59: =M58 -> 0 | N59: =L59*M59 -> 0 | P59: 1804.444178
B60: March | D60: ='16. RTSR - Historical Wholesale'!D59 -> 2562.340145 | E60: =E59 -> 3.096 | F60: 7933.005088 | H60: ='16. RTSR - Historical Wholesale'!H59 -> 2586.523068 | I60: =I59 -> 0.6461 | J60: 1671.152554 | L60: ='16. RTSR - Historical Wholesale'!L59 -> 0 | M60: =M59 -> 0 | N60: 0 | P60: 1671.152554
B61: April | D61: ='16. RTSR - Historical Wholesale'!D60 -> 2417.858632 | E61: 3.096 | F61: 7485.690325 | H61: ='16. RTSR - Historical Wholesale'!H60 -> 2369.465871 | I61: 0.6461 | J61: 1530.911899 | L61: ='16. RTSR - Historical Wholesale'!L60 -> 0 | M61: =M60 -> 0 | N61: 0 | P61: 1530.911899
B62: May | D62: ='16. RTSR - Historical Wholesale'!D61 -> 2325.461764 | E62: 3.096 | F62: 7199.629622 | H62: ='16. RTSR - Historical Wholesale'!H61 -> 2325.456262 | I62: 0.6461 | J62: 1502.477291 | L62: ='16. RTSR - Historical Wholesale'!L61 -> 0 | M62: 0 | N62: 0 | P62: 1502.477291
B63: June | D63: ='16. RTSR - Historical Wholesale'!D62 -> 2669.176592 | E63: 3.096 | F63: 8263.77073 | H63: ='16. RTSR - Historical Wholesale'!H62 -> 2669.178729 | I63: 0.6461 | J63: 1724.556377 | L63: ='16. RTSR - Historical Wholesale'!L62 -> 0 | M63: 0 | N63: 0 | P63: 1724.556377
B64: July | D64: ='16. RTSR - Historical Wholesale'!D63 -> 2994.099776 | E64: 3.096 | F64: 9269.732905 | H64: ='16. RTSR - Historical Wholesale'!H63 -> 3035.761485 | I64: 0.6461 | J64: 1961.405496 | L64: ='16. RTSR - Historical Wholesale'!L63 -> 0 | M64: 0 | N64: 0 | P64: 1961.405496
B65: August | D65: ='16. RTSR - Historical Wholesale'!D64 -> 2638.608666 | E65: 3.096 | F65: 8169.132429 | H65: ='16. RTSR - Historical Wholesale'!H64 -> 2638.609188 | I65: 0.6461 | J65: 1704.805396 | L65: ='16. RTSR - Historical Wholesale'!L64 -> 0 | M65: 0 | N65: 0 | P65: 1704.805396
B66: September | D66: ='16. RTSR - Historical Wholesale'!D65 -> 2811.648541 | E66: 3.096 | F66: 8704.863884 | H66: ='16. RTSR - Historical Wholesale'!H65 -> 2811.642542 | I66: 0.6461 | J66: 1816.602247 | L66: ='16. RTSR - Historical Wholesale'!L65 -> 0 | M66: 0 | N66: 0 | P66: 1816.602247
B67: October | D67: ='16. RTSR - Historical Wholesale'!D66 -> 2340.58001 | E67: 3.096 | F67: 7246.435712 | H67: ='16. RTSR - Historical Wholesale'!H66 -> 2340.575834 | I67: 0.6461 | J67: 1512.246046 | L67: ='16. RTSR - Historical Wholesale'!L66 -> 0 | M67: 0 | N67: 0 | P67: 1512.246046
B68: November | D68: ='16. RTSR - Historical Wholesale'!D67 -> 2875.49111 | E68: 3.096 | F68: 8902.520476 | H68: ='16. RTSR - Historical Wholesale'!H67 -> 2875.487728 | I68: 0.6461 | J68: 1857.852621 | L68: ='16. RTSR - Historical Wholesale'!L67 -> 0 | M68: 0 | N68: 0 | P68: 1857.852621
B69: December | D69: ='16. RTSR - Historical Wholesale'!D68 -> 2985.019852 | E69: 3.096 | F69: 9241.62146 | H69: ='16. RTSR - Historical Wholesale'!H68 -> 3036.438011 | I69: 0.6461 | J69: 1961.842599 | L69: ='16. RTSR - Historical Wholesale'!L68 -> 0 | M69: 0 | N69: 0 | P69: 1961.842599
B71: Total | D71: =SUM(D58:D69) -> 32711.62509 | E71: =IF(D71<>0,F71/D71,0) -> 3.096 | F71: =SUM(F58:F69) -> 101275.1913 | H71: =SUM(H58:H69) -> 32780.47913 | I71: =IF(H71<>0,J71/H71,0) -> 0.6461 | J71: =SUM(J58:J69) -> 21179.46757 | L71: =SUM(L58:L69) -> 0 | M71: =IF(L71<>0,N71/L71,0) -> 0 | N71: =SUM(N58:N69) -> 0 | P71: =SUM(P58:P69) -> 21179.46757
B73: ='16. RTSR - Historical Wholesale'!B72 -> Add Extra Host Here (II) | D73: Network | H73: Line Connection | L73: Transformation Connection | P73: Total Line
B75: Month | D75: Units Billed | E75: Rate | F75: Amount | H75: Units Billed | I75: Rate | J75: Amount | L75: Units Billed | M75: Rate | N75: Amount | P75: Amount
B77: January | D77: ='16. RTSR - Historical Wholesale'!D76 -> 5108.349432 | E77: ='15. RTSR - UTRs & Sub-Tx'!G65 -> 2.7207 | F77: =D77*E77 -> 13898.2863 | H77: ='16. RTSR - Historical Wholesale'!H76 -> 5108.349833 | I77: ='15. RTSR - UTRs & Sub-Tx'!G67 -> 1.9124 | J77: =H77*I77 -> 9769.208221 | L77: ='16. RTSR - Historical Wholesale'!L76 -> 0 | M77: ='15. RTSR - UTRs & Sub-Tx'!G69 -> 0 | N77: =L77*M77 -> 0 | P77: =J77+N77 -> 9769.208221
B78: February | D78: ='16. RTSR - Historical Wholesale'!D77 -> 5191.090333 | E78: =E77 -> 2.7207 | F78: =D78*E78 -> 14123.39947 | H78: ='16. RTSR - Historical Wholesale'!H77 -> 5191.090117 | I78: =I77 -> 1.9124 | J78: =H78*I78 -> 9927.44074 | L78: ='16. RTSR - Historical Wholesale'!L77 -> 0 | M78: =M77 -> 0 | N78: =L78*M78 -> 0 | P78: 9927.44074
B79: March | D79: ='16. RTSR - Historical Wholesale'!D78 -> 7517.830925 | E79: =E78 -> 2.7207 | F79: 20453.7626 | H79: ='16. RTSR - Historical Wholesale'!H78 -> 7663.947502 | I79: =I78 -> 1.9124 | J79: 14656.5332 | L79: ='16. RTSR - Historical Wholesale'!L78 -> 0 | M79: =M78 -> 0 | N79: 0 | P79: 14656.5332
B80: April | D80: ='16. RTSR - Historical Wholesale'!D79 -> 12217.61842 | E80: 2.7207 | F80: 33240.47444 | H80: ='16. RTSR - Historical Wholesale'!H79 -> 12217.62177 | I80: 1.9124 | J80: 23364.97987 | L80: ='16. RTSR - Historical Wholesale'!L79 -> 0 | M80: =M79 -> 0 | N80: 0 | P80: 23364.97987
B81: May | D81: ='16. RTSR - Historical Wholesale'!D80 -> 7715.170695 | E81: 2.7207 | F81: 20990.66491 | H81: ='16. RTSR - Historical Wholesale'!H80 -> 7715.16942 | I81: 1.9124 | J81: 14754.49 | L81: ='16. RTSR - Historical Wholesale'!L80 -> 0 | M81: 0 | N81: 0 | P81: 14754.49
B82: June | D82: ='16. RTSR - Historical Wholesale'!D81 -> 8355.010087 | E82: 2.7207 | F82: 22731.47594 | H82: ='16. RTSR - Historical Wholesale'!H81 -> 8355.01025 | I82: 1.9124 | J82: 15978.1216 | L82: ='16. RTSR - Historical Wholesale'!L81 -> 0 | M82: 0 | N82: 0 | P82: 15978.1216
B83: July | D83: ='16. RTSR - Historical Wholesale'!D82 -> 9109.478223 | E83: 2.7207 | F83: 24784.1574 | H83: ='16. RTSR - Historical Wholesale'!H82 -> 9109.477873 | I83: 1.9124 | J83: 17420.96548 | L83: ='16. RTSR - Historical Wholesale'!L82 -> 0 | M83: 0 | N83: 0 | P83: 17420.96548
B84: August | D84: ='16. RTSR - Historical Wholesale'!D83 -> 8310.839036 | E84: 2.7207 | F84: 22611.29977 | H84: ='16. RTSR - Historical Wholesale'!H83 -> 8310.840468 | I84: 1.9124 | J84: 15893.65131 | L84: ='16. RTSR - Historical Wholesale'!L83 -> 0 | M84: 0 | N84: 0 | P84: 15893.65131
B85: September | D85: ='16. RTSR - Historical Wholesale'!D84 -> 8605.981249 | E85: 2.7207 | F85: 23414.29318 | H85: ='16. RTSR - Historical Wholesale'!H84 -> 8605.980948 | I85: 1.9124 | J85: 16458.07796 | L85: ='16. RTSR - Historical Wholesale'!L84 -> 0 | M85: 0 | N85: 0 | P85: 16458.07796
B86: October | D86: ='16. RTSR - Historical Wholesale'!D85 -> 6941.611614 | E86: 2.7207 | F86: 18886.04272 | H86: ='16. RTSR - Historical Wholesale'!H85 -> 6985.777161 | I86: 1.9124 | J86: 13359.60024 | L86: ='16. RTSR - Historical Wholesale'!L85 -> 0 | M86: 0 | N86: 0 | P86: 13359.60024
B87: November | D87: ='16. RTSR - Historical Wholesale'!D86 -> 8037.999921 | E87: 2.7207 | F87: 21868.98638 | H87: ='16. RTSR - Historical Wholesale'!H86 -> 8038.001929 | I87: 1.9124 | J87: 15371.87489 | L87: ='16. RTSR - Historical Wholesale'!L86 -> 0 | M87: 0 | N87: 0 | P87: 15371.87489
B88: December | D88: ='16. RTSR - Historical Wholesale'!D87 -> 8728.228965 | E88: 2.7207 | F88: 23746.89254 | H88: ='16. RTSR - Historical Wholesale'!H87 -> 8728.228627 | I88: 1.9124 | J88: 16691.86443 | L88: ='16. RTSR - Historical Wholesale'!L87 -> 0 | M88: 0 | N88: 0 | P88: 16691.86443
B90: Total | D90: =SUM(D77:D88) -> 95839.2089 | E90: =IF(D90<>0,F90/D90,0) -> 2.7207 | F90: =SUM(F77:F88) -> 260749.7357 | H90: =SUM(H77:H88) -> 96029.4959 | I90: =IF(H90<>0,J90/H90,0) -> 1.9124 | J90: =SUM(J77:J88) -> 183646.808 | L90: =SUM(L77:L88) -> 0 | M90: =IF(L90<>0,N90/L90,0) -> 0 | N90: =SUM(N77:N88) -> 0 | P90: =SUM(P77:P88) -> 183646.808
B92: Total | D92: Network | H92: Line Connection | L92: Transformation Connection | P92: Total Line
B94: Month | D94: Units Billed | E94: Rate | F94: Amount | H94: Units Billed | I94: Rate | J94: Amount | L94: Units Billed | M94: Rate | N94: Amount | P94: Amount
B96: January | D96: =D20+D39+D58+D77 -> 229550.8586 | E96: =IF(D96<>0,F96/D96,0) -> 3.768896278 | F96: =F20+F39+F58+F77 -> 865153.3767 | H96: =H20+H39+H58+H77 -> 234226.8653 | I96: =IF(H96<>0,J96/H96,0) -> 0.8375854691 | J96: =J20+J39+J58+J77 -> 196185.0189 | L96: =L20+L39+L58+L77 -> 32329 | M96: =IF(L96<>0,N96/L96,0) -> 1.884301401 | N96: =N20+N39+N58+N77 -> 60917.58 | P96: =J96+N96 -> 257102.5989
B97: February | D97: =D21+D40+D59+D78 -> 223941.9212 | E97: 3.767704275 | F97: =F21+F40+F59+F78 -> 843746.9337 | H97: =H21+H40+H59+H78 -> 227446.915 | I97: 0.8385521654 | J97: =J21+J40+J59+J78 -> 190726.1031 | L97: =L21+L40+L59+L78 -> 32607 | M97: 1.876814794 | N97: =N21+N40+N59+N78 -> 61197.3 | P97: 251923.4031
B98: March | D98: 214859.1711 | E98: 3.75567031 | F98: 806940.2097 | H98: 225759.4706 | I98: 0.8511063668 | J98: 192145.3228 | L98: 31487 | M98: 1.880416045 | N98: 59208.66 | P98: 251353.9828
B99: April | D99: 205307.4771 | E99: 3.729149979 | F99: 765622.3738 | H99: 214569.0876 | I99: 0.8764697084 | J99: 188063.3057 | L99: 29865 | M99: 1.884566549 | N99: 56282.58 | P99: 244345.8857
B100: May | D100: 228899.4025 | E100: 3.760476007 | F100: 860770.7109 | H100: 239046.3957 | I100: 0.8501938516 | J100: 203235.7758 | L100: 30457.77 | M100: 1.887785856 | N100: 57497.7474 | P100: 260733.5232
B101: June | D101: 262257.6867 | E101: 3.765005335 | F101: 987401.5894 | H101: 265319.249 | I101: 0.8496970651 | J101: 225440.9872 | L101: 32547.06 | M101: 1.896091297 | N101: 61712.1972 | P101: 287153.1844
B102: July | D102: 283428.828 | E102: 3.762817763 | F102: 1066491.028 | H102: 297841.3594 | I102: 0.848417875 | J102: 252693.9332 | L102: 35836.12 | M102: 1.886714142 | N102: 67612.5144 | P102: 320306.4476
B103: August | D103: 258211.6977 | E103: 3.762904609 | F103: 971625.9873 | H103: 270826.7297 | I103: 0.8485901077 | J103: 229820.8837 | L103: 32022.28 | M103: 1.884562049 | N103: 60347.9736 | P103: 290168.8573
B104: September | D104: 266849.7898 | E104: 3.76270865 | F104: 1004078.012 | H104: 278133.0235 | I104: 0.8486902232 | J104: 236048.7778 | L104: 29878.4 | M104: 1.87123032 | N104: 55909.368 | P104: 291958.1458
B105: October | D105: 194726.8116 | E105: 3.756147383 | F105: 731422.6039 | H105: 209492.123 | I105: 0.8508998233 | J105: 178256.8104 | L105: 25264.77 | M105: 1.876412388 | N105: 47407.1274 | P105: 225663.9378
B106: November | D106: 247339.111 | E106: 3.762272535 | F106: 930557.1443 | H106: 229450.6297 | I106: 0.8526188476 | J106: 195633.9314 | L106: 29514.14 | M106: 1.885979629 | N106: 55663.0668 | P106: 251296.9982
B107: December | D107: 217465.9688 | E107: 3.748579686 | F107: 815188.5131 | H107: 244760.5766 | I107: 0.8531400943 | J107: 208815.0614 | L107: 32298.91 | M107: 1.883399601 | N107: 60831.7542 | P107: 269646.8156
B109: Total | D109: =SUM(D96:D107) -> 2832838.724 | E109: =IF(D109<>0,F109/D109,0) -> 3.759126276 | F109: =SUM(F96:F107) -> 10648998.48 | H109: =SUM(H96:H107) -> 2936872.425 | I109: =IF(H109<>0,J109/H109,0) -> 0.85024664 | J109: =SUM(J96:J107) -> 2497065.911 | L109: =SUM(L96:L107) -> 374107.45 | M109: =IF(L109<>0,N109/L109,0) -> 1.883383688 | N109: =SUM(N96:N107) -> 704587.869 | P109: =SUM(P96:P107) -> 3201653.78
N111: Transformer Allowance Credit (if applicable) | P111: ='15. RTSR - UTRs & Sub-Tx'!G95 -> 0
N113: Total including deduction for Transformer Allowance Credit | P113: =P109+P111 -> 3201653.78

Sheet 18. RTSR - Forecast Wholesale
B13: The purpose of this sheet is to calculate the expected billing when forecasted 2015 Uniform Transmission Rates are applied against historical 2013 transmission units.
B16: IESO | D16: Network | H16: Line Connection | L16: Transformation Connection | P16: Total Line
B18: Month | D18: Units Billed | E18: Rate | F18: Amount | H18: Units Billed | I18: Rate | J18: Amount | L18: Units Billed | M18: Rate | N18: Amount | P18: Amount
B20: January | D20: ='16. RTSR - Historical Wholesale'!D19 -> 212740 | E20: ='15. RTSR - UTRs & Sub-Tx'!I22 -> 3.78 | F20: =D20*E20 -> 804157.2 | H20: ='16. RTSR - Historical Wholesale'!H19 -> 217226 | I20: ='15. RTSR - UTRs & Sub-Tx'!I24 -> 0.86 | J20: =H20*I20 -> 186814.36 | L20: ='16. RTSR - Historical Wholesale'!L19 -> 23735 | M20: ='15. RTSR - UTRs & Sub-Tx'!I26 -> 2 | N20: =L20*M20 -> 47470 | P20: =J20+N20 -> 234284.36
B21: February | D21: ='16. RTSR - Historical Wholesale'!D20 -> 206978 | E21: =E20 -> 3.78 | F21: 782376.84 | H21: ='16. RTSR - Historical Wholesale'!H20 -> 210117 | I21: =I20 -> 0.86 | J21: 180700.62 | L21: ='16. RTSR - Historical Wholesale'!L20 -> 23261 | M21: =M20 -> 2 | N21: 46522 | P21: 227222.62
B22: March | D22: ='16. RTSR - Historical Wholesale'!D21 -> 196431 | E22: 3.78 | F22: 742509.18 | H22: ='16. RTSR - Historical Wholesale'!H21 -> 206799 | I22: 0.86 | J22: 177847.14 | L22: ='16. RTSR - Historical Wholesale'!L21 -> 22777 | M22: 2 | N22: 45554 | P22: 223401.14
B23: April | D23: ='16. RTSR - Historical Wholesale'!D22 -> 182846 | E23: 3.78 | F23: 691157.88 | H23: ='16. RTSR - Historical Wholesale'!H22 -> 192065 | I23: 0.86 | J23: 165175.9 | L23: ='16. RTSR - Historical Wholesale'!L22 -> 21948 | M23: 2 | N23: 43896 | P23: 209071.9
B24: May | D24: ='16. RTSR - Historical Wholesale'!D23 -> 211057 | E24: 3.78 | F24: 797795.46 | H24: ='16. RTSR - Historical Wholesale'!H23 -> 221204 | I24: 0.86 | J24: 190235.44 | L24: ='16. RTSR - Historical Wholesale'!L23 -> 22656 | M24: 2 | N24: 45312 | P24: 235547.44
B25: June | D25: ='16. RTSR - Historical Wholesale'!D24 -> 243780 | E25: 3.78 | F25: 921488.4 | H25: ='16. RTSR - Historical Wholesale'!H24 -> 246709 | I25: 0.86 | J25: 212169.74 | L25: ='16. RTSR - Historical Wholesale'!L24 -> 24961 | M25: 2 | N25: 49922 | P25: 262091.74
B26: July | D26: ='16. RTSR - Historical Wholesale'!D25 -> 262249 | E26: 3.78 | F26: 991301.22 | H26: ='16. RTSR - Historical Wholesale'!H25 -> 276410 | I26: 0.86 | J26: 237712.6 | L26: ='16. RTSR - Historical Wholesale'!L25 -> 26550 | M26: 2 | N26: 53100 | P26: 290812.6
B27: August | D27: ='16. RTSR - Historical Wholesale'!D26 -> 238928 | E27: 3.78 | F27: 903147.84 | H27: ='16. RTSR - Historical Wholesale'!H26 -> 251388 | I27: 0.86 | J27: 216193.68 | L27: ='16. RTSR - Historical Wholesale'!L26 -> 23533 | M27: 2 | N27: 47066 | P27: 263259.68
B28: September | D28: ='16. RTSR - Historical Wholesale'!D27 -> 246882 | E28: 3.78 | F28: 933213.96 | H28: ='16. RTSR - Historical Wholesale'!H27 -> 257688 | I28: 0.86 | J28: 221611.68 | L28: ='16. RTSR - Historical Wholesale'!L27 -> 20851 | M28: 2 | N28: 41702 | P28: 263313.68
B29: October | D29: ='16. RTSR - Historical Wholesale'!D28 -> 178436 | E29: 3.78 | F29: 674488.08 | H29: ='16. RTSR - Historical Wholesale'!H28 -> 192896 | I29: 0.86 | J29: 165890.56 | L29: ='16. RTSR - Historical Wholesale'!L28 -> 17995 | M29: 2 | N29: 35990 | P29: 201880.56
B30: November | D30: ='16. RTSR - Historical Wholesale'!D29 -> 228849 | E30: 3.78 | F30: 865049.22 | H30: ='16. RTSR - Historical Wholesale'!H29 -> 210829 | I30: 0.86 | J30: 181312.94 | L30: ='16. RTSR - Historical Wholesale'!L29 -> 21806 | M30: 2 | N30: 43612 | P30: 224924.94
B31: December | D31: ='16. RTSR - Historical Wholesale'!D30 -> 197240 | E31: 3.78 | F31: 745567.2 | H31: ='16. RTSR - Historical Wholesale'!H30 -> 224329 | I31: 0.86 | J31: 192922.94 | L31: ='16. RTSR - Historical Wholesale'!L30 -> 23632 | M31: 2 | N31: 47264 | P31: 240186.94
B33: Total | D33: =SUM(D20:D31) -> 2606416 | E33: =IF(D33<>0,F33/D33,0) -> 3.78 | F33: =SUM(F20:F31) -> 9852252.48 | H33: =SUM(H20:H31) -> 2707660 | I33: =IF(H33<>0,J33/H33,0) -> 0.86 | J33: =SUM(J20:J31) -> 2328587.6 | L33: =SUM(L20:L31) -> 273705 | M33: =IF(L33<>0,N33/L33,0) -> 2 | N33: =SUM(N20:N31) -> 547410 | P33: =SUM(P20:P31) -> 2875997.6
B35: Hydro One | D35: Network | H35: Line Connection | L35: Transformation Connection | P35: Total Line
B37: Month | D37: Units Billed | E37: Rate | F37: Amount | H37: Units Billed | I37: Rate | J37: Amount | L37: Units Billed | M37: Rate | N37: Amount | P37: Amount
B39: January | D39: ='16. RTSR - Historical Wholesale'!D38 -> 8404 | E39: ='15. RTSR - UTRs & Sub-Tx'!I35+'15. RTSR - UTRs & Sub-Tx'!I79 -> 3.23 | F39: =D39*E39 -> 27144.92 | H39: ='16. RTSR - Historical Wholesale'!H38 -> 8594 | I39: ='15. RTSR - UTRs & Sub-Tx'!I37+'15. RTSR - UTRs & Sub-Tx'!I81 -> 0.65 | J39: =H39*I39 -> 5586.1 | L39: ='16. RTSR - Historical Wholesale'!L38 -> 8594 | M39: ='15. RTSR - UTRs & Sub-Tx'!I39 -> 1.62 | N39: =L39*M39 -> 13922.28 | P39: =J39+N39 -> 19508.38
B40: February | D40: ='16. RTSR - Historical Wholesale'!D39 -> 8980 | E40: =E39 -> 3.23 | F40: 29005.4 | H40: ='16. RTSR - Historical Wholesale'!H39 -> 9346 | I40: =I39 -> 0.65 | J40: 6074.9 | L40: ='16. RTSR - Historical Wholesale'!L39 -> 9346 | M40: =M39 -> 1.62 | N40: 15140.52 | P40: 21215.42
B41: March | D41: ='16. RTSR - Historical Wholesale'!D40 -> 8348 | E41: 3.23 | F41: 26964.04 | H41: ='16. RTSR - Historical Wholesale'!H40 -> 8710 | I41: 0.65 | J41: 5661.5 | L41: ='16. RTSR - Historical Wholesale'!L40 -> 8710 | M41: 1.62 | N41: 14110.2 | P41: 19771.7
B42: April | D42: ='16. RTSR - Historical Wholesale'!D41 -> 7826 | E42: 3.23 | F42: 25277.98 | H42: ='16. RTSR - Historical Wholesale'!H41 -> 7917 | I42: 0.65 | J42: 5146.05 | L42: ='16. RTSR - Historical Wholesale'!L41 -> 7917 | M42: 1.62 | N42: 12825.54 | P42: 17971.59
B43: May | D43: ='16. RTSR - Historical Wholesale'!D42 -> 7801.77 | E43: 3.23 | F43: 25199.7171 | H43: ='16. RTSR - Historical Wholesale'!H42 -> 7801.77 | I43: 0.65 | J43: 5071.1505 | L43: ='16. RTSR - Historical Wholesale'!L42 -> 7801.77 | M43: 1.62 | N43: 12638.8674 | P43: 17710.0179
B44: June | D44: ='16. RTSR - Historical Wholesale'!D43 -> 7453.5 | E44: 3.23 | F44: 24074.805 | H44: ='16. RTSR - Historical Wholesale'!H43 -> 7586.06 | I44: 0.65 | J44: 4930.939 | L44: ='16. RTSR - Historical Wholesale'!L43 -> 7586.06 | M44: 1.62 | N44: 12289.4172 | P44: 17220.3562
B45: July | D45: ='16. RTSR - Historical Wholesale'!D44 -> 9076.25 | E45: 3.23 | F45: 29316.2875 | H45: ='16. RTSR - Historical Wholesale'!H44 -> 9286.12 | I45: 0.65 | J45: 6035.978 | L45: ='16. RTSR - Historical Wholesale'!L44 -> 9286.12 | M45: 1.62 | N45: 15043.5144 | P45: 21079.4924
B46: August | D46: ='16. RTSR - Historical Wholesale'!D45 -> 8334.25 | E46: 3.23 | F46: 26919.6275 | H46: ='16. RTSR - Historical Wholesale'!H45 -> 8489.28 | I46: 0.65 | J46: 5518.032 | L46: ='16. RTSR - Historical Wholesale'!L45 -> 8489.28 | M46: 1.62 | N46: 13752.6336 | P46: 19270.6656
B47: September | D47: ='16. RTSR - Historical Wholesale'!D46 -> 8550.16 | E47: 3.23 | F47: 27617.0168 | H47: ='16. RTSR - Historical Wholesale'!H46 -> 9027.4 | I47: 0.65 | J47: 5867.81 | L47: ='16. RTSR - Historical Wholesale'!L46 -> 9027.4 | M47: 1.62 | N47: 14624.388 | P47: 20492.198
B48: October | D48: ='16. RTSR - Historical Wholesale'!D47 -> 7008.62 | E48: 3.23 | F48: 22637.8426 | H48: ='16. RTSR - Historical Wholesale'!H47 -> 7269.77 | I48: 0.65 | J48: 4725.3505 | L48: ='16. RTSR - Historical Wholesale'!L47 -> 7269.77 | M48: 1.62 | N48: 11777.0274 | P48: 16502.3779
B49: November | D49: ='16. RTSR - Historical Wholesale'!D48 -> 7576.62 | E49: 3.23 | F49: 24472.4826 | H49: ='16. RTSR - Historical Wholesale'!H48 -> 7708.14 | I49: 0.65 | J49: 5010.291 | L49: ='16. RTSR - Historical Wholesale'!L48 -> 7708.14 | M49: 1.62 | N49: 12487.1868 | P49: 17497.4778
B50: December | D50: ='16. RTSR - Historical Wholesale'!D49 -> 8512.72 | E50: 3.23 | F50: 27496.0856 | H50: ='16. RTSR - Historical Wholesale'!H49 -> 8666.91 | I50: 0.65 | J50: 5633.4915 | L50: ='16. RTSR - Historical Wholesale'!L49 -> 8666.91 | M50: 1.62 | N50: 14040.3942 | P50: 19673.8857
B52: Total | D52: =SUM(D39:D50) -> 97871.89 | E52: =IF(D52<>0,F52/D52,0) -> 3.23 | F52: =SUM(F39:F50) -> 316126.2047 | H52: =SUM(H39:H50) -> 100402.45 | I52: =IF(H52<>0,J52/H52,0) -> 0.65 | J52: =SUM(J39:J50) -> 65261.5925 | L52: =SUM(L39:L50) -> 100402.45 | M52: =IF(L52<>0,N52/L52,0) -> 1.62 | N52: =SUM(N39:N50) -> 162651.969 | P52: =SUM(P39:P50) -> 227913.5615
B54: ='16. RTSR - Historical Wholesale'!B53 -> Add Extra Host Here (I) | D54: Network | H54: Line Connection | L54: Transformation Connection | P54: Total Line
B56: Month | D56: Units Billed | E56: Rate | F56: Amount | H56: Units Billed | I56: Rate | J56: Amount | L56: Units Billed | M56: Rate | N56: Amount | P56: Amount
B58: January | D58: ='16. RTSR - Historical Wholesale'!D57 -> 3298.509174 | E58: ='15. RTSR - UTRs & Sub-Tx'!I50 -> 3.11 | F58: =D58*E58 -> 10258.36353 | H58: ='16. RTSR - Historical Wholesale'!H57 -> 3298.5155 | I58: ='15. RTSR - UTRs & Sub-Tx'!I52 -> 0.71 | J58: =H58*I58 -> 2341.946005 | L58: ='16. RTSR - Historical Wholesale'!L57 -> 0 | M58: ='15. RTSR - UTRs & Sub-Tx'!I54 -> 0 | N58: =L58*M58 -> 0 | P58: =J58+N58 -> 2341.946005
B59: February | D59: ='16. RTSR - Historical Wholesale'!D58 -> 2792.830831 | E59: =E58 -> 3.11 | F59: 8685.703885 | H59: ='16. RTSR - Historical Wholesale'!H58 -> 2792.824916 | I59: =I58 -> 0.71 | J59: 1982.905691 | L59: ='16. RTSR - Historical Wholesale'!L58 -> 0 | M59: =M58 -> 0 | N59: 0 | P59: 1982.905691
B60: March | D60: ='16. RTSR - Historical Wholesale'!D59 -> 2562.340145 | E60: 3.11 | F60: 7968.87785 | H60: ='16. RTSR - Historical Wholesale'!H59 -> 2586.523068 | I60: 0.71 | J60: 1836.431378 | L60: ='16. RTSR - Historical Wholesale'!L59 -> 0 | M60: 0 | N60: 0 | P60: 1836.431378
B61: April | D61: ='16. RTSR - Historical Wholesale'!D60 -> 2417.858632 | E61: 3.11 | F61: 7519.540346 | H61: ='16. RTSR - Historical Wholesale'!H60 -> 2369.465871 | I61: 0.71 | J61: 1682.320768 | L61: ='16. RTSR - Historical Wholesale'!L60 -> 0 | M61: 0 | N61: 0 | P61: 1682.320768
B62: May | D62: ='16. RTSR - Historical Wholesale'!D61 -> 2325.461764 | E62: 3.11 | F62: 7232.186087 | H62: ='16. RTSR - Historical Wholesale'!H61 -> 2325.456262 | I62: 0.71 | J62: 1651.073946 | L62: ='16. RTSR - Historical Wholesale'!L61 -> 0 | M62: 0 | N62: 0 | P62: 1651.073946
B63: June | D63: ='16. RTSR - Historical Wholesale'!D62 -> 2669.176592 | E63: 3.11 | F63: 8301.139202 | H63: ='16. RTSR - Historical Wholesale'!H62 -> 2669.178729 | I63: 0.71 | J63: 1895.116897 | L63: ='16. RTSR - Historical Wholesale'!L62 -> 0 | M63: 0 | N63: 0 | P63: 1895.116897
B64: July | D64: ='16. RTSR - Historical Wholesale'!D63 -> 2994.099776 | E64: 3.11 | F64: 9311.650302 | H64: ='16. RTSR - Historical Wholesale'!H63 -> 3035.761485 | I64: 0.71 | J64: 2155.390654 | L64: ='16. RTSR - Historical Wholesale'!L63 -> 0 | M64: 0 | N64: 0 | P64: 2155.390654
B65: August | D65: ='16. RTSR - Historical Wholesale'!D64 -> 2638.608666 | E65: 3.11 | F65: 8206.07295 | H65: ='16. RTSR - Historical Wholesale'!H64 -> 2638.609188 | I65: 0.71 | J65: 1873.412524 | L65: ='16. RTSR - Historical Wholesale'!L64 -> 0 | M65: 0 | N65: 0 | P65: 1873.412524
B66: September | D66: ='16. RTSR - Historical Wholesale'!D65 -> 2811.648541 | E66: 3.11 | F66: 8744.226964 | H66: ='16. RTSR - Historical Wholesale'!H65 -> 2811.642542 | I66: 0.71 | J66: 1996.266205 | L66: ='16. RTSR - Historical Wholesale'!L65 -> 0 | M66: 0 | N66: 0 | P66: 1996.266205
B67: October | D67: ='16. RTSR - Historical Wholesale'!D66 -> 2340.58001 | E67: 3.11 | F67: 7279.203832 | H67: ='16. RTSR - Historical Wholesale'!H66 -> 2340.575834 | I67: 0.71 | J67: 1661.808842 | L67: ='16. RTSR - Historical Wholesale'!L66 -> 0 | M67: 0 | N67: 0 | P67: 1661.808842
B68: November | D68: ='16. RTSR - Historical Wholesale'!D67 -> 2875.49111 | E68: 3.11 | F68: 8942.777352 | H68: ='16. RTSR - Historical Wholesale'!H67 -> 2875.487728 | I68: 0.71 | J68: 2041.596287 | L68: ='16. RTSR - Historical Wholesale'!L67 -> 0 | M68: 0 | N68: 0 | P68: 2041.596287
B69: December | D69: ='16. RTSR - Historical Wholesale'!D68 -> 2985.019852 | E69: 3.11 | F69: 9283.411738 | H69: ='16. RTSR - Historical Wholesale'!H68 -> 3036.438011 | I69: 0.71 | J69: 2155.870988 | L69: ='16. RTSR - Historical Wholesale'!L68 -> 0 | M69: 0 | N69: 0 | P69: 2155.870988
B71: Total | D71: =SUM(D58:D69) -> 32711.62509 | E71: =IF(D71<>0,F71/D71,0) -> 3.11 | F71: =SUM(F58:F69) -> 101733.154 | H71: =SUM(H58:H69) -> 32780.47913 | I71: =IF(H71<>0,J71/H71,0) -> 0.71 | J71: =SUM(J58:J69) -> 23274.14019 | L71: =SUM(L58:L69) -> 0 | M71: =IF(L71<>0,N71/L71,0) -> 0 | N71: =SUM(N58:N69) -> 0 | P71: =SUM(P58:P69) -> 23274.14019
B73: ='16. RTSR - Historical Wholesale'!B72 -> Add Extra Host Here (II) | D73: Network | H73: Line Connection | L73: Transformation Connection | P73: Total Line
B75: Month | D75: Units Billed | E75: Rate | F75: Amount | H75: Units Billed | I75: Rate | J75: Amount | L75: Units Billed | M75: Rate | N75: Amount | P75: Amount
B77: January | D77: ='16. RTSR - Historical Wholesale'!D76 -> 5108.349432 | E77: ='15. RTSR - UTRs & Sub-Tx'!I65 -> 2.7207 | F77: =D77*E77 -> 13898.2863 | H77: ='16. RTSR - Historical Wholesale'!H76 -> 5108.349833 | I77: ='15. RTSR - UTRs & Sub-Tx'!I67 -> 1.9124 | J77: =H77*I77 -> 9769.208221 | L77: ='16. RTSR - Historical Wholesale'!L76 -> 0 | M77: ='15. RTSR - UTRs & Sub-Tx'!I69 -> 0 | N77: =L77*M77 -> 0 | P77: =J77+N77 -> 9769.208221
B78: February | D78: ='16. RTSR - Historical Wholesale'!D77 -> 5191.090333 | E78: =E77 -> 2.7207 | F78: 14123.39947 | H78: ='16. RTSR - Historical Wholesale'!H77 -> 5191.090117 | I78: =I77 -> 1.9124 | J78: 9927.44074 | L78: ='16. RTSR - Historical Wholesale'!L77 -> 0 | M78: =M77 -> 0 | N78: 0 | P78: 9927.44074
B79: March | D79: ='16. RTSR - Historical Wholesale'!D78 -> 7517.830925 | E79: 2.7207 | F79: 20453.7626 | H79: ='16. RTSR - Historical Wholesale'!H78 -> 7663.947502 | I79: 1.9124 | J79: 14656.5332 | L79: ='16. RTSR - Historical Wholesale'!L78 -> 0 | M79: 0 | N79: 0 | P79: 14656.5332
B80: April | D80: ='16. RTSR - Historical Wholesale'!D79 -> 12217.61842 | E80: 2.7207 | F80: 33240.47444 | H80: ='16. RTSR - Historical Wholesale'!H79 -> 12217.62177 | I80: 1.9124 | J80: 23364.97987 | L80: ='16. RTSR - Historical Wholesale'!L79 -> 0 | M80: 0 | N80: 0 | P80: 23364.97987
B81: May | D81: ='16. RTSR - Historical Wholesale'!D80 -> 7715.170695 | E81: 2.7207 | F81: 20990.66491 | H81: ='16. RTSR - Historical Wholesale'!H80 -> 7715.16942 | I81: 1.9124 | J81: 14754.49 | L81: ='16. RTSR - Historical Wholesale'!L80 -> 0 | M81: 0 | N81: 0 | P81: 14754.49
B82: June | D82: ='16. RTSR - Historical Wholesale'!D81 -> 8355.010087 | E82: 2.7207 | F82: 22731.47594 | H82: ='16. RTSR - Historical Wholesale'!H81 -> 8355.01025 | I82: 1.9124 | J82: 15978.1216 | L82: ='16. RTSR - Historical Wholesale'!L81 -> 0 | M82: 0 | N82: 0 | P82: 15978.1216
B83: July | D83: ='16. RTSR - Historical Wholesale'!D82 -> 9109.478223 | E83: 2.7207 | F83: 24784.1574 | H83: ='16. RTSR - Historical Wholesale'!H82 -> 9109.477873 | I83: 1.9124 | J83: 17420.96548 | L83: ='16. RTSR - Historical Wholesale'!L82 -> 0 | M83: 0 | N83: 0 | P83: 17420.96548
B84: August | D84: ='16. RTSR - Historical Wholesale'!D83 -> 8310.839036 | E84: 2.7207 | F84: 22611.29977 | H84: ='16. RTSR - Historical Wholesale'!H83 -> 8310.840468 | I84: 1.9124 | J84: 15893.65131 | L84: ='16. RTSR - Historical Wholesale'!L83 -> 0 | M84: 0 | N84: 0 | P84: 15893.65131
B85: September | D85: ='16. RTSR - Historical Wholesale'!D84 -> 8605.981249 | E85: 2.7207 | F85: 23414.29318 | H85: ='16. RTSR - Historical Wholesale'!H84 -> 8605.980948 | I85: 1.9124 | J85: 16458.07796 | L85: ='16. RTSR - Historical Wholesale'!L84 -> 0 | M85: 0 | N85: 0 | P85: 16458.07796
B86: October | D86: ='16. RTSR - Historical Wholesale'!D85 -> 6941.611614 | E86: 2.7207 | F86: 18886.04272 | H86: ='16. RTSR - Historical Wholesale'!H85 -> 6985.777161 | I86: 1.9124 | J86: 13359.60024 | L86: ='16. RTSR - Historical Wholesale'!L85 -> 0 | M86: 0 | N86: 0 | P86: 13359.60024
B87: November | D87: ='16. RTSR - Historical Wholesale'!D86 -> 8037.999921 | E87: 2.7207 | F87: 21868.98638 | H87: ='16. RTSR - Historical Wholesale'!H86 -> 8038.001929 | I87: 1.9124 | J87: 15371.87489 | L87: ='16. RTSR - Historical Wholesale'!L86 -> 0 | M87: 0 | N87: 0 | P87: 15371.87489
B88: December | D88: ='16. RTSR - Historical Wholesale'!D87 -> 8728.228965 | E88: 2.7207 | F88: 23746.89254 | H88: ='16. RTSR - Historical Wholesale'!H87 -> 8728.228627 | I88: 1.9124 | J88: 16691.86443 | L88: ='16. RTSR - Historical Wholesale'!L87 -> 0 | M88: 0 | N88: 0 | P88: 16691.86443
B90: Total | D90: =SUM(D77:D88) -> 95839.2089 | E90: =IF(D90<>0,F90/D90,0) -> 2.7207 | F90: =SUM(F77:F88) -> 260749.7357 | H90: =SUM(H77:H88) -> 96029.4959 | I90: =IF(H90<>0,J90/H90,0) -> 1.9124 | J90: =SUM(J77:J88) -> 183646.808 | L90: =SUM(L77:L88) -> 0 | M90: =IF(L90<>0,N90/L90,0) -> 0 | N90: =SUM(N77:N88) -> 0 | P90: =SUM(P77:P88) -> 183646.808
B92: Total | D92: Network | H92: Line Connection | L92: Transformation Connection | P92: Total Line
B94: Month | D94: Units Billed | E94: Rate | F94: Amount | H94: Units Billed | I94: Rate | J94: Amount | L94: Units Billed | M94: Rate | N94: Amount | P94: Amount
B96: January | D96: =D20+D39+D58+D77 -> 229550.8586 | E96: =IF(D96<>0,F96/D96,0) -> 3.726663342 | F96: =F20+F39+F58+F77 -> 855458.7698 | H96: =H20+H39+H58+H77 -> 234226.8653 | I96: =IF(H96<>0,J96/H96,0) -> 0.8731347445 | J96: =J20+J39+J58+J77 -> 204511.6142 | L96: =L20+L39+L58+L77 -> 32329 | M96: =IF(L96<>0,N96/L96,0) -> 1.898984812 | N96: =N20+N39+N58+N77 -> 61392.28 | P96: =J96+N96 -> 265903.8942
B97: February | D97: =D21+D40+D59+D78 -> 223941.9212 | E97: 3.725034326 | F97: =F21+F40+F59+F78 -> 834191.3434 | H97: =H21+H40+H59+H78 -> 227446.915 | I97: 0.873548302 | J97: =J21+J40+J59+J78 -> 198685.8664 | L97: =L21+L40+L59+L78 -> 32607 | M97: 1.891082283 | N97: =N21+N40+N59+N78 -> 61662.52 | P97: 260348.3864
B98: March | D98: 214859.1711 | E98: 3.713575997 | F98: 797895.8604 | H98: 225759.4706 | I98: 0.8859057123 | J98: 200001.6046 | L98: 31487 | M98: 1.894883603 | N98: 59664.2 | P98: 259665.8046
B99: April | D99: 205307.4771 | E99: 3.688106666 | F99: 757195.8748 | H99: 214569.0876 | I99: 0.910519091 | J99: 195369.2506 | L99: 29865 | M99: 1.899264691 | N99: 56721.54 | P99: 252090.7906
B100: May | D100: 228899.4025 | E100: 3.718742902 | F100: 851218.0281 | H100: 239046.3957 | I100: 0.8856529873 | J100: 211712.1544 | L100: 30457.77 | M100: 1.902662848 | N100: 57950.8674 | P100: 269663.0218
B101: June | D101: 262257.6867 | E101: 3.723802465 | F101: 976595.8201 | H101: 265319.249 | I101: 0.8856271017 | J101: 234973.9175 | L101: 32547.06 | M101: 1.911429702 | N101: 62211.4172 | P101: 297185.3347
B102: July | D102: 283428.828 | E102: 3.721263368 | F102: 1054713.315 | H102: 297841.3594 | I102: 0.8841113763 | J102: 263324.9341 | L102: 35836.12 | M102: 1.901531594 | N102: 68143.5144 | P102: 331468.4485
B103: August | D103: 258211.6977 | E103: 3.721306388 | F103: 960884.8402 | H103: 270826.7297 | I103: 0.8842508867 | J103: 239478.7758 | L103: 32022.28 | M103: 1.89925994 | N103: 60818.6336 | P103: 300297.4094
B104: September | D104: 266849.7898 | E104: 3.721155253 | F104: 992989.4969 | H104: 278133.0235 | I104: 0.8842309737 | J104: 245933.8342 | L104: 29878.4 | M104: 1.88518756 | N104: 56326.388 | P104: 302260.2222
B105: October | D105: 194726.8116 | E105: 3.714389216 | F105: 723291.1692 | H105: 209492.123 | I105: 0.8861303085 | J105: 185637.3196 | L105: 25264.77 | M105: 1.89065752 | N105: 47767.0274 | P105: 233404.347
B106: November | D106: 247339.111 | E106: 3.720937876 | F106: 920333.4663 | H106: 229450.6297 | I106: 0.8879326349 | J106: 203736.7022 | L106: 29514.14 | M106: 1.900756275 | N106: 56099.1868 | P106: 259835.889
B107: December | D107: 217465.9688 | E107: 3.706757403 | F107: 806093.5899 | H107: 244760.5766 | I107: 0.8882319608 | J107: 217404.1669 | L107: 32298.91 | M107: 1.898032912 | N107: 61304.3942 | P107: 278708.5611
B109: Total | D109: =SUM(D96:D107) -> 2832838.724 | E109: =IF(D109<>0,F109/D109,0) -> 3.717423617 | F109: =SUM(F96:F107) -> 10530861.57 | H109: =SUM(H96:H107) -> 2936872.425 | I109: =IF(H109<>0,J109/H109,0) -> 0.8855577513 | J109: =SUM(J96:J107) -> 2600770.141 | L109: =SUM(L96:L107) -> 374107.45 | M109: =IF(L109<>0,N109/L109,0) -> 1.898016115 | N109: =SUM(N96:N107) -> 710061.969 | P109: =SUM(P96:P107) -> 3310832.11
N111: Transformer Allowance Credit (if applicable) | P111: ='15. RTSR - UTRs & Sub-Tx'!I95 -> 0
N113: Total including deduction for Transformer Allowance Credit | P113: =P109+P111 -> 3310832.11

Sheet 19. RTSR Ntwrk to Curren WS
A13: The purpose of this sheet is to re-align the current RTS Network Rates to recover current wholesale network costs.
A16: Rate Class | B16: Rate Description | C16: Unit | E16: Current RTSR-Network | G16: Loss Adjusted Billed kWh | I16: Loss Adjusted Billed kW | K16: Billed Amount | M16: Billed Amount % | O16: Current Wholesale Billing | Q16: Proposed RTSR Network
A19: RESIDENTIAL | B19: Retail Transmission Rate - Network Service Rate | C19: $/kWh | E19: 0.0076 | G19: 425984440 | I19: 0 | K19: =IF(E19="", "", IF(C19="$/kWh", E19*G19, E19*I19)) -> 3237481.744 | M19: =IF(ISERROR(K19/SUM(K19:K100)),"",K19/SUM(K19:K100)) -> 0.3078952974 | O19: =IF(ISERROR('17. RTSR - Current Wholesale'!$F$109*M19), "", '17. RTSR - Current Wholesale'!$F$109*M19) -> 3278776.555 | Q19: =IF(C19="","",IF(C19="$/kWh",IF(G19<>0,O19/G19,),IF(I19<>0,O19/I19,0))) -> 0.007696939717
A20: GENERAL SERVICE LESS THAN 50 KW | B20: Retail Transmission Rate - Network Service Rate | C20: $/kWh | E20: 0.0069 | G20: 202605362.1 | I20: 0 | K20: 1397976.999 | M20: =IF(ISERROR(K20/SUM(K19:K100)),"",K20/SUM(K19:K100)) -> 0.132952269 | O20: =IF(ISERROR('17. RTSR - Current Wholesale'!$F$109*M20), "", '17. RTSR - Current Wholesale'!$F$109*M20) -> 1415808.511 | Q20: 0.006988011059
A21: GENERAL SERVICE 50 TO 4,999 KW | B21: Retail Transmission Rate - Network Service Rate - (less than 1,000 kW) | C21: $/kW | E21: 2.8378 | G21: 0 | I21: 476304 | K21: 1351655.491 | M21: =IF(ISERROR(K21/SUM(K19:K100)),"",K21/SUM(K19:K100)) -> 0.1285469394 | O21: =IF(ISERROR('17. RTSR - Current Wholesale'!$F$109*M21), "", '17. RTSR - Current Wholesale'!$F$109*M21) -> 1368896.162 | Q21: 2.87399678
A22: GENERAL SERVICE 50 TO 4,999 KW | B22: Retail Transmission Rate - Network Service Rate - Interval Metered (less than 1,000 kW) | C22: $/kW | E22: 3.0141 | G22: 0 | I22: 725765 | K22: 2187528.286 | M22: =IF(ISERROR(K22/SUM(K19:K100)),"",K22/SUM(K19:K100)) -> 0.2080412264 | O22: =IF(ISERROR('17. RTSR - Current Wholesale'!$F$109*M22), "", '17. RTSR - Current Wholesale'!$F$109*M22) -> 2215430.704 | Q22: 3.052545526
A23: GENERAL SERVICE 50 TO 4,999 KW | B23: Retail Transmission Rate - Network Service Rate - Interval Metered (1,000 to 4,999 kW) | C23: $/kW | E23: 3.0102 | G23: 0 | I23: 569915 | K23: 1715558.133 | M23: =IF(ISERROR(K23/SUM(K19:K100)),"",K23/SUM(K19:K100)) -> 0.1631552927 | O23: =IF(ISERROR('17. RTSR - Current Wholesale'!$F$109*M23), "", '17. RTSR - Current Wholesale'!$F$109*M23) -> 1737440.464 | Q23: 3.048595781
A24: LARGE USE | B24: Retail Transmission Rate - Network Service Rate - Interval Metered | C24: $/kW | E24: 3.3372 | G24: 0 | I24: 168361 | K24: 561854.3292 | M24: =IF(ISERROR(K24/SUM(K19:K100)),"",K24/SUM(K19:K100)) -> 0.05343421815 | O24: =IF(ISERROR('17. RTSR - Current Wholesale'!$F$109*M24), "", '17. RTSR - Current Wholesale'!$F$109*M24) -> 569020.9081 | Q24: 3.37976674
A25: UNMETERED SCATTERED LOAD | B25: Retail Transmission Rate - Network Service Rate | C25: $/kWh | E25: 0.0069 | G25: 2447640.878 | I25: 0 | K25: 16888.72206 | M25: =IF(ISERROR(K25/SUM(K19:K100)),"",K25/SUM(K19:K100)) -> 0.001606173722 | O25: =IF(ISERROR('17. RTSR - Current Wholesale'!$F$109*M25), "", '17. RTSR - Current Wholesale'!$F$109*M25) -> 17104.14153 | Q25: 0.006988011059
A26: STREET LIGHTING | B26: Retail Transmission Rate - Network Service Rate | C26: $/kW | E26: 2.1404 | G26: 0 | I26: 21461 | K26: 45935.1244 | M26: =IF(ISERROR(K26/SUM(K19:K100)),"",K26/SUM(K19:K100)) -> 0.004368583333 | O26: =IF(ISERROR('17. RTSR - Current Wholesale'!$F$109*M26), "", '17. RTSR - Current Wholesale'!$F$109*M26) -> 46521.03729 | Q26: 2.167701285

Sheet 20. RTSR Adj Conn to Current WS
A13: The purpose of this sheet is to re-align the current RTS Connection Rates to recover current wholesale connection costs.
A16: Rate Class | B16: Rate Description | C16: Unit | E16: Current RTSR-Connection | G16: Loss Adjusted Billed kWh | I16: Loss Adjusted Billed kW | K16: Billed Amount | M16: Billed Amount % | O16: Current Wholesale Billing | Q16: Proposed RTSR Connection
A19: RESIDENTIAL | B19: Retail Transmission Rate - Line and Transformation Connection Service Rate | C19: $/kWh | E19: 0.0022 | G19: 425984440 | I19: 0 | K19: =IF(E19="", "", IF(C19="$/kWh", E19*G19, E19*I19)) -> 937165.768 | M19: =IF(ISERROR(K19/SUM(K19:K100)),"",K19/SUM(K19:K100)) -> 0.2957454357 | O19: =IF(ISERROR('17. RTSR - Current Wholesale'!$P$113*M19), "", '17. RTSR - Current Wholesale'!$P$113*M19) -> 946874.4923 | Q19: =IF(C19="","",IF(C19="$/kWh",IF(G19<>0,O19/G19,),IF(I19<>0,O19/I19,0))) -> 0.002222791265
A20: GENERAL SERVICE LESS THAN 50 KW | B20: Retail Transmission Rate - Line and Transformation Connection Service Rate | C20: $/kWh | E20: 0.002 | G20: 202605362.1 | I20: 0 | K20: 405210.7243 | M20: =IF(ISERROR(K20/SUM(K19:K100)),"",K20/SUM(K19:K100)) -> 0.1278740926 | O20: =IF(ISERROR('17. RTSR - Current Wholesale'!$P$113*M20), "", '17. RTSR - Current Wholesale'!$P$113*M20) -> 409408.572 | Q20: 0.002020719332
A21: GENERAL SERVICE 50 TO 4,999 KW | B21: Retail Transmission Rate - Line and Transformation Connection Service Rate - (less than 1,000 kW) | C21: $/kW | E21: 0.7815 | G21: 0 | I21: 476304 | K21: 372231.576 | M21: =IF(ISERROR(K21/SUM(K19:K100)),"",K21/SUM(K19:K100)) -> 0.1174667208 | O21: =IF(ISERROR('17. RTSR - Current Wholesale'!$P$113*M21), "", '17. RTSR - Current Wholesale'!$P$113*M21) -> 376087.7708 | Q21: 0.789596079
A22: GENERAL SERVICE 50 TO 4,999 KW | B22: Retail Transmission Rate - Line and Transformation Connection Service Rate - Interval Metered (less than 1,000 kW) | C22: $/kW | E22: 0.9761 | G22: 0 | I22: 732051 | K22: 714554.9811 | M22: =IF(ISERROR(K22/SUM(K19:K100)),"",K22/SUM(K19:K100)) -> 0.2254951914 | O22: =IF(ISERROR('17. RTSR - Current Wholesale'!$P$113*M22), "", '17. RTSR - Current Wholesale'!$P$113*M22) -> 721957.532 | Q22: 0.98621207
A23: GENERAL SERVICE 50 TO 4,999 KW | B23: Retail Transmission Rate - Line and Transformation Connection Service Rate - Interval Metered (1,000 to 4,999 kW) | C23: $/kW | E23: 0.975 | G23: 0 | I23: 571177 | K23: 556897.575 | M23: =IF(ISERROR(K23/SUM(K19:K100)),"",K23/SUM(K19:K100)) -> 0.1757425651 | O23: =IF(ISERROR('17. RTSR - Current Wholesale'!$P$113*M23), "", '17. RTSR - Current Wholesale'!$P$113*M23) -> 562666.8479 | Q23: 0.9851006744
A24: LARGE USE | B24: Retail Transmission Rate - Line and Transformation Connection Service Rate - Interval Metered | C24: $/kW | E24: 0.9795 | G24: 0 | I24: 168361 | K24: 164909.5995 | M24: =IF(ISERROR(K24/SUM(K19:K100)),"",K24/SUM(K19:K100)) -> 0.05204123222 | O24: =IF(ISERROR('17. RTSR - Current Wholesale'!$P$113*M24), "", '17. RTSR - Current Wholesale'!$P$113*M24) -> 166618.0079 | Q24: 0.9896472929
A25: UNMETERED SCATTERED LOAD | B25: Retail Transmission Rate - Line and Transformation Connection Service Rate | C25: $/kWh | E25: 0.002 | G25: 2447640.878 | I25: 0 | K25: 4895.281757 | M25: =IF(ISERROR(K25/SUM(K19:K100)),"",K25/SUM(K19:K100)) -> 0.001544825137 | O25: =IF(ISERROR('17. RTSR - Current Wholesale'!$P$113*M25), "", '17. RTSR - Current Wholesale'!$P$113*M25) -> 4945.995241 | Q25: 0.002020719332
A26: STREET LIGHTING | B26: Retail Transmission Rate - Line and Transformation Connection Service Rate | C26: $/kW | E26: 0.6039 | G26: 0 | I26: 21461 | K26: 12960.2979 | M26: =IF(ISERROR(K26/SUM(K19:K100)),"",K26/SUM(K19:K100)) -> 0.004089937 | O26: =IF(ISERROR('17. RTSR - Current Wholesale'!$P$113*M26), "", '17. RTSR - Current Wholesale'!$P$113*M26) -> 13094.56226 | Q26: 0.6101562023

Sheet 21. RTSR Adj Ntwk to Forcast WS
A13: The purpose of this sheet is to update the re-align RTS Network Rates to recover forecast wholesale network costs.
A16: Rate Class | B16: Rate Description | C16: Unit | E16: Adjusted RTSR-Network | G16: Loss Adjusted Billed kWh | I16: Loss Adjusted Billed kW | K16: Billed Amount | M16: Billed Amount % | O16: Forecast Wholesale Billing | Q16: Proposed RTSR Network
A19: RESIDENTIAL | B19: Retail Transmission Rate - Network Service Rate | C19: $/kWh | E19: 0.007696939717 | G19: 425984440 | I19: 0 | K19: =IF(E19="", "", IF(C19="$/kWh", E19*G19, E19*I19)) -> 3278776.555 | M19: =IF(ISERROR(K19/SUM(K19:K100)),"",K19/SUM(K19:K100)) -> 0.3078952974 | O19: =IF(ISERROR('18. RTSR - Forecast Wholesale'!$F$109*M19), "", '18. RTSR - Forecast Wholesale'!$F$109*M19) -> 3242402.756 | Q19: =IF(C19="","",IF(C19="$/kWh",IF(G19<>0,O19/G19,),IF(I19<>0,O19/I19,0))) -> 0.007611552094
A20: GENERAL SERVICE LESS THAN 50 KW | B20: Retail Transmission Rate - Network Service Rate | C20: $/kWh | E20: 0.006988011059 | G20: 202605362.1 | I20: 0 | K20: 1415808.511 | M20: =IF(ISERROR(K20/SUM(K19:K100)),"",K20/SUM(K19:K100)) -> 0.132952269 | O20: =IF(ISERROR('18. RTSR - Forecast Wholesale'!$F$109*M20), "", '18. RTSR - Forecast Wholesale'!$F$109*M20) -> 1400101.941 | Q20: 0.006910488085
A21: GENERAL SERVICE 50 TO 4,999 KW | B21: Retail Transmission Rate - Network Service Rate - (less than 1,000 kW) | C21: $/kW | E21: 2.87399678 | G21: 0 | I21: 476304 | K21: 1368896.162 | M21: =IF(ISERROR(K21/SUM(K19:K100)),"",K21/SUM(K19:K100)) -> 0.1285469394 | O21: =IF(ISERROR('18. RTSR - Forecast Wholesale'!$F$109*M21), "", '18. RTSR - Forecast Wholesale'!$F$109*M21) -> 1353710.024 | Q21: 2.842113491
A22: GENERAL SERVICE 50 TO 4,999 KW | B22: Retail Transmission Rate - Network Service Rate - Interval Metered (less than 1,000 kW) | C22: $/kW | E22: 3.052545526 | G22: 0 | I22: 725765 | K22: 2215430.704 | M22: =IF(ISERROR(K22/SUM(K19:K100)),"",K22/SUM(K19:K100)) -> 0.2080412264 | O22: =IF(ISERROR('18. RTSR - Forecast Wholesale'!$F$109*M22), "", '18. RTSR - Forecast Wholesale'!$F$109*M22) -> 2190853.356 | Q22: 3.018681469
A23: GENERAL SERVICE 50 TO 4,999 KW | B23: Retail Transmission Rate - Network Service Rate - Interval Metered (1,000 to 4,999 kW) | C23: $/kW | E23: 3.048595781 | G23: 0 | I23: 569915 | K23: 1737440.464 | M23: =IF(ISERROR(K23/SUM(K19:K100)),"",K23/SUM(K19:K100)) -> 0.1631552927 | O23: =IF(ISERROR('18. RTSR - Forecast Wholesale'!$F$109*M23), "", '18. RTSR - Forecast Wholesale'!$F$109*M23) -> 1718165.803 | Q23: 3.014775541
A24: LARGE USE | B24: Retail Transmission Rate - Network Service Rate - Interval Metered | C24: $/kW | E24: 3.37976674 | G24: 0 | I24: 168361 | K24: 569020.9081 | M24: =IF(ISERROR(K24/SUM(K19:K100)),"",K24/SUM(K19:K100)) -> 0.05343421815 | O24: =IF(ISERROR('18. RTSR - Forecast Wholesale'!$F$109*M24), "", '18. RTSR - Forecast Wholesale'!$F$109*M24) -> 562708.3547 | Q24: 3.342272585
A25: UNMETERED SCATTERED LOAD | B25: Retail Transmission Rate - Network Service Rate | C25: $/kWh | E25: 0.006988011059 | G25: 2447640.878 | I25: 0 | K25: 17104.14153 | M25: =IF(ISERROR(K25/SUM(K19:K100)),"",K25/SUM(K19:K100)) -> 0.001606173722 | O25: =IF(ISERROR('18. RTSR - Forecast Wholesale'!$F$109*M25), "", '18. RTSR - Forecast Wholesale'!$F$109*M25) -> 16914.39313 | Q25: 0.006910488085
A26: STREET LIGHTING | B26: Retail Transmission Rate - Network Service Rate | C26: $/kW | E26: 2.167701285 | G26: 0 | I26: 21461 | K26: 46521.03729 | M26: =IF(ISERROR(K26/SUM(K19:K100)),"",K26/SUM(K19:K100)) -> 0.004368583333 | O26: =IF(ISERROR('18. RTSR - Forecast Wholesale'!$F$109*M26), "", '18. RTSR - Forecast Wholesale'!$F$109*M26) -> 46004.94636 | Q26: 2.143653434

Sheet 22. RTSR Adj Conn. to Forcst WS
A13: The purpose of this sheet is to update the re-aligned RTS Connection Rates to recover forecast wholesale connection costs.
A16: Rate Class | B16: Rate Description | C16: Unit | E16: Adjusted RTSR-Connection | G16: Loss Adjusted Billed kWh | I16: Loss Adjusted Billed kW | K16: Billed Amount | M16: Billed Amount % | O16: Forecast Wholesale Billing | Q16: Proposed RTSR Connection
A19: RESIDENTIAL | B19: Retail Transmission Rate - Line and Transformation Connection Service Rate | C19: $/kWh | E19: 0.002222791265 | G19: 425984440 | I19: 0 | K19: =IF(E19="", "", IF(C19="$/kWh", E19*G19, E19*I19)) -> 946874.4923 | M19: =IF(ISERROR(K19/SUM(K19:K100)),"",K19/SUM(K19:K100)) -> 0.2957454357 | O19: =IF(ISERROR('18. RTSR - Forecast Wholesale'!$P$113*M19), "", '18. RTSR - Forecast Wholesale'!$P$113*M19) -> 979163.4848 | Q19: =IF(C19="","",IF(C19="$/kWh",IF(G19<>0,O19/G19,),IF(I19<>0,O19/I19,0))) -> 0.002298589791
A20: GENERAL SERVICE LESS THAN 50 KW | B20: Retail Transmission Rate - Line and Transformation Connection Service Rate | C20: $/kWh | E20: 0.002020719332 | G20: 202605362.1 | I20: 0 | K20: 409408.572 | M20: =IF(ISERROR(K20/SUM(K19:K100)),"",K20/SUM(K19:K100)) -> 0.1278740926 | O20: =IF(ISERROR('18. RTSR - Forecast Wholesale'!$P$113*M20), "", '18. RTSR - Forecast Wholesale'!$P$113*M20) -> 423369.6518 | Q20: 0.002089627083
A21: GENERAL SERVICE 50 TO 4,999 KW | B21: Retail Transmission Rate - Line and Transformation Connection Service Rate - (less than 1,000 kW) | C21: $/kW | E21: 0.789596079 | G21: 0 | I21: 476304 | K21: 376087.7708 | M21: =IF(ISERROR(K21/SUM(K19:K100)),"",K21/SUM(K19:K100)) -> 0.1174667208 | O21: =IF(ISERROR('18. RTSR - Forecast Wholesale'!$P$113*M21), "", '18. RTSR - Forecast Wholesale'!$P$113*M21) -> 388912.5911 | Q21: 0.8165217826
A22: GENERAL SERVICE 50 TO 4,999 KW | B22: Retail Transmission Rate - Line and Transformation Connection Service Rate - Interval Metered (less than 1,000 kW) | C22: $/kW | E22: 0.98621207 | G22: 0 | I22: 732051 | K22: 721957.532 | M22: =IF(ISERROR(K22/SUM(K19:K100)),"",K22/SUM(K19:K100)) -> 0.2254951914 | O22: =IF(ISERROR('18. RTSR - Forecast Wholesale'!$P$113*M22), "", '18. RTSR - Forecast Wholesale'!$P$113*M22) -> 746576.7203 | Q22: 1.019842498
A23: GENERAL SERVICE 50 TO 4,999 KW | B23: Retail Transmission Rate - Line and Transformation Connection Service Rate - Interval Metered (1,000 to 4,999 kW) | C23: $/kW | E23: 0.9851006744 | G23: 0 | I23: 571177 | K23: 562666.8479 | M23: =IF(ISERROR(K23/SUM(K19:K100)),"",K23/SUM(K19:K100)) -> 0.1757425651 | O23: =IF(ISERROR('18. RTSR - Forecast Wholesale'!$P$113*M23), "", '18. RTSR - Forecast Wholesale'!$P$113*M23) -> 581854.1275 | Q23: 1.018693203
A24: LARGE USE | B24: Retail Transmission Rate - Line and Transformation Connection Service Rate - Interval Metered | C24: $/kW | E24: 0.9896472929 | G24: 0 | I24: 168361 | K24: 166618.0079 | M24: =IF(ISERROR(K24/SUM(K19:K100)),"",K24/SUM(K19:K100)) -> 0.05204123222 | O24: =IF(ISERROR('18. RTSR - Forecast Wholesale'!$P$113*M24), "", '18. RTSR - Forecast Wholesale'!$P$113*M24) -> 172299.7827 | Q24: 1.023394864
A25: UNMETERED SCATTERED LOAD | B25: Retail Transmission Rate - Line and Transformation Connection Service Rate | C25: $/kWh | E25: 0.002020719332 | G25: 2447640.878 | I25: 0 | K25: 4945.995241 | M25: =IF(ISERROR(K25/SUM(K19:K100)),"",K25/SUM(K19:K100)) -> 0.001544825137 | O25: =IF(ISERROR('18. RTSR - Forecast Wholesale'!$P$113*M25), "", '18. RTSR - Forecast Wholesale'!$P$113*M25) -> 5114.656668 | Q25: 0.002089627083
A26: STREET LIGHTING | B26: Retail Transmission Rate - Line and Transformation Connection Service Rate | C26: $/kW | E26: 0.6101562023 | G26: 0 | I26: 21461 | K26: 13094.56226 | M26: =IF(ISERROR(K26/SUM(K19:K100)),"",K26/SUM(K19:K100)) -> 0.004089937 | O26: =IF(ISERROR('18. RTSR - Forecast Wholesale'!$P$113*M26), "", '18. RTSR - Forecast Wholesale'!$P$113*M26) -> 13541.09475 | Q26: 0.6309628976

Sheet 23. RTSR Final 2015 RTS Rates
A13: This sheet lists proposed RTSRs for all classes. No input required.
A16: Rate Class | B16: Rate Description | C16: Unit | E16: Proposed Retail Transmission Rate
A19: RESIDENTIAL | B19: Retail Transmission Rate - Network Service Rate | C19: $/kWh | E19: 0.007611552094
A20: RESIDENTIAL | B20: Retail Transmission Rate - Line and Transformation Connection Service Rate | C20: $/kWh | E20: 0.002298589791
A21: GENERAL SERVICE LESS THAN 50 KW | B21: Retail Transmission Rate - Network Service Rate | C21: $/kWh | E21: 0.006910488085
A22: GENERAL SERVICE LESS THAN 50 KW | B22: Retail Transmission Rate - Line and Transformation Connection Service Rate | C22: $/kWh | E22: 0.002089627083
A23: GENERAL SERVICE 50 TO 4,999 KW | B23: Retail Transmission Rate - Network Service Rate - (less than 1,000 kW) | C23: $/kW | E23: 2.842113491
A24: GENERAL SERVICE 50 TO 4,999 KW | B24: Retail Transmission Rate - Network Service Rate - Interval Metered (less than 1,000 kW) | C24: $/kW | E24: 3.018681469
A25: GENERAL SERVICE 50 TO 4,999 KW | B25: Retail Transmission Rate - Network Service Rate - Interval Metered (1,000 to 4,999 kW) | C25: $/kW | E25: 3.014775541
A26: GENERAL SERVICE 50 TO 4,999 KW | B26: Retail Transmission Rate - Line and Transformation Connection Service Rate - (less than 1,000 kW) | C26: $/kW | E26: 0.8165217826
A27: GENERAL SERVICE 50 TO 4,999 KW | B27: Retail Transmission Rate - Line and Transformation Connection Service Rate - Interval Metered (less than 1,000 kW) | C27: $/kW | E27: 1.019842498
A28: GENERAL SERVICE 50 TO 4,999 KW | B28: Retail Transmission Rate - Line and Transformation Connection Service Rate - Interval Metered (1,000 to 4,999 kW) | C28: $/kW | E28: 1.018693203
A29: LARGE USE | B29: Retail Transmission Rate - Network Service Rate - Interval Metered | C29: $/kW | E29: 3.342272585
A30: LARGE USE | B30: Retail Transmission Rate - Line and Transformation Connection Service Rate - Interval Metered | C30: $/kW | E30: 1.023394864
A31: UNMETERED SCATTERED LOAD | B31: Retail Transmission Rate - Network Service Rate | C31: $/kWh | E31: 0.006910488085
A32: UNMETERED SCATTERED LOAD | B32: Retail Transmission Rate - Line and Transformation Connection Service Rate | C32: $/kWh | E32: 0.002089627083
A33: STREET LIGHTING | B33: Retail Transmission Rate - Network Service Rate | C33: $/kW | E33: 2.143653434
A34: STREET LIGHTING | B34: Retail Transmission Rate - Line and Transformation Connection Service Rate | C34: $/kW | E34: 0.6309628976

Sheet 24. Rev2Cost_GDPIPI
Y1: FALSE | Z1: 0 | AC1: NO
Y2: TRUE
A12: If applicable, please enter any adjustments related to the revenue to cost ratio model into columns C and E. The Price Escalator and Stretch Factor have been set at the 2014 values and will be updated by Board staff at a later date.
A15: Price Escalator | B15: 0.016 | C15: Choose Stretch Factor Group | E15: III
A16: Productivity Factor | B16: 0 | C16: Associated Stretch Factor Value | E16: =IF(E15="I", 0%, IF(E15="II", 0.15%, IF(E15="III", 0.3%, IF(E15="IV", 0.45%, 0.6%)))) -> 0.003
A17: Price Cap Index | B17: =B15-B16-E16 -> 0.013
B19: Current MFC | C19: MFC Adjustment from R/C Model | D19: Current Volumetric Charge | E19: DVR Adjustment from R/C Model | F19: Price Cap Index to be Applied to MFC and DVR | G19: Proposed MFC | H19: Proposed Volumetric Charge
A20: Rate Class
A22: RESIDENTIAL | B22: 15 | D22: 0.019 | F22: =$B$17 -> 0.013 | G22: =ROUND(SUM(B22,C22)*(1+F22),2) -> 15.2 | H22: =ROUND(SUM(D22,E22)*(1+F22),4) -> 0.0192
A23: GENERAL SERVICE LESS THAN 50 KW | B23: 31.55 | D23: 0.0141 | F23: 0.013 | G23: 31.96 | H23: 0.0143
A24: GENERAL SERVICE 50 TO 4,999 KW | B24: 117.85 | D24: 4.6787 | F24: 0.013 | G24: 119.38 | H24: 4.7395
A25: GENERAL SERVICE GREATER THAN 50 kW - WMP | F25: 0.013 | G25: 0 | H25: 0
A26: LARGE USE | B26: 6886.2 | D26: 3.2947 | F26: 0.013 | G26: 6975.72 | H26: 3.3375
A27: UNMETERED SCATTERED LOAD | B27: 15.77 | D27: 0.0196 | F27: 0.013 | G27: 15.98 | H27: 0.0199
A28: STREET LIGHTING | B28: 0.33 | D28: 8.5718 | F28: 0.013 | G28: 0.33 | H28: 8.6832
A29: microFIT | B29: 5.4 | G29: 5.4
A30: EMBEDDED DISTRIBUTOR | D30: 0.0124 | F30: =$B$17 -> 0.013 | G30: 0 | H30: =ROUND(SUM(D30,E30)*(1+F30),4) -> 0.0126

Sheet 24. hidden (hidden)
A1: Rate Class | B1: MFC Adjustment from R/C Model | C1: DVR Adjustment from R/C Model
A2: RESIDENTIAL | B2: 15 | D2: 0.019
A3: GENERAL SERVICE LESS THAN 50 KW | B3: 31.55 | D3: 0.0141
A4: GENERAL SERVICE 50 TO 4,999 KW | B4: 117.85 | D4: 4.6787
A5: GENERAL SERVICE GREATER THAN 50 kW - WMP
A6: LARGE USE | B6: 6886.2 | D6: 3.2947
A7: UNMETERED SCATTERED LOAD | B7: 15.77 | D7: 0.0196
A8: STREET LIGHTING | B8: 0.33 | D8: 8.5718

Sheet 25. Other Charges & LF
A11: Please enter the following charges as found on your most recent Board-Approved Tariff Schedule. The standard Allowance rates have been included as default entries. If you have different rates, please make the appropriate corrections in the applicable cells below. As well, please enter the current Specific Service Charges below. The standard Retail Service Charges have been entered below. If you have different rates, please make the appropriate corrections in columns A, C or D as applicable (cells are unlocked).
C13: UNIT | D13: RATE
A15: ALLOWANCES
A17: Transformer Allowance for Ownership - per kW of billing demand/month | C17: $/kW | D17: -0.6
A20: Primary Metering Allowance for transformer losses – applied to measured demand and energy | C20: % | D20: -1
A22: SPECIFIC SERVICE CHARGES
A24: APPLICATION
A26: The application of these rates and charges shall be in accordance with the Licence of the Distributor and any Code or Order of the Board, and amendments thereto as approved by the Board, which may be applicable to the administration of this schedule.
A27: No charges to meet the costs of any work or service done or furnished for the purpose of the distribution of electricity shall be made except as permitted by this schedule, unless required by the Distributor’s Licence or a Code or Order of the Board, and amendments thereto as approved by the Board, or as specified herein.
A28: It should be noted that this schedule does not list any charges, assessments or credits that are required by law to be invoiced by a distributor and that are not subject to Board approval, such as the Debt Retirement Charge, the Global Adjustment, the Ontario Clean Energy Benefit and the HST.
A30: Customer Administration
A31: Easement letter | C31: $ | D31: 15
A32: Notification charge | C32: $ | D32: 15
A33: Credit reference/credit check (plus credit agency costs) | C33: $ | D33: 15
A34: Returned cheque charge (plus bank charges) | C34: $ | D34: 15
A35: Duplicate invoices for previous billing | C35: $ | D35: 15
A36: Income tax letter | C36: $ | D36: 15
A37: Account set up charge/change of occupancy charge (plus credit agency costs if applicable) | C37: $ | D37: 30
A38: Meter dispute charge plus Measurement Canada fees (if meter found correct) | C38: $ | D38: 30
A67: Non-Payment of Account
A68: Late Payment - per month | C68: % | D68: 1.5
A69: Late Payment - per annum | C69: % | D69: 19.56
A70: Disconnect/Reconnect at meter - during regular hours | C70: $ | D70: 65
A71: Disconnect/Reconnect at meter - after regular hours | C71: $ | D71: 185
A88: Specific Charge for Access to the Power Poles $/pole/year | C88: $ | D88: 22.35
A116: RETAIL SERVICE CHARGES (if applicable)
A118: The application of these rates and charges shall be in accordance with the Licence of the Distributor and any Code or Order of the Board, and amendments thereto as approved by the Board, which may be applicable to the administration of this schedule.
A120: No rates and charges for the distribution of electricity and charges to meet the costs of any work or service done or furnished for the purpose of the distribution of electricity shall be made except as permitted by this schedule, unless required by the Distributor’s Licence or a Code or Order of the Board, and amendments thereto as approved by the Board, or as specified herein.
A122: Unless specifically noted, this schedule does not contain any charges for the electricity commodity, be it under the Regulated Price Plan, a contract with a retailer or the wholesale market price, as applicable.
A124: It should be noted that this schedule does not list any charges, assessments, or credits that are required by law to be invoiced by a distributor and that are not subject to Board approval, such as the Debt Retirement Charge, the Global Adjustment, the Ontario Clean Energy Benefit and the HST.
A126: Retail Service Charges refer to services provided by a distributor to retailers or customers related to the supply of competitive electricity.
A128: One-time charge, per retailer, to establish the service agreement between the distributor and the retailer | C128: $ | D128: 100
A129: Monthly Fixed Charge, per retailer | C129: $ | D129: 20
A130: Monthly Variable Charge, per customer, per retailer | C130: $/cust. | D130: 0.5
A131: Distributor-consolidated billing monthly charge, per customer, per retailer | C131: $/cust. | D131: 0.3
A132: Retailer-consolidated billing monthly credit, per customer, per retailer | C132: $/cust. | D132: -0.3
A133: Service Transaction Requests (STR)
A134: Request fee, per request, applied to the requesting party | C134: $ | D134: 0.25
A135: Processing fee, per request, applied to the requesting party | C135: $ | D135: 0.5
A136: Request for customer information as outlined in Section 10.6.3 and Chapter 11 of the Retail
A137: Settlement Code directly to retailers and customers, if not delivered electronically through the
A138: Electronic Business Transaction (EBT) system, applied to the requesting party
A139: Up to twice a year | C139: $ | D139: no charge
A140: More than twice a year, per request (plus incremental delivery costs) | C140: $ | D140: 2
A143: LOSS FACTORS
A145: If the distributor is not capable of prorating changed loss factors jointly with distribution rates, the revised loss factors will be implemented upon the first subsequent billing for each billing cycle.
A148: Total Loss Factor – Secondary Metered Customer < 5,000 kW | D148: 1.0404 | H148: TLF_Secondary_LT_5000kW
A149: Total Loss Factor – Secondary Metered Customer > 5,000 kW | D149: 1.015 | H149: TLF_Primary_LT_5000kW
A150: Total Loss Factor – Primary Metered Customer < 5,000 kW | D150: 1.03
A151: Total Loss Factor – Primary Metered Customer > 5,000 kW | D151: 1.005

Sheet 26. Proposed Rates
Z1: 3
L5: =ROUND(LEN(B5), -2) / 100 -> 0
L9: =ROUND(LEN(B9), -2) / 100 -> 0
B12: In the Green Cells below, enter any proposed rate riders that are not already included in this model (e.g: ICM rate riders). In column B, the rate rider descriptions must begin with "Rate Rider for". In column C, choose the associated unit from the drop-down menu. In column D, enter the rate. All rate riders with a "$" unit will be rounded to 2 decimal places and all others will be rounded to 4 decimal places.
A20: RESIDENTIAL | B20: RESIDENTIAL SERVICE CLASSIFICATION | C20: Unit | D20: Rate
A21: RESIDENTIAL
A22: RESIDENTIAL
A23: RESIDENTIAL
A24: RESIDENTIAL
A25: RESIDENTIAL
A26: RESIDENTIAL
A27: RESIDENTIAL
A28: RESIDENTIAL
A29: RESIDENTIAL
A30: RESIDENTIAL
A32: GENERAL SERVICE LESS THAN 50 KW | B32: GENERAL SERVICE LESS THAN 50 KW SERVICE CLASSIFICATION | C32: Unit | D32: Rate
A33: GENERAL SERVICE LESS THAN 50 KW
A34: GENERAL SERVICE LESS THAN 50 KW
A35: GENERAL SERVICE LESS THAN 50 KW
A36: GENERAL SERVICE LESS THAN 50 KW
A37: GENERAL SERVICE LESS THAN 50 KW
A38: GENERAL SERVICE LESS THAN 50 KW
A39: GENERAL SERVICE LESS THAN 50 KW
A40: GENERAL SERVICE LESS THAN 50 KW
A41: GENERAL SERVICE LESS THAN 50 KW
A42: GENERAL SERVICE LESS THAN 50 KW
A44: GENERAL SERVICE 50 TO 4,999 KW | B44: GENERAL SERVICE 50 TO 4,999 KW SERVICE CLASSIFICATION | C44: Unit | D44: Rate
A45: GENERAL SERVICE 50 TO 4,999 KW
A46: GENERAL SERVICE 50 TO 4,999 KW
A47: GENERAL SERVICE 50 TO 4,999 KW
A48: GENERAL SERVICE 50 TO 4,999 KW
A49: GENERAL SERVICE 50 TO 4,999 KW
A50: GENERAL SERVICE 50 TO 4,999 KW
A51: GENERAL SERVICE 50 TO 4,999 KW
A52: GENERAL SERVICE 50 TO 4,999 KW
A53: GENERAL SERVICE 50 TO 4,999 KW
A54: GENERAL SERVICE 50 TO 4,999 KW
A56: GENERAL SERVICE GREATER THAN 50 KW - WMP | B56: GENERAL SERVICE GREATER THAN 50 KW - WMP SERVICE CLASSIFICATION | C56: Unit | D56: Rate
A57: GENERAL SERVICE GREATER THAN 50 KW - WMP
A58: GENERAL SERVICE GREATER THAN 50 KW - WMP
A59: GENERAL SERVICE GREATER THAN 50 KW - WMP
A60: GENERAL SERVICE GREATER THAN 50 KW - WMP
A61: GENERAL SERVICE GREATER THAN 50 KW - WMP
A62: GENERAL SERVICE GREATER THAN 50 KW - WMP
A63: GENERAL SERVICE GREATER THAN 50 KW - WMP
A64: GENERAL SERVICE GREATER THAN 50 KW - WMP
A65: GENERAL SERVICE GREATER THAN 50 KW - WMP
A66: GENERAL SERVICE GREATER THAN 50 KW - WMP
A68: LARGE USE | B68: LARGE USE SERVICE CLASSIFICATION | C68: Unit | D68: Rate
A69: LARGE USE
A70: LARGE USE
A71: LARGE USE
A72: LARGE USE
A73: LARGE USE
A74: LARGE USE
A75: LARGE USE
A76: LARGE USE
A77: LARGE USE
A78: LARGE USE
A80: UNMETERED SCATTERED LOAD | B80: UNMETERED SCATTERED LOAD SERVICE CLASSIFICATION | C80: Unit | D80: Rate
A81: UNMETERED SCATTERED LOAD
A82: UNMETERED SCATTERED LOAD
A83: UNMETERED SCATTERED LOAD
A84: UNMETERED SCATTERED LOAD
A85: UNMETERED SCATTERED LOAD
A86: UNMETERED SCATTERED LOAD
A87: UNMETERED SCATTERED LOAD
A88: UNMETERED SCATTERED LOAD
A89: UNMETERED SCATTERED LOAD
A90: UNMETERED SCATTERED LOAD
A92: STREET LIGHTING | B92: STREET LIGHTING SERVICE CLASSIFICATION | C92: Unit | D92: Rate
A93: STREET LIGHTING
A94: STREET LIGHTING
A95: STREET LIGHTING
A96: STREET LIGHTING
A97: STREET LIGHTING
A98: STREET LIGHTING
A99: STREET LIGHTING
A100: STREET LIGHTING
A101: STREET LIGHTING
A102: STREET LIGHTING
A104: microFIT | B104: microFIT SERVICE CLASSIFICATION | C104: Unit | D104: Rate
A105: microFIT
A106: microFIT
A107: microFIT
A108: microFIT
A109: microFIT
A110: microFIT
A111: microFIT
A112: microFIT
A113: microFIT
A114: microFIT
A116: EMBEDDED DISTRIBUTOR | B116: EMBEDDED DISTRIBUTOR SERVICE CLASSIFICATION | C116: Unit | D116: Rate
A117: EMBEDDED DISTRIBUTOR
A118: EMBEDDED DISTRIBUTOR
A119: EMBEDDED DISTRIBUTOR
A120: EMBEDDED DISTRIBUTOR
A121: EMBEDDED DISTRIBUTOR
A122: EMBEDDED DISTRIBUTOR
A123: EMBEDDED DISTRIBUTOR
A124: EMBEDDED DISTRIBUTOR
A125: EMBEDDED DISTRIBUTOR
A126: EMBEDDED DISTRIBUTOR
B130: PROPOSED MONTHLY RATES AND CHARGES - Regulatory Component
A132: Wholesale Market Service Rate | B132: Wholesale Market Service Rate | C132: $/kWh | D132: 0.0044
A133: Rural or Remote Electricity Rate Protection Charge (RRRP) | B133: Rural or Remote Electricity Rate Protection Charge (RRRP) | C133: $/kWh | D133: 0.0013
A134: Standard Supply Service - Administrative Charge (if applicable) | B134: Standard Supply Service - Administrative Charge (if applicable) | C134: $ | D134: 0.25

Sheet 26. Hidden (hidden)
A1: RESIDENTIAL | B1: RESIDENTIAL SERVICE CLASSIFICATION | C1: Unit | D1: Rate
A2: RESIDENTIAL
A3: RESIDENTIAL
A4: RESIDENTIAL
A5: RESIDENTIAL
A6: RESIDENTIAL
A7: RESIDENTIAL
A8: RESIDENTIAL
A9: RESIDENTIAL
A10: RESIDENTIAL
A11: RESIDENTIAL
A13: GENERAL SERVICE LESS THAN 50 KW | B13: GENERAL SERVICE LESS THAN 50 KW SERVICE CLASSIFICATION | C13: Unit | D13: Rate
A14: GENERAL SERVICE LESS THAN 50 KW
A15: GENERAL SERVICE LESS THAN 50 KW
A16: GENERAL SERVICE LESS THAN 50 KW
A17: GENERAL SERVICE LESS THAN 50 KW
A18: GENERAL SERVICE LESS THAN 50 KW
A19: GENERAL SERVICE LESS THAN 50 KW
A20: GENERAL SERVICE LESS THAN 50 KW
A21: GENERAL SERVICE LESS THAN 50 KW
A22: GENERAL SERVICE LESS THAN 50 KW
A23: GENERAL SERVICE LESS THAN 50 KW
A25: GENERAL SERVICE 50 TO 4,999 KW | B25: GENERAL SERVICE 50 TO 4,999 KW SERVICE CLASSIFICATION | C25: Unit | D25: Rate
A26: GENERAL SERVICE 50 TO 4,999 KW
A27: GENERAL SERVICE 50 TO 4,999 KW
A28: GENERAL SERVICE 50 TO 4,999 KW
A29: GENERAL SERVICE 50 TO 4,999 KW
A30: GENERAL SERVICE 50 TO 4,999 KW
A31: GENERAL SERVICE 50 TO 4,999 KW
A32: GENERAL SERVICE 50 TO 4,999 KW
A33: GENERAL SERVICE 50 TO 4,999 KW
A34: GENERAL SERVICE 50 TO 4,999 KW
A35: GENERAL SERVICE 50 TO 4,999 KW
A37: GENERAL SERVICE GREATER THAN 50 KW - WMP | B37: GENERAL SERVICE GREATER THAN 50 KW - WMP SERVICE CLASSIFICATION | C37: Unit | D37: Rate
A38: GENERAL SERVICE GREATER THAN 50 KW - WMP
A39: GENERAL SERVICE GREATER THAN 50 KW - WMP
A40: GENERAL SERVICE GREATER THAN 50 KW - WMP
A41: GENERAL SERVICE GREATER THAN 50 KW - WMP
A42: GENERAL SERVICE GREATER THAN 50 KW - WMP
A43: GENERAL SERVICE GREATER THAN 50 KW - WMP
A44: GENERAL SERVICE GREATER THAN 50 KW - WMP
A45: GENERAL SERVICE GREATER THAN 50 KW - WMP
A46: GENERAL SERVICE GREATER THAN 50 KW - WMP
A47: GENERAL SERVICE GREATER THAN 50 KW - WMP
A49: LARGE USE | B49: LARGE USE SERVICE CLASSIFICATION | C49: Unit | D49: Rate
A50: LARGE USE
A51: LARGE USE
A52: LARGE USE
A53: LARGE USE
A54: LARGE USE
A55: LARGE USE
A56: LARGE USE
A57: LARGE USE
A58: LARGE USE
A59: LARGE USE
A61: UNMETERED SCATTERED LOAD | B61: UNMETERED SCATTERED LOAD SERVICE CLASSIFICATION | C61: Unit | D61: Rate
A62: UNMETERED SCATTERED LOAD
A63: UNMETERED SCATTERED LOAD
A64: UNMETERED SCATTERED LOAD
A65: UNMETERED SCATTERED LOAD
A66: UNMETERED SCATTERED LOAD
A67: UNMETERED SCATTERED LOAD
A68: UNMETERED SCATTERED LOAD
A69: UNMETERED SCATTERED LOAD
A70: UNMETERED SCATTERED LOAD
A71: UNMETERED SCATTERED LOAD
A73: STREET LIGHTING | B73: STREET LIGHTING SERVICE CLASSIFICATION | C73: Unit | D73: Rate
A74: STREET LIGHTING
A75: STREET LIGHTING
A76: STREET LIGHTING
A77: STREET LIGHTING
A78: STREET LIGHTING
A79: STREET LIGHTING
A80: STREET LIGHTING
A81: STREET LIGHTING
A82: STREET LIGHTING
A83: STREET LIGHTING
A85: microFIT | B85: microFIT SERVICE CLASSIFICATION | C85: Unit | D85: Rate
A86: microFIT
A87: microFIT
A88: microFIT
A89: microFIT
A90: microFIT
A91: microFIT
A92: microFIT
A93: microFIT
A94: microFIT
A95: microFIT
A97: EMBEDDED DISTRIBUTOR | B97: EMBEDDED DISTRIBUTOR SERVICE CLASSIFICATION | C97: Unit | D97: Rate
A98: EMBEDDED DISTRIBUTOR
A99: EMBEDDED DISTRIBUTOR
A100: EMBEDDED DISTRIBUTOR
A101: EMBEDDED DISTRIBUTOR
A102: EMBEDDED DISTRIBUTOR
A103: EMBEDDED DISTRIBUTOR
A104: EMBEDDED DISTRIBUTOR
A105: EMBEDDED DISTRIBUTOR
A106: EMBEDDED DISTRIBUTOR
A107: EMBEDDED DISTRIBUTOR
B111: PROPOSED MONTHLY RATES AND CHARGES - Regulatory Component
A113: Wholesale Market Service Rate | B113: Wholesale Market Service Rate | C113: $/kWh | D113: 0.0044
A114: Rural or Remote Electricity Rate Protection Charge (RRRP) | B114: Rural or Remote Electricity Rate Protection Charge (RRRP) | C114: $/kWh | D114: 0.0013
A115: Standard Supply Service - Administrative Charge (if applicable) | B115: Standard Supply Service - Administrative Charge (if applicable) | C115: $ | D115: 0.25

Sheet 27. Final Tariff Schedule
A1: hidden column | B1: ='1. Information Sheet'!F14 -> Waterloo North Hydro Inc. | F1: hidden column | Z1: 3
A2: for rate classes | B2: TARIFF OF RATES AND CHARGES | F2: for proposed
B3: ="Effective and Implementation Date " & TEXT('1. Information Sheet'!F26, "mmmm dd, yyyy") -> Effective and Implementation Date May 01, 2015 | F3: labeliing
B5: This schedule supersedes and replaces all previously
B6: approved schedules of Rates, Charges and Loss Factors | L6: =ROUND(LEN(B6), -2) / 100 -> 1
B7: =IF(LEN('1. Information Sheet'!F18)=0, "Please enter your assigned EB# on Sheet 1", '1. Information Sheet'!F18) -> EB-2014-0119
B9: RESIDENTIAL SERVICE CLASSIFICATION
B11: This classification applies to an account taking electricity at 750 volts or less where the electricity is used exclusively in a separate metered living accommodation. Customers shall be residing in single-dwelling units that consist of a detached house or one unit of a semi-detached, duplex, triplex or quadruplex house, with a residential zoning. Separately metered dwellings within a town house complex or apartment building also qualify as residential customers. All customers are single-phase. Further servicing details are available in the distributor’s Conditions of Service. | L11: =ROUND(LEN(B11), -2) / 100 -> 6
B13: APPLICATION
B15: The application of these rates and charges shall be in accordance with the Licence of the Distributor and any Code or Order of the Board, and amendments thereto as approved by the Board, which may be applicable to the administration of this schedule. | L15: =ROUND(LEN(B15), -2) / 100 -> 3
B17: No rates and charges for the distribution of electricity and charges to meet the costs of any work or service done or furnished for the purpose of the distribution of electricity shall be made except as permitted by this schedule, unless required by the Distributor’s Licence or a Code or Order of the Board, and amendments thereto as approved by the Board, or as specified herein. | L17: =ROUND(LEN(B17), -2) / 100 -> 4
B19: Unless specifically noted, this schedule does not contain any charges for the electricity commodity, be it under the Regulated Price Plan, a contract with a retailer or the wholesale market price, as applicable. In addition, the charges in the MONTHLY RATES AND CHARGES - Regulatory Component of this schedule do not apply to a customer that is an embedded wholesale market participant. | L19: =ROUND(LEN(B19), -2) / 100 -> 4
B21: It should be noted that this schedule does not list any charges, assessments or credits that are required by law to be invoiced by a distributor and that are not subject to Board approval, such as the Debt Retirement Charge, the Global Adjustment, the Ontario Clean Energy Benefit and the HST. | L21: =ROUND(LEN(B21), -2) / 100 -> 3
B23: MONTHLY RATES AND CHARGES - Delivery Component
A25: RESIDENTIAL | B25: Service Charge | D25: $ | E25: 15.2 | K25: 1_P_MSC
A26: RESIDENTIAL | B26: Rate Rider for Recovery of Smart Meter Incremental Revenue Requirement - in effect until the effective date of the next cost of service-based rate order | D26: $ | E26: 2.11 | K26: 1_P_MSC_Rate_Rider_1
A27: RESIDENTIAL | B27: Rate Rider for Smart Metering Entity Charge - effective until October 31, 2018 | D27: $ | E27: 0.79 | K27: 1_P_SMEC
A28: RESIDENTIAL | B28: Distribution Volumetric Rate | D28: $/kWh | E28: 0.0192 | K28: 1_P_VC_1
A29: RESIDENTIAL | B29: Low Voltage Service Rate | D29: $/kWh | E29: 0.0001 | K29: 1_P_LVrate
A30: RESIDENTIAL | B30: Rate Rider for Tax Change (2015) - effective until April 30, 2016 | D30: $/kWh | E30: -8e-05 | K30: 1_P_VC_Rate_Rider_kWh_1
A31: RESIDENTIAL | B31: Rate Rider for Disposition of Deferral/Variance Accounts (2015) - effective until April 30, 2016 | D31: $/kWh | E31: -0.0014 | K31: 1_P_VC_DEFVAR_kWh_1
A32: RESIDENTIAL | B32: Rate Rider for Disposition of Global Adjustment Account (2015) - effective until April 30, 2016 Applicable only for Non RPP Customers | D32: $/kWh | E32: 0.0006 | K32: 1_P_VC_GA_Rate_Rider_kWh_1
A33: RESIDENTIAL | B33: Retail Transmission Rate - Network Service Rate | D33: $/kWh | E33: 0.007611552094 | K33: 1_P_RTSR_Network
A34: RESIDENTIAL | B34: Retail Transmission Rate - Line and Transformation Connection Service Rate | D34: $/kWh | E34: 0.002298589791 | K34: 1_P_RTSR_Connection
A35: RESIDENTIAL
A36: RESIDENTIAL | B36: MONTHLY RATES AND CHARGES - Regulatory Component
A37: RESIDENTIAL
A38: RESIDENTIAL | B38: Wholesale Market Service Rate | D38: $/kWh | E38: 0.0044 | K38: 1_P_WMSR
A39: RESIDENTIAL | B39: Rural or Remote Electricity Rate Protection Charge (RRRP) | D39: $/kWh | E39: 0.0013 | K39: 1_P_RRPC
A40: RESIDENTIAL | B40: Standard Supply Service - Administrative Charge (if applicable) | D40: $ | E40: 0.25 | K40: 1_P_SSS
B42: GENERAL SERVICE LESS THAN 50 KW SERVICE CLASSIFICATION
B44: This classification applies to a non residential account taking electricity at 750 volts or less whose average monthly maximum demand is less than, or is forecast to be less than, 50 kW. Further servicing details are available in the distributor’s Conditions of Service. | L44: =ROUND(LEN(B44), -2) / 100 -> 3
B46: APPLICATION
B48: The application of these rates and charges shall be in accordance with the Licence of the Distributor and any Code or Order of the Board, and amendments thereto as approved by the Board, which may be applicable to the administration of this schedule. | L48: =ROUND(LEN(B48), -2) / 100 -> 3
B50: No rates and charges for the distribution of electricity and charges to meet the costs of any work or service done or furnished for the purpose of the distribution of electricity shall be made except as permitted by this schedule, unless required by the Distributor’s Licence or a Code or Order of the Board, and amendments thereto as approved by the Board, or as specified herein. | L50: =ROUND(LEN(B50), -2) / 100 -> 4
B52: Unless specifically noted, this schedule does not contain any charges for the electricity commodity, be it under the Regulated Price Plan, a contract with a retailer or the wholesale market price, as applicable. In addition, the charges in the MONTHLY RATES AND CHARGES - Regulatory Component of this schedule do not apply to a customer that is an embedded wholesale market participant. | L52: =ROUND(LEN(B52), -2) / 100 -> 4
B54: It should be noted that this schedule does not list any charges, assessments or credits that are required by law to be invoiced by a distributor and that are not subject to Board approval, such as the Debt Retirement Charge, the Global Adjustment, the Ontario Clean Energy Benefit and the HST. | L54: =ROUND(LEN(B54), -2) / 100 -> 3
B56: MONTHLY RATES AND CHARGES - Delivery Component
A58: GENERAL SERVICE LESS THAN 50 KW | B58: Service Charge | D58: $ | E58: 31.96 | K58: 2_P_MSC
A59: GENERAL SERVICE LESS THAN 50 KW | B59: Rate Rider for Recovery of Smart Meter Incremental Revenue Requirement - in effect until the effective date of the next cost of service-based rate order | D59: $ | E59: 5.51 | K59: 2_P_MSC_Rate_Rider_1
A60: GENERAL SERVICE LESS THAN 50 KW | B60: Rate Rider for Smart Metering Entity Charge - effective until October 31, 2018 | D60: $ | E60: 0.79 | K60: 2_P_SMEC
A61: GENERAL SERVICE LESS THAN 50 KW | B61: Distribution Volumetric Rate | D61: $/kWh | E61: 0.0143 | K61: 2_P_VC_1
A62: GENERAL SERVICE LESS THAN 50 KW | B62: Low Voltage Service Rate | D62: $/kWh | E62: 0.0001 | K62: 2_P_LVrate
A63: GENERAL SERVICE LESS THAN 50 KW | B63: Rate Rider for Tax Change (2015) - effective until April 30, 2016 | D63: $/kWh | E63: -5e-05 | K63: 2_P_VC_Rate_Rider_kWh_1
A64: GENERAL SERVICE LESS THAN 50 KW | B64: Rate Rider for Disposition of Deferral/Variance Accounts (2015) - effective until April 30, 2016 | D64: $/kWh | E64: -0.0014 | K64: 2_P_VC_DEFVAR_kWh_1
A65: GENERAL SERVICE LESS THAN 50 KW | B65: Rate Rider for Disposition of Global Adjustment Account (2015) - effective until April 30, 2016 Applicable only for Non RPP Customers | D65: $/kWh | E65: 0.0006 | K65: 2_P_VC_GA_Rate_Rider_kWh_1
A66: GENERAL SERVICE LESS THAN 50 KW | B66: Retail Transmission Rate - Network Service Rate | D66: $/kWh | E66: 0.006910488085 | K66: 2_P_RTSR_Network
A67: GENERAL SERVICE LESS THAN 50 KW | B67: Retail Transmission Rate - Line and Transformation Connection Service Rate | D67: $/kWh | E67: 0.002089627083 | K67: 2_P_RTSR_Connection
A68: GENERAL SERVICE LESS THAN 50 KW
A69: GENERAL SERVICE LESS THAN 50 KW | B69: MONTHLY RATES AND CHARGES - Regulatory Component
A70: GENERAL SERVICE LESS THAN 50 KW
A71: GENERAL SERVICE LESS THAN 50 KW | B71: Wholesale Market Service Rate | D71: $/kWh | E71: 0.0044 | K71: 2_P_WMSR
A72: GENERAL SERVICE LESS THAN 50 KW | B72: Rural or Remote Electricity Rate Protection Charge (RRRP) | D72: $/kWh | E72: 0.0013 | K72: 2_P_RRPC
A73: GENERAL SERVICE LESS THAN 50 KW | B73: Standard Supply Service - Administrative Charge (if applicable) | D73: $ | E73: 0.25 | K73: 2_P_SSS
B75: GENERAL SERVICE 50 TO 4,999 KW SERVICE CLASSIFICATION
B77: This classification applies to a non residential account whose average monthly maximum demand used for billing purposes is equal to or greater than, or is forecast to be equal to or greater than, 50 kW but less than 5,000 kW. Further servicing details are available in the distributor’s Conditions of Service. Note that for the application of the Retail Transmission Rate – Network Service Rate and the Retail Transmission Rate – Line and Transformation Connection Service Rate the following sub-classifications apply: General Service 50 to 999 kW non-interval metered General Service 50 to 999 kW interval metered General Service 1,000 to 4,999 kW interval metered. | L77: =ROUND(LEN(B77), -2) / 100 -> 7
B79: APPLICATION
B81: The application of these rates and charges shall be in accordance with the Licence of the Distributor and any Code or Order of the Board, and amendments thereto as approved by the Board, which may be applicable to the administration of this schedule. | L81: =ROUND(LEN(B81), -2) / 100 -> 3
B83: No rates and charges for the distribution of electricity and charges to meet the costs of any work or service done or furnished for the purpose of the distribution of electricity shall be made except as permitted by this schedule, unless required by the Distributor’s Licence or a Code or Order of the Board, and amendments thereto as approved by the Board, or as specified herein. | L83: =ROUND(LEN(B83), -2) / 100 -> 4
B85: Unless specifically noted, this schedule does not contain any charges for the electricity commodity, be it under the Regulated Price Plan, a contract with a retailer or the wholesale market price, as applicable. In addition, the charges in the MONTHLY RATES AND CHARGES - Regulatory Component of this schedule do not apply to a customer that is an embedded wholesale market participant. | L85: =ROUND(LEN(B85), -2) / 100 -> 4
B87: It should be noted that this schedule does not list any charges, assessments or credits that are required by law to be invoiced by a distributor and that are not subject to Board approval, such as the Debt Retirement Charge, the Global Adjustment, the Ontario Clean Energy Benefit and the HST. | L87: =ROUND(LEN(B87), -2) / 100 -> 3
B89: MONTHLY RATES AND CHARGES - Delivery Component
A91: GENERAL SERVICE 50 TO 4,999 KW | B91: Service Charge | D91: $ | E91: 119.38 | K91: 3_P_MSC
A92: GENERAL SERVICE 50 TO 4,999 KW | B92: Distribution Volumetric Rate | D92: $/kW | E92: 4.7395 | K92: 3_P_VC_1
A93: GENERAL SERVICE 50 TO 4,999 KW | B93: Low Voltage Service Rate | D93: $/kW | E93: 0.0551 | K93: 3_P_LVrate
A94: GENERAL SERVICE 50 TO 4,999 KW | B94: Rate Rider for Tax Change (2015) - effective until April 30, 2016 | D94: $/kW | E94: -0.0099 | K94: 3_P_VC_Rate_Rider_kW_1
A95: GENERAL SERVICE 50 TO 4,999 KW | B95: Rate Rider for Disposition of Deferral/Variance Accounts (2015) - effective until April 30, 2016 | D95: $/kW | E95: -0.6502 | K95: 3_P_VC_DEFVAR_kW_1
A96: GENERAL SERVICE 50 TO 4,999 KW | B96: Rate Rider for Disposition of Global Adjustment Account (2015) - effective until April 30, 2016 Applicable only for Non RPP Customers | D96: $/kW | E96: 0.2675 | K96: 3_P_VC_GA_Rate_Rider_kW_1
A97: GENERAL SERVICE 50 TO 4,999 KW | B97: Retail Transmission Rate - Network Service Rate - (less than 1,000 kW) | D97: $/kW | E97: 2.842113491 | K97: 3_P_RTSR_Network
A98: GENERAL SERVICE 50 TO 4,999 KW | B98: Retail Transmission Rate - Network Service Rate - Interval Metered (less than 1,000 kW) | D98: $/kW | E98: 3.018681469 | K98: 3_P_RTSR_Network_Interval
A99: GENERAL SERVICE 50 TO 4,999 KW | B99: Retail Transmission Rate - Network Service Rate - Interval Metered (1,000 to 4,999 kW) | D99: $/kW | E99: 3.014775541 | K99: 3_P_RTSR_Network_Interval_GR1000kW
A100: GENERAL SERVICE 50 TO 4,999 KW | B100: Retail Transmission Rate - Line and Transformation Connection Service Rate - (less than 1,000 kW) | D100: $/kW | E100: 0.8165217826 | K100: 3_P_RTSR_Connection
A101: GENERAL SERVICE 50 TO 4,999 KW | B101: Retail Transmission Rate - Line and Transformation Connection Service Rate - Interval Metered (less than 1,000 kW) | D101: $/kW | E101: 1.019842498 | K101: 3_P_RTSR_Connection_Interval
A102: GENERAL SERVICE 50 TO 4,999 KW | B102: Retail Transmission Rate - Line and Transformation Connection Service Rate - Interval Metered (1,000 to 4,999 kW) | D102: $/kW | E102: 1.018693203 | K102: 3_P_RTSR_Connection_Interval_GR1000kW
A103: GENERAL SERVICE 50 TO 4,999 KW
A104: GENERAL SERVICE 50 TO 4,999 KW | B104: MONTHLY RATES AND CHARGES - Regulatory Component
A105: GENERAL SERVICE 50 TO 4,999 KW
A106: GENERAL SERVICE 50 TO 4,999 KW | B106: Wholesale Market Service Rate | D106: $/kWh | E106: 0.0044 | K106: 3_P_WMSR
A107: GENERAL SERVICE 50 TO 4,999 KW | B107: Rural or Remote Electricity Rate Protection Charge (RRRP) | D107: $/kWh | E107: 0.0013 | K107: 3_P_RRPC
A108: GENERAL SERVICE 50 TO 4,999 KW | B108: Standard Supply Service - Administrative Charge (if applicable) | D108: $ | E108: 0.25 | K108: 3_P_SSS
B110: GENERAL SERVICE GREATER THAN 50 KW - WMP SERVICE CLASSIFICATION
L112: =ROUND(LEN(B112), -2) / 100 -> 0
B114: APPLICATION
L116: =ROUND(LEN(B116), -2) / 100 -> 0
L118: =ROUND(LEN(B118), -2) / 100 -> 0
L120: =ROUND(LEN(B120), -2) / 100 -> 0
L122: =ROUND(LEN(B122), -2) / 100 -> 0
B124: MONTHLY RATES AND CHARGES - Delivery Component
A126: GENERAL SERVICE GREATER THAN 50 KW - WMP | B126: Rate Rider for Disposition of Deferral/Variance Accounts (2015) - effective until April 30, 2016 | D126: $/kW | E126: -0.1945 | K126: 4_P_VC_DEFVAR_kW_1
A127: GENERAL SERVICE GREATER THAN 50 KW - WMP
A128: GENERAL SERVICE GREATER THAN 50 KW - WMP | B128: MONTHLY RATES AND CHARGES - Regulatory Component
A129: GENERAL SERVICE GREATER THAN 50 KW - WMP
A130: GENERAL SERVICE GREATER THAN 50 KW - WMP | B130: Wholesale Market Service Rate | D130: $/kWh | E130: 0.0044 | K130: 4_P_WMSR
A131: GENERAL SERVICE GREATER THAN 50 KW - WMP | B131: Rural or Remote Electricity Rate Protection Charge (RRRP) | D131: $/kWh | E131: 0.0013 | K131: 4_P_RRPC
A132: GENERAL SERVICE GREATER THAN 50 KW - WMP | B132: Standard Supply Service - Administrative Charge (if applicable) | D132: $ | E132: 0.25 | K132: 4_P_SSS
B134: LARGE USE SERVICE CLASSIFICATION
B136: This classification applies to an account whose average monthly maximum demand used for billing purposes is equal to or greater than, or is forecast to be equal to or greater than, 5,000 kW. Further servicing details are available in the distributor’s Conditions of Service. | L136: =ROUND(LEN(B136), -2) / 100 -> 3
B138: APPLICATION
B140: The application of these rates and charges shall be in accordance with the Licence of the Distributor and any Code or Order of the Board, and amendments thereto as approved by the Board, which may be applicable to the administration of this schedule. | L140: =ROUND(LEN(B140), -2) / 100 -> 3
B142: No rates and charges for the distribution of electricity and charges to meet the costs of any work or service done or furnished for the purpose of the distribution of electricity shall be made except as permitted by this schedule, unless required by the Distributor’s Licence or a Code or Order of the Board, and amendments thereto as approved by the Board, or as specified herein. | L142: =ROUND(LEN(B142), -2) / 100 -> 4
B144: Unless specifically noted, this schedule does not contain any charges for the electricity commodity, be it under the Regulated Price Plan, a contract with a retailer or the wholesale market price, as applicable. In addition, the charges in the MONTHLY RATES AND CHARGES - Regulatory Component of this schedule do not apply to a customer that is an embedded wholesale market participant. | L144: =ROUND(LEN(B144), -2) / 100 -> 4
B146: It should be noted that this schedule does not list any charges, assessments or credits that are required by law to be invoiced by a distributor and that are not subject to Board approval, such as the Debt Retirement Charge, the Global Adjustment, the Ontario Clean Energy Benefit and the HST. | L146: =ROUND(LEN(B146), -2) / 100 -> 3
B148: MONTHLY RATES AND CHARGES - Delivery Component
A150: LARGE USE | B150: Service Charge | D150: $ | E150: 6975.72 | K150: 5_P_MSC
A151: LARGE USE | B151: Distribution Volumetric Rate | D151: $/kW | E151: 3.3375 | K151: 5_P_VC_1
A152: LARGE USE | B152: Low Voltage Service Rate | D152: $/kW | E152: 0.0553 | K152: 5_P_LVrate
A153: LARGE USE | B153: Rate Rider for Tax Change (2015) - effective until April 30, 2016 | D153: $/kW | E153: -0.0072 | K153: 5_P_VC_Rate_Rider_kW_1
A154: LARGE USE | B154: Rate Rider for Disposition of Deferral/Variance Accounts (2015) - effective until April 30, 2016 | D154: $/kW | E154: -0.7541 | K154: 5_P_VC_DEFVAR_kW_1
A155: LARGE USE | B155: Retail Transmission Rate - Network Service Rate - Interval Metered | D155: $/kW | E155: 3.342272585 | K155: 5_P_RTSR_Network_Interval
A156: LARGE USE | B156: Retail Transmission Rate - Line and Transformation Connection Service Rate - Interval Metered | D156: $/kW | E156: 1.023394864 | K156: 5_P_RTSR_Connection_Interval
A157: LARGE USE
A158: LARGE USE | B158: MONTHLY RATES AND CHARGES - Regulatory Component
A159: LARGE USE
A160: LARGE USE | B160: Wholesale Market Service Rate | D160: $/kWh | E160: 0.0044 | K160: 5_P_WMSR
A161: LARGE USE | B161: Rural or Remote Electricity Rate Protection Charge (RRRP) | D161: $/kWh | E161: 0.0013 | K161: 5_P_RRPC
A162: LARGE USE | B162: Standard Supply Service - Administrative Charge (if applicable) | D162: $ | E162: 0.25 | K162: 5_P_SSS
B164: UNMETERED SCATTERED LOAD SERVICE CLASSIFICATION
B166: This classification applies to an account taking electricity at 750 volts or less whose average monthly maximum demand is less than, or is forecast to be less than, 50 kW and the consumption is unmetered. Such connections include cable TV power packs, bus shelters, telephone booths, traffic lights, railway crossings, etc. The level of the consumption will be agreed to by the distributor and the customer, based on detailed manufacturer information/ documentation with regard to electrical consumption of the unmetered load or periodic monitoring of actual consumption. Further servicing details are available in the distributor’s Conditions of Service. | L166: =ROUND(LEN(B166), -2) / 100 -> 7
B168: APPLICATION
B170: The application of these rates and charges shall be in accordance with the Licence of the Distributor and any Code or Order of the Board, and amendments thereto as approved by the Board, which may be applicable to the administration of this schedule. | L170: =ROUND(LEN(B170), -2) / 100 -> 3
B172: No rates and charges for the distribution of electricity and charges to meet the costs of any work or service done or furnished for the purpose of the distribution of electricity shall be made except as permitted by this schedule, unless required by the Distributor’s Licence or a Code or Order of the Board, and amendments thereto as approved by the Board, or as specified herein. | L172: =ROUND(LEN(B172), -2) / 100 -> 4
B174: Unless specifically noted, this schedule does not contain any charges for the electricity commodity, be it under the Regulated Price Plan, a contract with a retailer or the wholesale market price, as applicable. In addition, the charges in the MONTHLY RATES AND CHARGES - Regulatory Component of this schedule do not apply to a customer that is an embedded wholesale market participant. | L174: =ROUND(LEN(B174), -2) / 100 -> 4
B176: It should be noted that this schedule does not list any charges, assessments or credits that are required by law to be invoiced by a distributor and that are not subject to Board approval, such as the Debt Retirement Charge, the Global Adjustment, the Ontario Clean Energy Benefit and the HST. | L176: =ROUND(LEN(B176), -2) / 100 -> 3
B178: MONTHLY RATES AND CHARGES - Delivery Component
A180: UNMETERED SCATTERED LOAD | B180: Service Charge (per connection) | D180: $ | E180: 15.98 | K180: 6_P_MSC
A181: UNMETERED SCATTERED LOAD | B181: Distribution Volumetric Rate | D181: $/kWh | E181: 0.0199 | K181: 6_P_VC_1
A182: UNMETERED SCATTERED LOAD | B182: Low Voltage Service Rate | D182: $/kWh | E182: 0.0001 | K182: 6_P_LVrate
A183: UNMETERED SCATTERED LOAD | B183: Rate Rider for Tax Change (2015) - effective until April 30, 2016 | D183: $/kWh | E183: -0.00015 | K183: 6_P_VC_Rate_Rider_kWh_1
A184: UNMETERED SCATTERED LOAD | B184: Rate Rider for Disposition of Deferral/Variance Accounts (2015) - effective until April 30, 2016 | D184: $/kWh | E184: -0.0015 | K184: 6_P_VC_DEFVAR_kWh_1
A185: UNMETERED SCATTERED LOAD | B185: Rate Rider for Disposition of Global Adjustment Account (2015) - effective until April 30, 2016 Applicable only for Non RPP Customers | D185: $/kWh | E185: 0.0006 | K185: 6_P_VC_GA_Rate_Rider_kWh_1
A186: UNMETERED SCATTERED LOAD | B186: Retail Transmission Rate - Network Service Rate | D186: $/kWh | E186: 0.006910488085 | K186: 6_P_RTSR_Network
A187: UNMETERED SCATTERED LOAD | B187: Retail Transmission Rate - Line and Transformation Connection Service Rate | D187: $/kWh | E187: 0.002089627083 | K187: 6_P_RTSR_Connection
A188: UNMETERED SCATTERED LOAD
A189: UNMETERED SCATTERED LOAD | B189: MONTHLY RATES AND CHARGES - Regulatory Component
A190: UNMETERED SCATTERED LOAD
A191: UNMETERED SCATTERED LOAD | B191: Wholesale Market Service Rate | D191: $/kWh | E191: 0.0044 | K191: 6_P_WMSR
A192: UNMETERED SCATTERED LOAD | B192: Rural or Remote Electricity Rate Protection Charge (RRRP) | D192: $/kWh | E192: 0.0013 | K192: 6_P_RRPC
A193: UNMETERED SCATTERED LOAD | B193: Standard Supply Service - Administrative Charge (if applicable) | D193: $ | E193: 0.25 | K193: 6_P_SSS
B195: STREET LIGHTING SERVICE CLASSIFICATION
B197: This classification applies to an account for roadway lighting with a Municipality, Regional Municipality, Ministry of Transportation and private roadway lighting, controlled by photo cells. The consumption for these customers will be based on the calculated connected load times the required lighting times established in the approved OEB street lighting load shape template. Further servicing details are available in the distributor’s Conditions of Service. | L197: =ROUND(LEN(B197), -2) / 100 -> 5
B199: APPLICATION
B201: The application of these rates and charges shall be in accordance with the Licence of the Distributor and any Code or Order of the Board, and amendments thereto as approved by the Board, which may be applicable to the administration of this schedule. | L201: =ROUND(LEN(B201), -2) / 100 -> 3
B203: No rates and charges for the distribution of electricity and charges to meet the costs of any work or service done or furnished for the purpose of the distribution of electricity shall be made except as permitted by this schedule, unless required by the Distributor’s Licence or a Code or Order of the Board, and amendments thereto as approved by the Board, or as specified herein. | L203: =ROUND(LEN(B203), -2) / 100 -> 4
B205: Unless specifically noted, this schedule does not contain any charges for the electricity commodity, be it under the Regulated Price Plan, a contract with a retailer or the wholesale market price, as applicable. In addition, the charges in the MONTHLY RATES AND CHARGES - Regulatory Component of this schedule do not apply to a customer that is an embedded wholesale market participant. | L205: =ROUND(LEN(B205), -2) / 100 -> 4
B207: It should be noted that this schedule does not list any charges, assessments or credits that are required by law to be invoiced by a distributor and that are not subject to Board approval, such as the Debt Retirement Charge, the Global Adjustment, the Ontario Clean Energy Benefit and the HST. | L207: =ROUND(LEN(B207), -2) / 100 -> 3
B209: MONTHLY RATES AND CHARGES - Delivery Component
A211: STREET LIGHTING | B211: Service Charge (per connection) | D211: $ | E211: 0.33 | K211: 7_P_MSC
A212: STREET LIGHTING | B212: Distribution Volumetric Rate | D212: $/kW | E212: 8.6832 | K212: 7_P_VC_1
A213: STREET LIGHTING | B213: Low Voltage Service Rate | D213: $/kW | E213: 0.0341 | K213: 7_P_LVrate
A214: STREET LIGHTING | B214: Rate Rider for Tax Change (2015) - effective until April 30, 2016 | D214: $/kW | E214: -0.0208 | K214: 7_P_VC_Rate_Rider_kW_1
A215: STREET LIGHTING | B215: Rate Rider for Disposition of Deferral/Variance Accounts (2015) - effective until April 30, 2016 | D215: $/kW | E215: -0.5199 | K215: 7_P_VC_DEFVAR_kW_1
A216: STREET LIGHTING | B216: Rate Rider for Disposition of Global Adjustment Account (2015) - effective until April 30, 2016 Applicable only for Non RPP Customers | D216: $/kW | E216: 0.2139 | K216: 7_P_VC_GA_Rate_Rider_kW_1
A217: STREET LIGHTING | B217: Retail Transmission Rate - Network Service Rate | D217: $/kW | E217: 2.143653434 | K217: 7_P_RTSR_Network
A218: STREET LIGHTING | B218: Retail Transmission Rate - Line and Transformation Connection Service Rate | D218: $/kW | E218: 0.6309628976 | K218: 7_P_RTSR_Connection
A219: STREET LIGHTING
A220: STREET LIGHTING | B220: MONTHLY RATES AND CHARGES - Regulatory Component
A221: STREET LIGHTING
A222: STREET LIGHTING | B222: Wholesale Market Service Rate | D222: $/kWh | E222: 0.0044 | K222: 7_P_WMSR
A223: STREET LIGHTING | B223: Rural or Remote Electricity Rate Protection Charge (RRRP) | D223: $/kWh | E223: 0.0013 | K223: 7_P_RRPC
A224: STREET LIGHTING | B224: Standard Supply Service - Administrative Charge (if applicable) | D224: $ | E224: 0.25 | K224: 7_P_SSS
B226: MICROFIT SERVICE CLASSIFICATION
B228: This classification applies to an electricity generation facility contracted under the Ontario Power Authority’s microFIT program and connected to the distributor’s distribution system. Further servicing details are available in the distributor’s Conditions of Service. | L228: =ROUND(LEN(B228), -2) / 100 -> 3
B230: APPLICATION
B232: The application of these rates and charges shall be in accordance with the Licence of the Distributor and any Code or Order of the Board, and amendments thereto as approved by the Board, which may be applicable to the administration of this schedule. | L232: =ROUND(LEN(B232), -2) / 100 -> 3
B234: No rates and charges for the distribution of electricity and charges to meet the costs of any work or service done or furnished for the purpose of the distribution of electricity shall be made except as permitted by this schedule, unless required by the Distributor’s Licence or a Code or Order of the Board, and amendments thereto as approved by the Board, or as specified herein. | L234: =ROUND(LEN(B234), -2) / 100 -> 4
B236: Unless specifically noted, this schedule does not contain any charges for the electricity commodity, be it under the Regulated Price Plan, a contract with a retailer or the wholesale market price, as applicable. | L236: =ROUND(LEN(B236), -2) / 100 -> 2
B238: It should be noted that this schedule does not list any charges, assessments or credits that are required by law to be invoiced by a distributor and that are not subject to Board approval, such as the Debt Retirement Charge, the Global Adjustment, the Ontario Clean Energy Benefit and the HST. | L238: =ROUND(LEN(B238), -2) / 100 -> 3
B240: MONTHLY RATES AND CHARGES - Delivery Component
A242: MICROFIT | B242: Service Charge | D242: $ | E242: 5.4 | K242: 8_P_MSC
A243: MICROFIT
B244: EMBEDDED DISTRIBUTOR SERVICE CLASSIFICATION
A245: MICROFIT
B246: This classification applies to an electricity distributor licensed by the Board that is provided electricity by means of this distributor’s facilities. Further servicing details are available in the distributor’s Conditions of Service. | L246: =ROUND(LEN(B246), -2) / 100 -> 2
B248: APPLICATION
B250: The application of these rates and charges shall be in accordance with the Licence of the Distributor and any Code or Order of the Board, and amendments thereto as approved by the Board, which may be applicable to the administration of this schedule. | L250: =ROUND(LEN(B250), -2) / 100 -> 3
B252: No rates and charges for the distribution of electricity and charges to meet the costs of any work or service done or furnished for the purpose of the distribution of electricity shall be made except as permitted by this schedule, unless required by the Distributor’s Licence or a Code or Order of the Board, and amendments thereto as approved by the Board, or as specified herein. | L252: =ROUND(LEN(B252), -2) / 100 -> 4
B254: Unless specifically noted, this schedule does not contain any charges for the electricity commodity, be it under the Regulated Price Plan, a contract with a retailer or the wholesale market price, as applicable. | L254: =ROUND(LEN(B254), -2) / 100 -> 2
B256: It should be noted that this schedule does not list any charges, assessments or credits that are required by law to be invoiced by a distributor and that are not subject to Board approval, such as the Debt Retirement Charge, the Global Adjustment, the Ontario Clean Energy Benefit and the HST. | L256: =ROUND(LEN(B256), -2) / 100 -> 3
B258: MONTHLY RATES AND CHARGES - Delivery Component
A260: EMBEDDED DISTRIBUTOR | B260: Distribution Volumetric Rate | D260: $/kW | E260: 0.0126 | K260: 9_P_VC_1
A261: EMBEDDED DISTRIBUTOR | B261: Rate Rider for Disposition of Deferral/Variance Accounts (2015) - effective until April 30, 2016 | D261: $/kW | E261: -0.5823 | K261: 9_P_VC_DEFVAR_kW_1
A262: EMBEDDED DISTRIBUTOR | B262: Rate Rider for Disposition of Global Adjustment Account (2015) - effective until April 30, 2016 Applicable only for Non RPP Customers | D262: $/kW | E262: 0.2396 | K262: 9_P_VC_GA_Rate_Rider_kW_1
A263: EMBEDDED DISTRIBUTOR
A264: EMBEDDED DISTRIBUTOR | B264: MONTHLY RATES AND CHARGES - Regulatory Component
A265: EMBEDDED DISTRIBUTOR
A266: EMBEDDED DISTRIBUTOR | B266: Wholesale Market Service Rate | D266: $/kWh | E266: 0.0044 | K266: 9_P_WMSR
A267: EMBEDDED DISTRIBUTOR | B267: Rural or Remote Electricity Rate Protection Charge (RRRP) | D267: $/kWh | E267: 0.0013 | K267: 9_P_RRPC
A268: EMBEDDED DISTRIBUTOR | B268: Standard Supply Service - Administrative Charge (if applicable) | D268: $ | E268: 0.25 | K268: 9_P_SSS
B270: ALLOWANCES
B272: Transformer Allowance for Ownership - per kW of billing demand/month | D272: $/kW | E272: -0.6
B273: Primary Metering Allowance for transformer losses – applied to measured demand and energy | D273: % | E273: -1
B275: SPECIFIC SERVICE CHARGES
B277: The application of these rates and charges shall be in accordance with the Licence of the Distributor and any Code or Order of the Board, and amendments thereto as approved by the Board, which may be applicable to the administration of this schedule.
B279: No charges to meet the costs of any work or service done or furnished for the purpose of the distribution of electricity shall be made except as permitted by this schedule, unless required by the Distributor’s Licence or a Code or Order of the Board, and amendments thereto as approved by the Board, or as specified herein.
B281: It should be noted that this schedule does not list any charges, assessments, or credits that are required by law to be invoiced by a distributor and that are not subject to Board approval, such as the Debt Retirement Charge, the Global Adjustment, the Ontario Clean Energy Benefit and the HST.
B283: Customer Administration
B284: Easement letter | D284: $ | E284: 15
B285: Notification charge | D285: $ | E285: 15
B286: Credit reference/credit check (plus credit agency costs) | D286: $ | E286: 15
B287: Returned cheque charge (plus bank charges) | D287: $ | E287: 15
... 82 more rows

Sheet 14. Bill Impacts (hidden)
Z1: =MATCH(A13, '3. Rate Class Selection'!B19:B40,0) -> 1 | AA1: =VLOOKUP(A13, lists!AO:AP,2,0) -> kWh
A11: Choose a Rate Class from the drop-down menu below and click UPDATE. For Street Lighting and USL classes, please ensure that the number of customers is manually entered into cells B30 and B31. Click the UPDATE button to refresh the sheet.
A13: RESIDENTIAL | F13: =IF(ISERROR(SEARCH("MicroFit",A13,1))=FALSE,"Bill impact presentation for this class does not exist.", "") -> 
A15: Consumption | B15: =730*D15*B17 -> 3650000 | C15: kWh | D15: 10000 | E15: =IF(AA1 = "kWh", "", "kW") -> 
A16: RPP Tier One | B16: 600 | C16: kWh | E16: 1
A17: Load Factor | B17: 0.5
A18: Loss Factor | B18: 1
B21: CURRENT ESTIMATED BILL | E21: PROPOSED ESTIMATED BILL
B22: Volume | C22: Current Rate ($) | D22: Current Charge ($) | E22: Volume | F22: Proposed Rate ($) | G22: Proposed Charge ($) | I22: Change ($) | J22: Change (%) | K22: % of Total RPP Bill | L22: % of Total TOU Bill
A23: Energy First Tier (kWh) | B23: 3650000 | C23: 0.075 | D23: =B23*C23 -> 273750 | E23: =B23 -> 3650000 | F23: =C23 -> 0.075 | G23: =E23*F23 -> 273750 | I23: =G23-D23 -> 0 | J23: =I23/D23 -> 0 | K23: =G23/G48 -> 0.8646078577
A24: Energy Second Tier (kWh) | B24: 0 | C24: 0.088 | D24: =B24*C24 -> 0 | E24: =B24 -> 0 | F24: =C24 -> 0.088 | G24: =E24*F24 -> 0 | I24: =G24-D24 -> 0 | J24: 0 | K24: =G24/G48 -> 0
A26: TOU - Off Peak | B26: =0.64*$B$15*$B$18 -> 2336000 | C26: 0.065 | D26: =C26*B26 -> 151840 | E26: =B26 -> 2336000 | F26: =C26 -> 0.065 | G26: =F26*E26 -> 151840 | I26: =G26-D26 -> 0 | J26: =I26/D26 -> 0 | L26: =G26/G54 -> 0.449726096
A27: TOU - Mid Peak | B27: =0.18*$B$15*$B$18 -> 657000 | C27: 0.1 | D27: =C27*B27 -> 65700 | E27: =B27 -> 657000 | F27: =C27 -> 0.1 | G27: =F27*E27 -> 65700 | H27: =G27*F27 -> 6570 | I27: =G27-D27 -> 0 | J27: =I27/D27 -> 0 | L27: =G27/G54 -> 0.1945930223
A28: TOU - On Peak | B28: =0.18*$B$15*$B$18 -> 657000 | C28: 0.117 | D28: 76869 | F28: =C28 -> 0.117 | G28: =F28*E28 -> 0 | H28: =G28*F28 -> 0 | J28: =I28/D28 -> 0 | L28: =G28/G54 -> 0
A30: Service Charge | B30: 1 | D30: 0 | G30: =F30*E30 -> 0 | H30: 0 | J30: 0 | K30: 0 | L30: 0
A31: Service Charge Rate Rider(s) | B31: 1 | C31: 0 | D31: 0 | F31: 0 | G31: 0 | H31: 0 | J31: 0 | K31: 0 | L31: 0
A32: Distribution Volumetric Rate | B32: 10000 | D32: 0 | E32: =B32 -> 10000 | G32: 0 | H32: 0 | I32: =G32-D32 -> 0 | J32: 0 | K32: 0 | L32: 0
A33: Low Voltage Volumetric Rate | B33: 10000 | D33: 0 | G33: 0 | H33: 0 | J33: 0 | K33: 0 | L33: 0
A34: Distribution Volumetric Rate Rider(s) | B34: 10000 | C34: 0 | D34: 0 | F34: 1.2025 | G34: 0 | H34: 0 | J34: 0 | K34: =G34/G48 -> 0 | L34: =G34/G54 -> 0
A35: Total: Distribution | D35: =ROUND(SUM(D30:D34),2) -> 0 | G35: =ROUND(SUM(G30:G34),2) -> 0 | J35: 0 | K35: =G35/G48 -> 0 | L35: =G35/G54 -> 0
A36: Total: Retail Transmission
A37: Sub-Total: Delivery (Distribution and Retail Transmission) | D37: =SUM(D36,D35) -> 0 | G37: =SUM(G36,G35) -> 0 | J37: 0 | K37: =G37/G48 -> 0 | L37: =G37/G54 -> 0
A38: Wholesale Market Service Rate | B38: 3650000 | C38: 0 | D38: =B38*C38 -> 0 | F38: =C38 -> 0 | G38: =E38*F38 -> 0 | J38: 0 | K38: 0 | L38: 0
A39: Rural Rate Protection Charge | B39: 3650000 | C39: 0 | D39: =B39*C39 -> 0 | E39: 3650000 | F39: 0 | G39: =E39*F39 -> 0 | I39: =G39-D39 -> 0 | J39: 0 | K39: 0 | L39: 0
A40: Standard Supply Service – Administration Charge (if applicable) | B40: 1 | C40: 0 | D40: =B40*C40 -> 0 | E40: 1 | F40: 0 | G40: =E40*F40 -> 0 | I40: =G40-D40 -> 0 | J40: 0 | K40: 0 | L40: 0
A41: Sub-Total: Regulatory | D41: =SUM(D38:D40) -> 0 | G41: =SUM(G38:H40) -> 0 | I41: =G41-D41 -> 0 | J41: 0 | K41: 0 | L41: 0
A42: Debt Retirement Charge (DRC) | B42: 3650000 | C42: 0.007 | D42: =B42*C42 -> 25550 | E42: =B42 -> 3650000 | F42: =C42 -> 0.007 | G42: =E42*F42 -> 25550 | I42: =G42-D42 -> 0 | J42: =I42/D42 -> 0 | K42: =G42/G48 -> 0.08069673339 | L42: =G42/G54 -> 0.07567506422
A44: Total Bill on RPP (before taxes) | D44: 299300 | G44: 311325 | I44: =G44-D44 -> 12025 | J44: =I44/D44 -> 0.04017707985 | K44: =G44/G48 -> 0.9832841691
A45: HST | C45: 0.13 | D45: =C45*D44 -> 38909 | F45: =C45 -> 0.13 | G45: =F45*G44 -> 40472.25 | I45: =G45-D45 -> 1563.25 | J45: =I45/D45 -> 0.04017707985 | K45: =G45/G48 -> 0.127826942
A46: Total Bill (including HST) | D46: =D45+D44 -> 338209 | G46: =G45+G44 -> 351797.25 | I46: =G46-D46 -> 13588.25 | J46: =I46/D46 -> 0.04017707985 | K46: =G46/G48 -> 1.111111111
A47: Ontario Clean Energy Benefit (OCEB) | C47: -0.1 | D47: =-0.1*D46 -> -33820.9 | F47: =C47 -> -0.1 | G47: =-0.1*G46 -> -35179.725 | I47: =G47-D47 -> -1358.825 | J47: =I47/D47 -> 0.04017707985 | K47: =G47/G48 -> -0.1111111111
A48: Total Bill on RPP (including OCEB) | D48: =D46+D47 -> 304388.1 | G48: =G46+G47 -> 316617.525 | I48: =G48-D48 -> 12229.425 | J48: =I48/D48 -> 0.04017707985 | K48: =G48/G48 -> 1
A50: Total Bill on TOU (before taxes) | D50: 319959 | G50: 331984 | I50: =G50-D50 -> 12025 | J50: =I50/D50 -> 0.03758294031 | L50: =G50/G54 -> 0.9832841691
A51: HST | C51: 0.13 | D51: =C51*D50 -> 41594.67 | F51: =C51 -> 0.13 | G51: =F51*G50 -> 43157.92 | I51: =G51-D51 -> 1563.25 | J51: =I51/D51 -> 0.03758294031 | L51: =G51/G54 -> 0.127826942
A52: Total Bill (including HST) | D52: =D51+D50 -> 361553.67 | G52: =G51+G50 -> 375141.92 | I52: =G52-D52 -> 13588.25 | J52: =I52/D52 -> 0.03758294031 | L52: =G52/G54 -> 1.111111111
A53: Ontario Clean Energy Benefit (OCEB) | C53: -0.1 | D53: =-0.1*D52 -> -36155.367 | F53: =C53 -> -0.1 | G53: =-0.1*G52 -> -37514.192 | I53: =G53-D53 -> -1358.825 | J53: =I53/D53 -> 0.03758294031 | L53: =G53/G54 -> -0.1111111111
A54: Total Bill on TOU (including OCEB) | D54: =D52+D53 -> 325398.303 | G54: =G52+G53 -> 337627.728 | I54: =G54-D54 -> 12229.425 | J54: =I54/D54 -> 0.03758294031 | L54: =G54/G54 -> 1
A57: Applicants must provide bill impacts for residential at 800 kWh and GS<50kW at 2000 kWh. In addition, their filing should cover the range that is relevant to their service territory, class by class. A general guideline of consumption levels follows: Residential (kWh) - 100, 250, 500, 800, 1000, 1500, 2000 GS<50kW (kWh) - 1000, 2000, 5000, 10000, 15000 GS>50kW (kW) 100, 500, 1000 Large User - range appropriate for utility Street/Sentinel Lighting Classes and USL - 150 kWh and 1 kW, range appropriate for utility.

Sheet 28. Bill Impacts
S1: 1 | Z1: =MATCH(C14, '3. Rate Class Selection'!B19:B40,0) -> 1 | AA1: =VLOOKUP(C14, lists!AO:AP,2,0) -> kWh
A14: Rate Class | C14: RESIDENTIAL
A16: Loss Factor | E16: 1.0404
A18: Consumption | C18: kWh | E18: 800
A20: If Billed on a kW basis:
A21: Demand | C21: kW
E25: Current Board-Approved | I25: Proposed | M25: Impact
E26: Rate | F26: Volume | G26: Charge | I26: Rate | J26: Volume | K26: Charge | M26: $ Change | N26: % Change
E27: ($) | G27: ($) | I27: ($) | K27: ($)
A28: Monthly Service Charge | E28: 15 | F28: 1 | G28: =F28*E28 -> 15 | I28: 15.2 | J28: 1 | K28: =J28*I28 -> 15.2 | M28: =K28-G28 -> 0.2 | N28: =IF((G28)=0,"",(M28/G28)) -> 0.01333333333
A29: Distribution Volumetric Rate | E29: 0.019 | F29: 800 | G29: =F29*E29 -> 15.2 | I29: 0.0192 | J29: =F29 -> 800 | K29: =J29*I29 -> 15.36 | M29: 0.16 | N29: 0.01052631579
A30: Fixed Rate Riders | E30: 2.11 | F30: 1 | G30: =F30*E30 -> 2.11 | I30: 2.11 | J30: 1 | K30: =J30*I30 -> 2.11 | M30: 0 | N30: 0
A31: Volumetric Rate Riders | E31: 0.0001 | F31: 800 | G31: =F31*E31 -> 0.08 | I31: -0.0001 | J31: =F31 -> 800 | K31: =J31*I31 -> -0.08 | M31: -0.16 | N31: -2
A32: Sub-Total A (excluding pass through) | G32: =SUM(G28:G31) -> 32.39 | K32: =SUM(K28:K31) -> 32.59 | M32: 0.2 | N32: 0.006174745292
A33: Line Losses on Cost of Power | E33: =E45*0.64+E46*0.18+E47*0.18 -> 0.08392 | F33: =E18*(E16-1) -> 32.32 | G33: =E33*F33 -> 2.7122944 | I33: =I45*0.64+I46*0.18+I47*0.18 -> 0.08392 | J33: =F33 -> 32.32 | K33: =I33*J33 -> 2.7122944 | M33: 0 | N33: 0
A34: Total Deferral/Variance Account Rate Riders | E34: -0.0016 | F34: 800 | G34: =F34*E34 -> -1.28 | I34: -0.0014 | J34: =F34 -> 800 | K34: =J34*I34 -> -1.12 | M34: 0.16 | N34: -0.125
A35: Low Voltage Service Charge | E35: 0.0001 | F35: 800 | G35: =F35*E35 -> 0.08 | I35: 0.0001 | J35: =F35 -> 800 | K35: =J35*I35 -> 0.08 | M35: 0 | N35: 0
A36: Smart Meter Entity Charge | E36: 0.79 | F36: 1 | G36: =F36*E36 -> 0.79 | I36: 0.79 | J36: =F36 -> 1 | K36: =J36*I36 -> 0.79 | M36: 0 | N36: 0
A37: Sub-Total B - Distribution (includes Sub-Total A) | G37: =SUM(G32:G36) -> 34.6922944 | K37: =SUM(K32:K36) -> 35.0522944 | M37: =K37-G37 -> 0.36 | N37: =IF((G37)=0,"",(M37/G37)) -> 0.01037694411
A38: RTSR - Network | E38: 0.0076 | F38: 832.32 | G38: =F38*E38 -> 6.325632 | I38: 0.0073 | J38: =F38 -> 832.32 | K38: =J38*I38 -> 6.075936 | M38: -0.249696 | N38: -0.03947368421
A39: RTSR - Connection and/or Line and Transformation Connection | E39: 0.0022 | F39: 832.32 | G39: =F39*E39 -> 1.831104 | I39: 0.0022 | J39: =F39 -> 832.32 | K39: =J39*I39 -> 1.831104 | M39: 0 | N39: 0
A40: Sub-Total C - Delivery (including Sub-Total B) | G40: =SUM(G37:G39) -> 42.8490304 | K40: =SUM(K37:K39) -> 42.9593344 | M40: 0.110304 | N40: 0.002574247281
A41: Wholesale Market Service Charge (WMSC) | E41: 0.0044 | F41: =E18*E16 -> 832.32 | G41: =F41*E41 -> 3.662208 | I41: 0.0044 | J41: =E18*E16 -> 832.32 | K41: =J41*I41 -> 3.662208 | M41: 0 | N41: 0
A42: Rural and Remote Rate Protection (RRRP) | E42: 0.0013 | F42: =E18*E16 -> 832.32 | G42: 1.082016 | I42: 0.0013 | J42: =E18*E16 -> 832.32 | K42: 1.082016 | M42: 0 | N42: 0
A43: Standard Supply Service Charge | E43: 0.25 | F43: 1 | G43: 0.25 | I43: 0.25 | J43: 1 | K43: 0.25 | M43: 0 | N43: 0
A44: Debt Retirement Charge (DRC) | E44: 0.007 | F44: =E18 -> 800 | G44: 5.6 | I44: 0.007 | J44: =E18 -> 800 | K44: 5.6 | M44: 0 | N44: 0
A45: TOU - Off Peak | E45: 0.067 | F45: 512 | G45: 34.304 | I45: 0.067 | J45: =F45 -> 512 | K45: 34.304 | M45: 0 | N45: 0
A46: TOU - Mid Peak | E46: 0.104 | F46: 144 | G46: 14.976 | I46: 0.104 | J46: =F46 -> 144 | K46: 14.976 | M46: 0 | N46: 0
A47: TOU - On Peak | E47: 0.124 | F47: 144 | G47: 17.856 | I47: 0.124 | J47: =F47 -> 144 | K47: 17.856 | M47: 0 | N47: 0
A49: Total Bill on TOU (before Taxes) | G49: =SUM(G40:G44,G45:G47) -> 120.5792544 | K49: =SUM(K40:K44,K45:K47) -> 120.6895584 | M49: =K49-G49 -> 0.110304 | N49: =IF((G49)=0,"",(M49/G49)) -> 0.0009147842268
A50: HST | E50: 0.13 | G50: =G49*E50 -> 15.67530307 | I50: 0.13 | K50: =K49*I50 -> 15.68964259 | M50: 0.01433952 | N50: 0.0009147842268
A51: Total Bill (including HST) | G51: =G49+G50 -> 136.2545575 | K51: =K49+K50 -> 136.379201 | M51: 0.12464352 | N51: 0.0009147842268
A52: Ontario Clean Energy Benefit 1 | G52: =ROUND(-G51*10%,2) -> -13.63 | K52: =ROUND(-K51*10%,2) -> -13.64 | M52: -0.01 | N52: 0.0007336757153
A53: Total Bill on TOU (including OCEB) | G53: =G51+G52 -> 122.6245575 | K53: =K51+K52 -> 122.739201 | M53: 0.11464352 | N53: 0.000934914852
A58: Note: For distributors who have a majority of customers on Tiered pricing, please provide a separate bill impact for such customers.

Sheet lists (hidden)
A1: DISTRIBUTED GENERATION [DGEN] | B1: Embedded Distributor | C1: =COUNTA(B1:B17) -> 4 | I1: A Standby Service Charge will be applied for a month where standby power is not provided. The applicable rate is the approved Distribution Volumetric Rate of the applicable service class and is applied to gross metered demand or contracted amount, whichever is greater. A monthly administration charge of $200, for simple metering arrangements, or $500, for complex metering arrangements, will also be applied. | L1: Loss Factors | N1: Units | O1: Units1 | P1: Units2 | Z1: Account History | AA1: Account set up charge/change of occupancy charge (plus credit agency costs if applicable) | AB1: Total Loss Factor – Embedded Distributor – Hydro One Networks Inc. | AL1: Algoma Power Inc. | AM1: Algoma Power Inc. | AO1: DISTRIBUTED GENERATION [DGEN] | AP1: kW | AT1: Sub-Total: Delivery (Distribution and Retail Transmission)
A2: EMBEDDED DISTRIBUTOR | B2: General Service 3,000 to 4,999 kW | I2: Distribution Volumetric Rate | L2: Total Loss Factor – Primary Metered Customer | N2: $ | O2: $/kWh | P2: $ | Z2: Account set up charge/change of occupancy charge | AA2: Administrative Billing Charge | AB2: Total Loss Factor – Primary Metered Customer | AL2: Atikokan Hydro Inc. | AM2: Atikokan Hydro Inc. | AO2: EMBEDDED DISTRIBUTOR | AP2: kW | AT2: Wholesale Market Service Rate | AW2: =AU2*AV2 -> 0 | AX2: =AU2 -> 0 | AY2: 0 | AZ2: =AX2*AY2 -> 0 | BB2: =AZ2-AW2 -> 0 | BC2: =BB2/AW2 -> 
A3: EMBEDDED DISTRIBUTOR | B3: General Service 1,000 to 4,999 kW | I3: Distribution Volumetric Rate - $/kW of contracted amount | L3: Total Loss Factor – Primary Metered Customer < 5,000 kW | N3: $/kWh | O3: $/kW | P3: % | W3: MSC | Z3: Account set up charge/change of occupancy charge (plus credit agency costs if applicable – Residential) | AA3: Bell Canada Pole Rentals | AB3: Total Loss Factor – Primary Metered Customer < 5,000 kW | AL3: Bluewater Power Distribution Corporation | AM3: Bluewater Power Distribution Corporation | AO3: EMBEDDED DISTRIBUTOR | AP3: kW | AT3: Rural or Remote Electricity Rate Protection Charge (RRRP) | AW3: =AU3*AV3 -> 0 | AX3: 0 | AY3: 0 | AZ3: =AX3*AY3 -> 0 | BB3: =AZ3-AW3 -> 0 | BC3: =BB3/AW3 -> 
A4: FARMS - SINGLE PHASE ENERGY-BILLED [F1] | B4: General Service Equal To Or Greater Than 1,500 kW - Interval Metered | I4: Distribution Wheeling Service Rate | L4: Total Loss Factor – Primary Metered Customer > 5,000 kW | N4: $/kW | O4: $/kVA | W4: SM_Rate_Adder | Z4: Account set up charge/change of occupancy charge (plus credit agency costs if applicable) | AA4: Clearance Pole Attachment charge $/pole/year | AB4: Total Loss Factor – Primary Metered Customer > 5,000 kW | AL4: Brant County Power Inc. | AM4: Brant County Power Inc. | AO4: FARMS - SINGLE PHASE ENERGY-BILLED [F1] | AP4: kWh | AT4: Standard Supply Service – Administration Charge (if applicable) | AW4: =AU4*AV4 -> 0 | AX4: 0 | AY4: 0 | AZ4: =AX4*AY4 -> 0 | BB4: =AZ4-AW4 -> 0 | BC4: =BB4/AW4 -> 
A5: FARMS - THREE PHASE ENERGY-BILLED [F3] | I5: Electricity Rate | L5: Total Loss Factor – Secondary Metered Customer | N5: $/kVA | W5: MSC_Rate_Rider_ | Z5: Arrears certificate | AA5: Collection of account charge – no disconnection | AB5: Total Loss Factor – Secondary Metered Customer | AL5: Brantford Power Inc. | AM5: Brantford Power Inc. | AO5: FARMS - THREE PHASE ENERGY-BILLED [F3] | AP5: kWh | AT5: Sub-Total: Regulatory | AW5: =SUM(AW2:AW4) -> 0 | AZ5: =SUM(AZ2:BA4) -> 0 | BB5: =AZ5-AW5 -> 0 | BC5: =BB5/AW5 -> 
A6: GENERAL SERVICE - COMMERCIAL | I6: Electricity Rate - All Additional kWh | L6: Total Loss Factor – Secondary Metered Customer < 5,000 kW | W6: VC | Z6: Arrears certificate (credit reference) | AA6: Collection of account charge – no disconnection – after regular hours | AB6: Total Loss Factor – Secondary Metered Customer < 5,000 kW | AL6: Burlington Hydro Inc. | AM6: Burlington Hydro Inc. | AO6: GENERAL SERVICE - COMMERCIAL | AP6: kW | AT6: Debt Retirement Charge (DRC) | AW6: =AU6*AV6 -> 0 | AX6: =AU6 -> 0 | AY6: =AV6 -> 0 | AZ6: =AX6*AY6 -> 0 | BB6: =AZ6-AW6 -> 0 | BC6: =BB6/AW6 -> 
A7: GENERAL SERVICE - INSTITUTIONAL | I7: Electricity Rate - First 250 kWh | AL7: Cambridge and North Dumfries Hydro Inc. | AM7: Cambridge and North Dumfries Hydro Inc. | AO7: GENERAL SERVICE - INSTITUTIONAL | AP7: kW
A8: GENERAL SERVICE 1,000 TO 2,999 KW | I8: Electricity Rate -All Additional kWh | L8: Total Loss Factor – Secondary Metered Customer > 5,000 kW | W8: VC_Rate_Rider_ | Z8: Charge to certify cheque | AA8: Collection of account charge – no disconnection - during regular business hours | AB8: Total Loss Factor – Secondary Metered Customer > 5,000 kW | AL8: Canadian Niagara Power Inc. | AM8: Canadian Niagara Power Inc. | AO8: GENERAL SERVICE 1,000 TO 2,999 KW | AP8: kW | AT8: Total Bill on RPP (before taxes) | BB8: =AZ8-AW8 -> 0
A9: GENERAL SERVICE 1,000 TO 4,999 KW | I9: Electricity Rate First 1,000 kWh | L9: Distribution Loss Factor - Secondary Metered Customer < 5,000 kW | W9: VC_GA_Rate_Rider_kW_ | Z9: Collection of Account Charge – No Disconnection | AA9: Collection of account charge – no disconnection – during regular hours | AL9: Centre Wellington Hydro Ltd. | AM9: Centre Wellington Hydro Ltd. | AO9: GENERAL SERVICE 1,000 TO 4,999 KW | AP9: kW | AT9: HST | AW9: =AV9*AW8 -> 0 | AY9: =AV9 -> 0 | AZ9: =AY9*AZ8 -> 0 | BB9: =AZ9-AW9 -> 0 | BC9: =BB9/AW9 -> 
A10: GENERAL SERVICE 1,000 TO 4,999 KW - INTERVAL METERS | I10: Electricity Rate First 25,000 kWh | L10: Distribution Loss Factor - Secondary Metered Customer > 5,000 kW | W10: VC_LV_Rate | Z10: Credit Card Convenience Charge | AA10: Collection/Disconnection/Load Limiter/Reconnection – if in Community | AL10: Chapleau Public Utilities Corporation | AM10: Chapleau Public Utilities Corporation | AO10: GENERAL SERVICE 1,000 TO 4,999 KW - INTERVAL METERS | AP10: kW | AT10: Total Bill (including HST) | AW10: =AW9+AW8 -> 0 | AZ10: =AZ9+AZ8 -> 0 | BB10: =AZ10-AW10 -> 0 | BC10: =BB10/AW10 -> 
A11: GENERAL SERVICE 1,000 TO 4,999 KW (CO-GENERATION) | I11: Electricity Rate First 6,000 kWh | L11: Distribution Loss Factor - Primary Metered Customer < 5,000 kW | W11: RTSR_Network | Z11: Credit check (plus credit agency costs) | AA11: Credit Card Convenience Charge | AL11: Collus PowerStream Corporation | AM11: Collus PowerStream Corporation | AO11: GENERAL SERVICE 1,000 TO 4,999 KW (CO-GENERATION) | AP11: kW | AT11: Ontario Clean Energy Benefit (OCEB) | AW11: =-0.1*AW10 -> 0 | AY11: =AV11 -> 0 | AZ11: =-0.1*AZ10 -> 0 | BB11: =AZ11-AW11 -> 0 | BC11: =BB11/AW11 -> 
A12: GENERAL SERVICE 1,500 TO 4,999 KW | I12: Electricity Rate Next 1,500 kWh | L12: Distribution Loss Factor - Primary Metered Customer > 5,000 kW | W12: RTSR_Connection | Z12: Credit reference Letter | AA12: Disconnect/Reconnect at meter – after regular hours | AL12: Cooperative Hydro Embrun Inc. | AM12: Cooperative Hydro Embrun Inc. | AO12: GENERAL SERVICE 1,500 TO 4,999 KW | AP12: kW | AT12: Total Bill on RPP (including OCEB) | AW12: =AW10+AW11 -> 0 | AZ12: =AZ10+AZ11 -> 0 | BB12: =AZ12-AW12 -> 0 | BC12: =BB12/AW12 -> 
A13: GENERAL SERVICE 2,500 TO 4,999 KW | I13: General Service 1,500 to 4,999 kW customer | AL13: E.L.K. Energy Inc. | AM13: E.L.K. Energy Inc. | AO13: GENERAL SERVICE 2,500 TO 4,999 KW | AP13: kW
A14: GENERAL SERVICE 3,000 TO 4,999 KW | I14: General Service 50 to 1,499 kW customer | L14: Total Loss Factor - Embedded Distributor | W14: RTSR_Network_Interval | Z14: Credit reference/credit check (plus credit agency costs – General Service) | AA14: Disconnect/Reconnect at meter – during regular hours | AL14: Enersource Hydro Mississauga Inc. | AM14: Enersource Hydro Mississauga Inc. | AO14: GENERAL SERVICE 3,000 TO 4,999 KW | AP14: kW | AT14: Total Bill on TOU (before taxes) | BB14: =AZ14-AW14 -> 0
A15: GENERAL SERVICE 3,000 TO 4,999 KW - INTERMEDIATE USE | I15: General Service Large Use customer | L15: Total Loss Factor – Embedded Distributor – Hydro One Networks Inc. | W15: RTSR_Connection_Interval | Z15: Credit Reference/credit check (plus credit agency costs) | AA15: Disconnect/Reconnect at pole – after regular hours | AL15: Entegrus Powerlines Inc. | AM15: Entegrus Powerlines Inc. | AO15: GENERAL SERVICE 3,000 TO 4,999 KW - INTERMEDIATE USE | AP15: kW | AT15: HST | AW15: =AV15*AW14 -> 0 | AY15: =AV15 -> 0 | AZ15: =AY15*AZ14 -> 0 | BB15: =AZ15-AW15 -> 0 | BC15: =BB15/AW15 -> 
A16: GENERAL SERVICE 3,000 TO 4,999 KW - INTERVAL METERED | I16: Green Energy Act Initiatives Funding Adder - effective until the date of the next cost of service-based rate order | W16: RTSR_Network_Interval_GR1000kW | Z16: Dispute Test – Commercial self contained -- MC | AA16: Disconnect/Reconnect at pole – during regular hours | AL16: Entegrus Powerlines Inc. - Dutton Service Area | AM16: Entegrus Powerlines Inc. - Dutton Service Area | AO16: GENERAL SERVICE 3,000 TO 4,999 KW - INTERVAL METERED | AP16: kW | AT16: Total Bill (including HST) | AW16: =AW15+AW14 -> 0 | AZ16: =AZ15+AZ14 -> 0 | BB16: =AZ16-AW16 -> 0 | BC16: =BB16/AW16 -> 
A17: GENERAL SERVICE 3,000 TO 4,999 KW - TIME OF USE | I17: Green Energy Act Plan Funding Adder | W17: RTSR_Connection_Interval_GR1000kW | Z17: Dispute Test – Commercial TT -- MC | AA17: Disconnect/Reconnect Charge – At Meter – After Hours | AL17: Entegrus Powerlines Inc. - former Chatham-Kent Hydro Service Area | AM17: Entegrus Powerlines Inc. - former Chatham-Kent Hydro Service Area | AO17: GENERAL SERVICE 3,000 TO 4,999 KW - TIME OF USE | AP17: kW | AT17: Ontario Clean Energy Benefit (OCEB) | AW17: =-0.1*AW16 -> 0 | AY17: =AV17 -> 0 | AZ17: =-0.1*AZ16 -> 0 | BB17: =AZ17-AW17 -> 0 | BC17: =BB17/AW17 -> 
A18: GENERAL SERVICE 50 TO 1,000 KW | I18: Green Energy Act Plan Funding Adder - effective April 1, 2013 until March 31, 2014 | W18: RTSR_Line_Connection | Z18: Dispute Test – Residential | AA18: Disconnect/Reconnect Charge – At Meter – During Regular Hours | AL18: Entegrus Powerlines Inc. - Newbury Service Area | AM18: Entegrus Powerlines Inc. - Newbury Service Area | AO18: GENERAL SERVICE 50 TO 1,000 KW | AP18: kW | AT18: Total Bill on TOU (including OCEB) | AW18: =AW16+AW17 -> 0 | AZ18: =AZ16+AZ17 -> 0 | BB18: =AZ18-AW18 -> 0 | BC18: =BB18/AW18 -> 
A19: GENERAL SERVICE 50 TO 1,000 KW - INTERVAL METERS | I19: Green Energy Act Plan Funding Adder - effective April 1, 2014 until March 31, 2015 | W19: RTSR_Transformer_Connection | Z19: Duplicate Invoices for previous billing | AA19: Disconnect/Reconnect Charge – At Pole – After Hours | AL19: Entegrus Powerlines Inc. - Strathroy, Mount Brydges and Parkhill Service Areas | AM19: Entegrus Powerlines Inc. - Strathroy, Mount Brydges and Parkhill Service Areas | AO19: GENERAL SERVICE 50 TO 1,000 KW - INTERVAL METERS | AP19: kW
A20: GENERAL SERVICE 50 TO 1,000 KW - NON INTERVAL METERS | I20: ICM Rate Rider (2014) - in effect until the effective date of the next cost of service rates | W20: WMSR | Z20: Easement Letter | AA20: Disconnect/Reconnect Charge – At Pole – During Regular Hours | AL20: ENWIN Utilities Ltd. | AM20: ENWIN Utilities Ltd. | AO20: GENERAL SERVICE 50 TO 1,000 KW - NON INTERVAL METERS | AP20: kW
A21: GENERAL SERVICE 50 TO 1,499 KW | I21: Low Voltage Service Charge | W21: RRRP | Z21: Income Tax Letter | AA21: Disconnect/Reconnect Charges for non payment of account - At Meter After Hours | AL21: Erie Thames Powerlines Corporation | AM21: Erie Thames Powerlines Corporation | AO21: GENERAL SERVICE 50 TO 1,499 KW | AP21: kW
A22: GENERAL SERVICE 50 TO 1,499 KW - INTERVAL METERED | I22: Low Voltage Service Rate | W22: SPC | Z22: Interval Meter Interrogation | AA22: Disconnect/Reconnect charges for non payment of account – at meter after regular hours | AL22: Espanola Regional Hydro Distribution Corporation | AM22: Espanola Regional Hydro Distribution Corporation | AO22: GENERAL SERVICE 50 TO 1,499 KW - INTERVAL METERED | AP22: kW
A23: GENERAL SERVICE 50 TO 2,499 KW | I23: Low Voltage Volumetric Rate | W23: DRC | Z23: Interval meter request change | AA23: Disconnect/Reconnect Charges for non payment of account - At Meter During Regular Hours | AL23: Essex Powerlines Corporation | AM23: Essex Powerlines Corporation | AO23: GENERAL SERVICE 50 TO 2,499 KW | AP23: kW
A24: GENERAL SERVICE 50 TO 2,999 KW | I24: LRAM Rate Rider - Effective Until April 30, 2015 | W24: SSS | Z24: Legal letter | AA24: Disconnect/Reconnect charges for non payment of account – at meter during regular hours | AL24: Festival Hydro Inc. | AM24: Festival Hydro Inc. | AO24: GENERAL SERVICE 50 TO 2,999 KW | AP24: kW
A25: GENERAL SERVICE 50 TO 2,999 KW - INTERVAL METERED | I25: Minimum Distribution Charge - per KW of maximum billing demand in the previous 11 months | W25: SFLF | Z25: Legal letter charge | AA25: Disconnect/Reconnect charges for non payment of account – at pole after regular hours | AL25: Fort Frances Power Corporation | AM25: Fort Frances Power Corporation | AO25: GENERAL SERVICE 50 TO 2,999 KW - INTERVAL METERED | AP25: kW
A26: GENERAL SERVICE 50 TO 2,999 KW - TIME OF USE | B26: January | I26: Monthly Distribution Wheeling Service Rate - Dedicated LV Line | W26: DLF_Secondary_LT_5000kW | Z26: Meter dispute charge plus Measurement Canada fees (if meter found correct) | AA26: Disconnect/Reconnect charges for non payment of account – at pole during regular hours | AL26: Greater Sudbury Hydro Inc. | AM26: Greater Sudbury Hydro Inc. | AO26: GENERAL SERVICE 50 TO 2,999 KW - TIME OF USE | AP26: kW
A27: GENERAL SERVICE 50 TO 4,999 KW | B27: February | I27: Monthly Distribution Wheeling Service Rate - Hydro One Networks | W27: DLF_Secondary_GT_5000kW | Z27: Notification charge | AA27: Disconnect/Reconnection for >300 volts - after regular hours | AL27: Grimsby Power Inc. | AM27: Grimsby Power Inc. | AO27: GENERAL SERVICE 50 TO 4,999 KW | AP27: kW
A28: GENERAL SERVICE 50 TO 4,999 KW - INTERVAL METERED | B28: March | I28: Monthly Distribution Wheeling Service Rate - Shared LV Line | W28: DLF_Primary_LT_5000kW | Z28: Pulling Post Dated Cheques | AA28: Disconnect/Reconnection for >300 volts - during regular hours | AL28: Guelph Hydro Electric Systems Inc. | AM28: Guelph Hydro Electric Systems Inc. | AO28: GENERAL SERVICE 50 TO 4,999 KW - INTERVAL METERED | AP28: kW
A29: GENERAL SERVICE 50 TO 4,999 KW - TIME OF USE | B29: April | I29: Monthly Distribution Wheeling Service Rate - Waterloo North Hydro | W29: DLF_Primary_GT_5000kW | Z29: Request for other billing information | AA29: Disposal of Concrete Poles | AL29: Haldimand County Hydro Inc. | AM29: Haldimand County Hydro Inc. | AO29: GENERAL SERVICE 50 TO 4,999 KW - TIME OF USE | AP29: kW
A30: GENERAL SERVICE 50 TO 4,999 KW (COGENERATION) | B30: May | I30: Rate Rider for Application of Tax Change - effective until April 30, 2015 | W30: TLF_Secondary_LT_5000kW | Z30: Returned cheque (plus bank charges) | AA30: Dispute Test – Commercial TT -- MC | AL30: Halton Hills Hydro Inc. | AM30: Halton Hills Hydro Inc. | AO30: GENERAL SERVICE 50 TO 4,999 KW (COGENERATION) | AP30: kW
A31: GENERAL SERVICE 50 TO 4,999 KW (FORMERLY TIME OF USE) | B31: June | I31: Rate Rider for Application of Tax Change - effective until December 31, 2014 | W31: TLF_Secondary_GT_5000kW | Z31: Returned cheque charge (plus bank charges) | AA31: Install/Remove load control device – after regular hours | AL31: Hearst Power Distribution Company Limited | AM31: Hearst Power Distribution Company Limited | AO31: GENERAL SERVICE 50 TO 4,999 KW (FORMERLY TIME OF USE) | AP31: kW
A32: GENERAL SERVICE 50 TO 499 KW | B32: July | I32: Rate Rider for Application of Tax Change (2014) - effective until April 30, 2015 | W32: TLF_Primary_LT_5000kW | Z32: Special Billing Service (aggregation) | AA32: Install/Remove load control device – during regular hours | AL32: Horizon Utilities Corporation | AM32: Horizon Utilities Corporation | AO32: GENERAL SERVICE 50 TO 499 KW | AP32: kW
A33: GENERAL SERVICE 50 TO 699 KW | B33: August | I33: Rate Rider for Application of Tax Change (per connection) - effective until April 30, 2015 | W33: TLF_Primary_GT_5000kW | Z33: Special Billing Service (sub-metering charge per meter) | AA33: Interval Meter Interrogation | AL33: Hydro 2000 Inc. | AM33: Hydro 2000 Inc. | AO33: GENERAL SERVICE 50 TO 699 KW | AP33: kW
A34: GENERAL SERVICE 50 TO 999 KW | B34: September | I34: Rate Rider for CGAAP Accounting Changes (2013) - effective until April 30, 2017 | W34: TLF_EmbeddedDistributor | Z34: Special meter reads | AA34: Interval Meter Load Management Tool Charge $/month | AL34: Hydro Hawkesbury Inc. | AM34: Hydro Hawkesbury Inc. | AO34: GENERAL SERVICE 50 TO 999 KW | AP34: kW
A35: GENERAL SERVICE 50 TO 999 KW - INTERVAL METERED | B35: October | I35: Rate Rider for Deferral/Variance Account (2012) - effective unitl April 30, 2016 | Z35: Statement of Account | AA35: Interval meter request change | AL35: Hydro One Brampton Networks Inc. | AM35: Hydro One Brampton Networks Inc. | AO35: GENERAL SERVICE 50 TO 999 KW - INTERVAL METERED | AP35: kW
A36: GENERAL SERVICE 500 TO 4,999 KW | B36: November | I36: Rate Rider for Deferral/Variance Account Disposition – effective until April 30, 2015 | Z36: Unprocessed Payment Charge (plus bank charges) | AA36: Late Payment – per annum | AL36: Hydro One Networks Inc. | AM36: Hydro One Networks Inc. | AO36: GENERAL SERVICE 500 TO 4,999 KW | AP36: kW
A37: GENERAL SERVICE 700 TO 4,999 KW | B37: December | I37: Rate Rider for Deferral/Variance Account Disposition (2012) - effective until April 30, 2016 | AA37: Late Payment – per month | AL37: Hydro Ottawa Limited | AM37: Hydro Ottawa Limited | AO37: GENERAL SERVICE 700 TO 4,999 KW | AP37: kW
A38: GENERAL SERVICE DEMAND BILLED (50 KW AND ABOVE) [GSD] | I38: Rate Rider for Deferral/Variance Account Disposition (2013) - effective until April 30, 2014 | AA38: Layout fees | AL38: Innisfil Hydro Distribution Systems Limited | AM38: Innisfil Hydro Distribution Systems Limited | AO38: GENERAL SERVICE DEMAND BILLED (50 KW AND ABOVE) [GSD] | AP38: kW
A39: GENERAL SERVICE ENERGY BILLED (LESS THAN 50 KW) [GSE-METERED] | I39: Rate Rider for Deferral/Variance Account Disposition (2014) - effective until April 28, 2016 | AA39: Meter dispute charge plus Measurement Canada fees (if meter found correct) | AL39: Kenora Hydro Electric Corporation Ltd. | AM39: Kenora Hydro Electric Corporation Ltd. | AO39: GENERAL SERVICE ENERGY BILLED (LESS THAN 50 KW) [GSE-METERED] | AP39: kWh
A40: GENERAL SERVICE ENERGY BILLED (LESS THAN TO 50 KW) [GSE-UNMETERED] | I40: Rate Rider for Deferral/Variance Account Disposition (2014) - effective until April 30, 2015 | AA40: Meter Interrogation Charge | AL40: Kingston Hydro Corporation | AM40: Kingston Hydro Corporation | AO40: GENERAL SERVICE ENERGY BILLED (LESS THAN TO 50 KW) [GSE-UNMETERED] | AP40: kWh
A41: GENERAL SERVICE EQUAL TO OR GREATER THAN 1,500 KW | I41: Rate Rider for Deferral/Variance Account Disposition (2014) - effective until December 31, 2014 | AA41: Missed Service Appointment | AL41: Kitchener-Wilmot Hydro Inc. | AM41: Kitchener-Wilmot Hydro Inc. | AO41: GENERAL SERVICE EQUAL TO OR GREATER THAN 1,500 KW | AP41: kW
A42: GENERAL SERVICE EQUAL TO OR GREATER THAN 1,500 KW - INTERVAL METERED | I42: Rate Rider for Deferral/Variance Account Disposition (2014) - effective until December 31, 2015 | AA42: Norfolk Pole Rentals – Billed | AL42: Lakefront Utilities Inc. | AM42: Lakefront Utilities Inc. | AO42: GENERAL SERVICE EQUAL TO OR GREATER THAN 1,500 KW - INTERVAL METERED | AP42: kW
A43: GENERAL SERVICE GREATER THAN 1,000 KW | I43: Rate Rider for Deferral/Variance Account Dispositon (2012) - effective until April 30, 2016 | AA43: Optional Interval/TOU Meter charge $/month | AL43: Lakeland Power Distribution Ltd. | AM43: Lakeland Power Distribution Ltd. | AO43: GENERAL SERVICE GREATER THAN 1,000 KW | AP43: kW
A44: GENERAL SERVICE GREATER THAN 50 kW - WMP | I44: Rate Rider for Disposition of Accounting Changes Under CGAAP Account 1576 - effective until April 30, 2016 | AA44: Overtime Locate | AL44: London Hydro Inc. | AM44: London Hydro Inc. | AO44: GENERAL SERVICE GREATER THAN 50 kW - WMP | AP44: kW
A45: GENERAL SERVICE INTERMEDIATE 1,000 TO 4,999 KW | I45: Rate Rider for Disposition of Deferral/Variance Accounts (2010) - effective until December 31, 2014 | AA45: Owner Requested Disconnection/Reconnection – after regular hours | AL45: Midland Power Utility Corporation | AM45: Midland Power Utility Corporation | AO45: GENERAL SERVICE INTERMEDIATE 1,000 TO 4,999 KW | AP45: kW
A46: GENERAL SERVICE INTERMEDIATE RATE CLASS 1,000 TO 4,999 KW (FORMERLY GENERAL SERVICE > 50 KW CUSTOMERS) | I46: Rate Rider for Disposition of Deferral/Variance Accounts (2011) - effective until April 30, 2015 | AA46: Owner Requested Disconnection/Reconnection – during regular hours | AL46: Milton Hydro Distribution Inc. | AM46: Milton Hydro Distribution Inc. | AO46: GENERAL SERVICE INTERMEDIATE RATE CLASS 1,000 TO 4,999 KW (FORMERLY GENERAL SERVICE > 50 KW CUSTOMERS) | AP46: kW
A47: GENERAL SERVICE INTERMEDIATE RATE CLASS 1,000 TO 4,999 KW (FORMERLY LARGE USE CUSTOMERS) | I47: Rate Rider for Disposition of Deferral/Variance Accounts (2011) - effective until April 30, 2016 | AA47: Returned cheque (plus bank charges) | AL47: Newmarket - Tay Power Distribution Ltd. | AM47: Newmarket - Tay Power Distribution Ltd. | AO47: GENERAL SERVICE INTERMEDIATE RATE CLASS 1,000 TO 4,999 KW (FORMERLY LARGE USE CUSTOMERS) | AP47: kW
A48: GENERAL SERVICE LESS THAN 50 KW | I48: Rate Rider for Disposition of Deferral/Variance Accounts (2012) - effective until April 30, 2014 | AA48: Rural system expansion / line connection fee | AL48: Niagara Peninsula Energy Inc. | AM48: Niagara Peninsula Energy Inc. | AO48: GENERAL SERVICE LESS THAN 50 KW | AP48: kWh
A49: GENERAL SERVICE LESS THAN 50 KW - SINGLE PHASE ENERGY-BILLED [G1] | I49: Rate Rider for Disposition of Deferral/Variance Accounts (2012) - effective until April 30, 2015 | AA49: Same Day Open Trench | AL49: Niagara-on-the-Lake Hydro Inc. | AM49: Niagara-on-the-Lake Hydro Inc. | AO49: GENERAL SERVICE LESS THAN 50 KW - SINGLE PHASE ENERGY-BILLED [G1] | AP49: kWh
A50: GENERAL SERVICE LESS THAN 50 KW - THREE PHASE ENERGY-BILLED [G3] | I50: Rate Rider for Disposition of Deferral/Variance Accounts (2012) - effective until April 30, 2016 | AA50: Scheduled Day Open Trench | AL50: Norfolk Power Distribution Inc. | AM50: Norfolk Power Distribution Inc. | AO50: GENERAL SERVICE LESS THAN 50 KW - THREE PHASE ENERGY-BILLED [G3] | AP50: kWh
A51: GENERAL SERVICE LESS THAN 50 KW - TRANSMISSION CLASS ENERGY-BILLED [T] | I51: Rate Rider for Disposition of Deferral/Variance Accounts (2012) - effective until August 31, 2014 | AA51: Service call – after regular hours | AL51: North Bay Hydro Distribution Limited | AM51: North Bay Hydro Distribution Limited | AO51: GENERAL SERVICE LESS THAN 50 KW - TRANSMISSION CLASS ENERGY-BILLED [T] | AP51: kWh
A52: GENERAL SERVICE LESS THAN 50 KW - URBAN ENERGY-BILLED [UG] | I52: Rate Rider for Disposition of Deferral/Variance Accounts (2012) - effective until December 31, 2015 | AA52: Service call – customer owned equipment | AL52: Northern Ontario Wires Inc. | AM52: Northern Ontario Wires Inc. | AO52: GENERAL SERVICE LESS THAN 50 KW - URBAN ENERGY-BILLED [UG] | AP52: kWh
A53: GENERAL SERVICE SINGLE PHASE - G1 | I53: Rate Rider for Disposition of Deferral/Variance Accounts (2012) - effective until December 31, 2016 Applicable only in the former service area of Clinton Power | AA53: Service Call – Customer-owned Equipment – After Regular Hours | AL53: Oakville Hydro Electricity Distribution Inc. | AM53: Oakville Hydro Electricity Distribution Inc. | AO53: GENERAL SERVICE SINGLE PHASE - G1 | AP53: kW
A54: GENERAL SERVICE THREE PHASE - G3 | I54: Rate Rider for Disposition of Deferral/Variance Accounts (2012) – effective until December 31, 2016 Applicable only in the former service area of Clinton Power | AA54: Service Call – Customer-owned Equipment – During Regular Hours | AL54: Orangeville Hydro Limited | AM54: Orangeville Hydro Limited | AO54: GENERAL SERVICE THREE PHASE - G3 | AP54: kW
A55: INTERMEDIATE USERS | I55: Rate Rider for Disposition of Deferral/Variance Accounts (2012) - effective until January 31, 2014 | AA55: Service Charge for onsite interrogation of interval meter due to customer phone line failure - required weekly until line repaired $ 6 | AL55: Orillia Power Distribution Corporation | AM55: Orillia Power Distribution Corporation | AO55: INTERMEDIATE USERS | AP55: kW
A56: INTERMEDIATE WITH SELF GENERATION | I56: Rate Rider for Disposition of Deferral/Variance Accounts (2012) - effective until June 30, 2014 | AA56: Service Layout - Commercial | AL56: Oshawa PUC Networks Inc. | AM56: Oshawa PUC Networks Inc. | AO56: INTERMEDIATE WITH SELF GENERATION | AP56: kW
A57: LARGE USE | I57: Rate Rider for Disposition of Deferral/Variance Accounts (2013) - Applicable only to Wholesale Market Participants - effective until April 30, 2015 | AA57: Service Layout - ResidentiaI | AL57: Ottawa River Power Corporation | AM57: Ottawa River Power Corporation | AO57: LARGE USE | AP57: kW
A58: LARGE USE - 3TS | I58: Rate Rider for Disposition of Deferral/Variance Accounts (2013) - effective until April 30, 2014 | AA58: Special Billing Service (sub-metering charge per meter) | AL58: Parry Sound Power Corporation | AM58: Parry Sound Power Corporation | AO58: LARGE USE - 3TS | AP58: kW
A59: LARGE USE - FORD ANNEX | I59: Rate Rider for Disposition of Deferral/Variance Accounts (2013) - effective until April 30, 2015 | AA59: Special meter reads | AL59: Peterborough Distribution Incorporated | AM59: Peterborough Distribution Incorporated | AO59: LARGE USE - FORD ANNEX | AP59: kW
A60: LARGE USE - REGULAR | I60: Rate Rider for Disposition of Deferral/Variance Accounts (2013) - effective until April 30, 2015 - not applicable to Wholesale Market Participants | AA60: Specific Charge for Access to the Power Poles - $/pole/year | AL60: PowerStream Inc. | AM60: PowerStream Inc. | AO60: LARGE USE - REGULAR | AP60: kW
A61: LARGE USE > 5000 KW | I61: Rate Rider for Disposition of Deferral/Variance Accounts (2013) - effective until April 30, 2017 | AA61: Specific Charge for Bell Canada Access to the Power Poles – per pole/year | AL61: PUC Distribution Inc. | AM61: PUC Distribution Inc. | AO61: LARGE USE > 5000 KW | AP61: kW
A62: microFIT | I62: Rate Rider for Disposition of Deferral/Variance Accounts (2013) - effective until August 31, 2014 | AA62: Switching for company maintenance – Charge based on Time and Materials | AL62: Renfrew Hydro Inc. | AM62: Renfrew Hydro Inc. | AO62: microFIT | AP62: $
A63: RESIDENTIAL | I63: Rate Rider for Disposition of Deferral/Variance Accounts (2013) - effective until December 31, 2014 | AA63: Temporary Service – Install & remove – overhead – no transformer | AL63: Rideau St. Lawrence Distribution Inc. | AM63: Rideau St. Lawrence Distribution Inc. | AO63: RESIDENTIAL | AP63: kWh
A64: RESIDENTIAL - HENSALL | I64: Rate Rider for Disposition of Deferral/Variance Accounts (2013) - effective until May 31, 2014 | AA64: Temporary Service – Install & remove – overhead – with transformer | AL64: Sioux Lookout Hydro Inc. | AM64: Sioux Lookout Hydro Inc. | AO64: RESIDENTIAL - HENSALL | AP64: kWh
A65: RESIDENTIAL - HIGH DENSITY [R1] | I65: Rate Rider for Disposition of Deferral/Variance Accounts (2014) - effective until December 31, 2015 | AA65: Temporary Service – Install & remove – underground – no transformer | AL65: St. Thomas Energy Inc. | AM65: St. Thomas Energy Inc. | AO65: RESIDENTIAL - HIGH DENSITY [R1] | AP65: kWh
A66: RESIDENTIAL - LOW DENSITY [R2] | I66: Rate Rider for Disposition of Deferred PILs Variance Account 1562 - effective until March 31, 2016 | AA66: Temporary service install & remove – overhead – no transformer | AL66: Thunder Bay Hydro Electricity Distribution Inc. | AM66: Thunder Bay Hydro Electricity Distribution Inc. | AO66: RESIDENTIAL - LOW DENSITY [R2] | AP66: kWh
A67: RESIDENTIAL - MEDIUM DENSITY [R1] | I67: Rate Rider for Disposition of Deferred PILs Variance Account 1562 (2012) - effective until April 30, 2015 | AA67: Temporary Service Install & Remove – Overhead – With Transformer | AL67: Tillsonburg Hydro Inc. | AM67: Tillsonburg Hydro Inc. | AO67: RESIDENTIAL - MEDIUM DENSITY [R1] | AP67: kWh
A68: RESIDENTIAL - NORMAL DENSITY [R2] | I68: Rate Rider for Disposition of Deferred PILs Variance Account 1562 (2012) - effective until April 30, 2016 | AA68: Temporary Service Install & Remove – Underground – No Transformer | AL68: Toronto Hydro-Electric System Limited | AM68: Toronto Hydro-Electric System Limited | AO68: RESIDENTIAL - NORMAL DENSITY [R2] | AP68: kWh
A69: RESIDENTIAL - TIME OF USE | I69: Rate Rider for Disposition of Deferred PILs Variance Account 1562 (2nd Installment - 2012) - effective until April 30, 2016 | AA69: Temporary service installation and removal – overhead – no transformer | AL69: Veridian Connections Inc. | AM69: Veridian Connections Inc. | AO69: RESIDENTIAL - TIME OF USE | AP69: kWh
A70: RESIDENTIAL - URBAN [UR] | I70: Rate Rider for Disposition of Deferred PILs Variance Account 1562 (per connection) (2012) - effective until April 30, 2015 | AA70: Temporary service installation and removal – overhead – with transformer | AL70: Wasaga Distribution Inc. | AM70: Wasaga Distribution Inc. | AO70: RESIDENTIAL - URBAN [UR] | AP70: kWh
A71: RESIDENTIAL REGULAR | I71: Rate Rider for Disposition of Deferred PILs Variance Account 1562 (per connection) (2012) - effective until April 30, 2016 | AA71: Temporary service installation and removal – underground – no transformer | AL71: Waterloo North Hydro Inc. | AM71: Waterloo North Hydro Inc. | AO71: RESIDENTIAL REGULAR | AP71: kWh
A72: RESIDENTIAL SUBURBAN | I72: Rate Rider for Disposition of Global Adjustment Sub-Account (2011) - effective until April 30, 2015 Applicable only for Non-RPP Customers | AL72: Welland Hydro-Electric System Corp. | AM72: Welland Hydro-Electric System Corp. | AO72: RESIDENTIAL SUBURBAN | AP72: kWh
A73: RESIDENTIAL SUBURBAN SEASONAL | I73: Rate Rider for Disposition of Global Adjustment Sub-Account (2011) - effective until April 30, 2016 Applicable only for Non-RPP Customers | AL73: Wellington North Power Inc. | AM73: Wellington North Power Inc. | AO73: RESIDENTIAL SUBURBAN SEASONAL | AP73: kWh
A74: RESIDENTIAL SUBURBAN YEAR ROUND | I74: Rate Rider for Disposition of Global Adjustment Sub-Account (2012) - effective until April 30, 2014 Applicable only for Non-RPP Customers | AL74: West Coast Huron Energy Inc. | AM74: West Coast Huron Energy Inc. | AO74: RESIDENTIAL SUBURBAN YEAR ROUND | AP74: kWh
A75: RESIDENTIAL URBAN | I75: Rate Rider for Disposition of Global Adjustment Sub-Account (2012) - effective until April 30, 2015 Applicable only for Non-RPP Customers | AL75: Westario Power Inc. | AM75: Westario Power Inc. | AO75: RESIDENTIAL URBAN | AP75: kWh
A76: RESIDENTIAL URBAN YEAR-ROUND | I76: Rate Rider for Disposition of Global Adjustment Sub-Account (2012) - effective until April 30, 2015 Applicatble only for Non-RPP Customers | AL76: Whitby Hydro Electric Corporation | AM76: Whitby Hydro Electric Corporation | AO76: RESIDENTIAL URBAN YEAR-ROUND | AP76: kWh
A77: SEASONAL RESIDENTIAL | I77: Rate Rider for Disposition of Global Adjustment Sub-Account (2012) - effective until April 30, 2016 Applicable only for Non-RPP Customers | AL77: Woodstock Hydro Services Inc. | AM77: Woodstock Hydro Services Inc. | AO77: SEASONAL RESIDENTIAL | AP77: kWh
A78: SEASONAL RESIDENTIAL - HIGH DENSITY [R3] | I78: Rate Rider for Disposition of Global Adjustment Sub-Account (2012) - effective until January 31, 2014. Applicable only for Non-RPP Customers | AO78: SEASONAL RESIDENTIAL - HIGH DENSITY [R3] | AP78: kWh
A79: SEASONAL RESIDENTIAL - NORMAL DENSITY [R4] | I79: Rate Rider for Disposition of Global Adjustment Sub-Account (2012) - effective until June 30, 2014 Applicable only for Non-RPP Customers | AO79: SEASONAL RESIDENTIAL - NORMAL DENSITY [R4] | AP79: kWh
A80: SENTINEL LIGHTING | I80: Rate Rider for Disposition of Global Adjustment Sub-Account (2012) Applicable only for Non-RPP Customers - effective until August 31, 2014 | AO80: SENTINEL LIGHTING | AP80: kW
A81: SMALL COMMERCIAL AND USL - PER CONNECTION | I81: Rate Rider for Disposition of Global Adjustment Sub-Account (2012) Applicable only to Non-RPP Customers - effective until August 31, 2014 | AO81: SMALL COMMERCIAL AND USL - PER CONNECTION | AP81: kWh
A82: SMALL COMMERCIAL AND USL - PER METER | I82: Rate Rider for Disposition of Global Adjustment Sub-Account (2013) - effective until April 30, 2014 Applicable only for Non-RPP Customers | AO82: SMALL COMMERCIAL AND USL - PER METER | AP82: kWh
A83: STANDARD A GENERAL SERVICE AIR ACCESS | I83: Rate Rider for Disposition of Global Adjustment Sub-Account (2013) - effective until April 30, 2015 Applicable only for Non-RPP Customers | AO83: STANDARD A GENERAL SERVICE AIR ACCESS | AP83: kWh
A84: STANDARD A GENERAL SERVICE ROAD/RAIL | I84: Rate Rider for Disposition of Global Adjustment Sub-Account (2013) - effective until April 30, 2015 Applicable only for Non-RPP Customers and excluding Wholesale Market Participants | AO84: STANDARD A GENERAL SERVICE ROAD/RAIL | AP84: kWh
A85: STANDARD A GRID CONNECTED | I85: Rate Rider for Disposition of Global Adjustment Sub-Account (2013) - effective until April 30, 2017 Applicable only for Non-RPP Customers | AO85: STANDARD A GRID CONNECTED | AP85: kWh
A86: STANDARD A RESIDENTIAL AIR ACCESS | I86: Rate Rider For Disposition of Global Adjustment Sub-Account (2013) - effective until August 31, 2014 Applicable only for Non-RPP Customers | AO86: STANDARD A RESIDENTIAL AIR ACCESS | AP86: kWh
A87: STANDARD A RESIDENTIAL ROAD/RAIL | I87: Rate Rider for Disposition of Global Adjustment Sub-Account (2013) - effective until December 31, 2014 Applicable only for Non-RPP Customers | AO87: STANDARD A RESIDENTIAL ROAD/RAIL | AP87: kWh
A88: STANDBY - GENERAL SERVICE 1,000 - 5,000 KW | I88: Rate Rider for Disposition of Global Adjustment Sub-Account (2013) - effective until May 31, 2014 Applicable only for Non-RPP Customers | AO88: STANDBY - GENERAL SERVICE 1,000 - 5,000 KW | AP88: kW
A89: STANDBY - GENERAL SERVICE 50 - 1,000 KW | I89: Rate Rider for Disposition of Global Adjustment Sub-Account (2014) - effective until December 31, 2014. Applicable only for Non-RPP - Class B Customers | AO89: STANDBY - GENERAL SERVICE 50 - 1,000 KW | AP89: kW
A90: STANDBY - LARGE USE | I90: Rate Rider for Disposition of Global Adjustment Sub-Account (2014) - effective until December 31, 2014. Applicable only for Non-RPP Customers | AO90: STANDBY - LARGE USE | AP90: kW
A91: STANDBY DISTRIBUTION SERVICE | I91: Rate Rider for Disposition of Global Adjustment Sub-Account (2014) - effective until December 31, 2014. Applicable only for Non-RPP Customers - Class A Customers | AO91: STANDBY DISTRIBUTION SERVICE | AP91: kW
A92: STANDBY POWER | I92: Rate Rider for Disposition of Global Adjustment Sub-Account (2014) - effective until December 31, 2014. Applicable only for Non-RPP Customers - Interval Metered | AO92: STANDBY POWER | AP92: kW
A93: STANDBY POWER - APPROVED ON AN INTERIM BASIS | I93: Rate Rider for Disposition of Global Adjustment Sub-Account (2014) - effective until December 31, 2014. Applicable only for Non-RPP Customers - Non Interval Metered | AO93: STANDBY POWER - APPROVED ON AN INTERIM BASIS | AP93: kW
A94: STANDBY POWER GENERAL SERVICE 1,500 TO 4,999 KW | I94: Rate Rider for Disposition of Global Adjustment Sub-Account (2014) - effective until December 31, 2015. Applicable only for Non-RPP Customers. | AO94: STANDBY POWER GENERAL SERVICE 1,500 TO 4,999 KW | AP94: kW
A95: STANDBY POWER GENERAL SERVICE 50 TO 1,499 KW | I95: Rate Rider for Disposition of Post Retirement Actuarial Gain - effective until March 31, 2025 | AO95: STANDBY POWER GENERAL SERVICE 50 TO 1,499 KW | AP95: kW
A96: STANDBY POWER GENERAL SERVICE LARGE USE | I96: Rate Rider for Disposition of Residual Hisotrical Smart Meter Costs - effective until April 30, 2015 | AO96: STANDBY POWER GENERAL SERVICE LARGE USE | AP96: kW
A97: STREET LIGHTING | I97: Rate Rider for Disposition of Residual Hisotrical Smart Meter Costs - effective until April 30, 2017 | AO97: STREET LIGHTING | AP97: kW
A98: SUB TRANSMISSION [ST] | I98: Rate Rider for Disposition of Residual Historical Smart Meter Costs - effective until April 30, 2014 | AO98: SUB TRANSMISSION [ST] | AP98: kW
A99: UNMETERED SCATTERED LOAD | I99: Rate Rider for Disposition of Residual Historical Smart Meter Costs - effective until April 30, 2016 | AO99: UNMETERED SCATTERED LOAD | AP99: kWh
A100: URBAN GENERAL SERVICE DEMAND BILLED (50 KW AND ABOVE) [UGD] | I100: Rate Rider for Disposition of Residual Historical Smart Meter Costs - effective until August 31, 2014 | AO100: URBAN GENERAL SERVICE DEMAND BILLED (50 KW AND ABOVE) [UGD] | AP100: kW
A101: URBAN GENERAL SERVICE ENERGY BILLED (LESS THAN 50 KW) [UGE] | I101: Rate Rider for Disposition of Residual Historical Smart Meter Costs - effective until August 31, 2015 | AO101: URBAN GENERAL SERVICE ENERGY BILLED (LESS THAN 50 KW) [UGE] | AP101: kWh
A102: WESTPORT SEWAGE TREATMENT PLANT | I102: Rate Rider for Disposition of Residual Historical Smart Meter Costs - effective until December 31, 2014 | AO102: WESTPORT SEWAGE TREATMENT PLANT | AP102: kW
A103: YEAR-ROUND RESIDENTIAL - R2 | I103: Rate Rider for Disposition of Residual Historical Smart Meter Costs – effective until December 31, 2014 | AO103: YEAR-ROUND RESIDENTIAL - R2 | AP103: kWh
I104: Rate Rider for Disposition of Residual Historical Smart Meter Costs - effective until December 31, 2015
I105: Rate Rider for Disposition of Residual Historical Smart Meter Costs - effective until December 31, 2016
I106: Rate Rider for Disposition of Residual Historical Smart Meter Costs - effective until October 31, 2014
I107: Rate Rider for Disposition of Residual Historical Smart Meter Costs - effective until September 30, 2014
I108: Rate Rider for Disposition of Residual Historical Smart Meter Costs - Non-Interval Metered - effective until April 30, 2014
I109: Rate Rider for Disposition of Residual Historical Smart Meter Costs 2 - in effect until the effective date of the next cost of service-based rate order
I110: Rate Rider for Disposition of Residual Historical Smart Meter Costs 3 - in effect until the effective date of the next cost of service-based rate order
I111: Rate Rider for Disposition of Residual Incremental Historical Smart Meter Costs - effective until August 31, 2015
I112: Rate Rider for Disposition of Stranded Meter costs - effective until April 30, 2015
I113: Rate Rider for Disposition of Stranded Meter Costs - effective until April 30, 2016
I114: Rate Rider for Disposition of Stranded Meter Costs - effective until April 30, 2017
I115: Rate Rider for Global Adjustment Sub Account Disposition - effective until April 30, 2016 Applicable only for Non RPP Customers
I116: Rate Rider for Global Adjustment Sub-Account Disposition (2014) - effective until April 28, 2016 Applicable only for Non-RPP Customers
I117: Rate Rider for Global Adjustment Sub-Account Disposition (2014) - effective until April 30, 2015 Applicable only for Non-RPP Customers
I118: Rate Rider for Global Adjustment Sub-Account Disposition (2014) - effective until December 30, 2015 Applicable only for Non-RPP Customers
I119: Rate Rider for Global Adjustment Sub-Account Disposition (2014) - effective until December 31, 2014 Applicable only for Non-RPP Customers
I120: Rate Rider for Global Adjustment Sub-Account Disposition (2014) - effective until December 31, 2015 Applicable only for Non-RPP Customers
I121: Rate Rider for Global Adjustment Sub-Account Disposition Applicable only for Non-RPP Customers - effective until April 30, 2015
I122: Rate Rider for Incremental Capital - Distribution Volumetric - effective until April 30, 2016
I123: Rate Rider for Incremental Capital - Service Charge - effective until April 30, 2016
I124: Rate Rider for Incremental Capital (2012) - effective until April 30, 2015
I125: Rate Rider for Lost Revenue Adjustment Mechanism Variance Account (LRAMVA) Recovery (2012 CDM Activities) - effective until April 30, 2015
I126: Rate Rider for Recover of Residual Historical Smart meter Costs - effective until June 30, 2014
I127: Rate Rider for Recovery of CGAAP/CWIP Differential - in effect until December 31, 2016
I128: Rate Rider for Recovery of Foregone Revenue - effective until April 30, 2015
I129: Rate Rider for Recovery of Forgone Revenue - effective until April 30, 2015
I130: Rate Rider for Recovery of Forgone Revenue - effective until December 31, 2014
I131: Rate Rider for Recovery of Green Energy Act related costs - effective until December 31, 2014
I132: Rate Rider for Recovery of Incremental Capital (2013) - in effect until the effective date of the next cost of service-based rate order
I133: Rate Rider for Recovery of Incremental Capital (2013) - in effect until the effective date of the next cost of service-based rate order
I134: Rate Rider for Recovery of Incremental Capital (2013) (per connection) - in effect until the effective date of the next cost of service-based rate order
I135: Rate Rider for Recovery of Incremental Capital (2013) (per connection)- in effect until the effective date of the next cost of service-based rate order
I136: Rate Rider for Recovery of Incremental Capital Costs
I137: Rate Rider for Recovery of Incremental Capital Costs - effective until April 30, 2015
I138: Rate Rider for Recovery of Incremental Capital Module Costs (2014) - in effect until the effective date of the next cost of service-based rate order
I139: Rate Rider for Recovery of Incremental Capital Module Costs (2014) - in effect until the effective date of the next cost of service-based rate order
I140: Rate Rider for Recovery of Lost Revenue Adjustment Mechanism ( LRAM)/Shared Savings Mechanism (SSM) (2012) - effective until August 31, 2014
I141: Rate Rider for Recovery of Lost Revenue Adjustment Mechanism (2013) - effective until December 31, 2014
I142: Rate Rider for Recovery of Lost Revenue Adjustment Mechanism (LRAM) - effective until April 30, 2016
I143: Rate Rider for Recovery of Lost Revenue Adjustment Mechanism (LRAM) (pre-2011 CDM Activities) - effective until April 30, 2015
I144: Rate Rider for Recovery of Lost Revenue Adjustment Mechanism (LRAM) (pre-2011 CDM Activities) (2013) - effective until April 30, 2015
I145: Rate Rider for Recovery of Lost Revenue Adjustment Mechanism (LRAM)/Shared Savings
I146: Rate Rider for Recovery of Lost Revenue Adjustment Mechanism (LRAM)/Shared Savings Mechanism (SSM) - effective until December 31, 2018 and applicable in the service area excluding the former service areas of Clinton Power and West Perth Power
I147: Rate Rider for Recovery of Lost Revenue Adjustment Mechanism (LRAM)/Shared Savings Mechanism (SSM) - effective until December 31, 2014 and applicable in the service area excluding the former service areas of Clinton Power and West Perth Power
I148: Rate Rider for Recovery of Lost Revenue Adjustment Mechanism (LRAM)/Shared Savings Mechanism (SSM) - effective until December 31, 2014 and applicable only in the former service area of Clinton Power
I149: Rate Rider for Recovery of Lost Revenue Adjustment Mechanism (LRAM)/Shared Savings Mechanism (SSM) - effective until December 31, 2014 and applicable only in the former service area of West Perth Power
I150: Rate Rider for Recovery of Lost Revenue Adjustment Mechanism (LRAM)/Shared Savings Mechanism (SSM) - effective until December 31, 2014 and applicable in the service area excluding the former service area of Clinton Power
I151: Rate Rider for Recovery of Lost Revenue Adjustment Mechanism (LRAM)/Shared Savings Mechanism (SSM) - effective until March 31, 2016
I152: Rate Rider for Recovery of Lost Revenue Adjustment Mechanism (LRAM)/Shared Savings Mechanism (SSM) (2012) - effective until August 31, 2014
I153: Rate Rider for Recovery of Lost Revenue Adjustment Mechanism (LRAM)/Shared Savings Mechanism (SSM) Recovery - effective until April 30, 2015
I154: Rate Rider for Recovery of Lost Revenue Adjustment Mechanism Variance Account (LRAMVA) (2014) - effective until April 30, 2015
I155: Rate Rider for Recovery of Residual Historical Smart Meter Costs - effective July 1, 2012 - April 30, 2016
I156: Rate Rider for Recovery of Smart Meter Incremental Revenue Requirement - effective until the date of the next cost of service-based rate order
I157: Rate Rider for Recovery of Smart Meter Incremental Revenue Requirement - effective until the effective date of the next cost of service-based rate order, or October 31, 2017, whichever occurs earlier
I158: Rate Rider for Recovery of Smart Meter Incremental Revenue Requirement - in effect until the effective date of the next cost of service-based rate order
I159: Rate Rider for Recovery of Smart Meter Incremental Revenue Requirement - Non-Interval Metered - in effect until the effective date of the next cost of service-based rate order
I160: Rate Rider for Recovery of Smart Meter Incremental Revenue Requirements - in effect until the effective date of the next cost of service application
I161: Rate Rider for Recovery of Smart Meter Stranded Assets - effective until April 30, 2016
I162: Rate Rider for Recovery of Storm Damage Costs - effective until August 31, 2017
I163: Rate Rider for Recovery of Stranded Assets - effective until April 30, 2016
I164: Rate Rider for Recovery of Stranded Meter Assets - effective July 1, 2012 - April 30, 2016
I165: Rate Rider for Recovery of Stranded Meter Assets – effective until April 30, 2015
I166: Rate Rider for Recovery of Stranded Meter Assets - effective until April 30, 2016
I167: Rate Rider for Recovery of Stranded Meter Assets - effective until April 30, 2017
I168: Rate Rider for Recovery of Stranded Meter Assets - effective until August 31, 2015
I169: Rate Rider for Recovery of Stranded Meter Assets - effective until August 31, 2017
I170: Rate Rider for Recovery of Stranded Meter Assets - effective until December 31, 2014
I171: Rate Rider for Recovery of Stranded Meter Assets - effective until December 31, 2015
I172: Rate Rider for Recovery of Stranded Meter Assets - effective until June 30, 2016
I173: Rate Rider for Recovery of Stranded Meter Assets - effective until March 31, 2016
I174: Rate Rider for Recovery of Stranded Meter Assets - effective until May 31, 2014
I175: Rate Rider for Reversal of Deferral/Variance Account Disposition (2011) - effective until April 30, 2015
I176: Rate Rider for Smart Meter Disposition - effective until April 30, 2016
I177: Rate Rider for Smart Meter Incremental Revenue Requirement - in effect until the effective date of the next cost of service-based rate order
I178: Rate Rider for Smart Metering Entity Charge - effective until October 31, 2018
I179: Rate Rider for Stranded Meter Cost Recovery - effective until April 30, 2017
I180: Rate Rider for Tax Change
I181: Rate Rider for Tax Change - effective until April 30, 2015
I182: Rate Rider for Tax Change (2014) - effective until April 30, 2015
I183: Retail Transmission Rate - Line and Transformation Connection Service Rate
I184: Retail Transmission Rate - Line and Transformation Connection Service Rate - (less than 1,000 kW)
I185: Retail Transmission Rate - Line and Transformation Connection Service Rate - Interval Metered
I186: Retail Transmission Rate - Line and Transformation Connection Service Rate - Interval Metered (1,000 to 4,999 kW)
I187: Retail Transmission Rate - Line and Transformation Connection Service Rate - Interval Metered (less than 1,000 kW)
I188: Retail Transmission Rate - Line and Transformation Connection Service Rate - Interval Metered < 1,000 kW
I189: Retail Transmission Rate - Line and Transformation Connection Service Rate FOR ALL SERVICE AREAS EXCEPT HENSALL
I190: Retail Transmission Rate - Line and Transformation Connection Service Rate - Interval Metered > 1,000 kW
I191: Retail Transmission Rate - Line Connection Service Rate
I192: Retail Transmission Rate - Network Service Rate
I193: Retail Transmission Rate - Network Service Rate - (less than 1,000 kW)
I194: Retail Transmission Rate - Network Service Rate - Interval Metered
I195: Retail Transmission Rate - Network Service Rate - Interval Metered (1,000 to 4,999 kW)
I196: Retail Transmission Rate - Network Service Rate - Interval Metered (less than 1,000 kW)
I197: Retail Transmission Rate - Network Service Rate - Interval Metered > 1,000 kW
I198: Retail Transmission Rate - Transformation Connection Service Rate
I199: Rider for Global Adjustment Sub-Account Disposition (2012) - effective until April 30, 2016 Applicable only for Non-RPP Customers
I200: Rural or Remote Electricity Rate Protection Charge (RRRP)
... 14 more rows

Sheet Sheet1 (hidden)
